{"text_format":"3","workbook":"xlsx","n_sheets":2,"sheets":["企业公示","乡村公示"],"not_rendered":{"defined_names":4},"read":"whole","date_system":"1900"}

{"sheet":"企业公示","index":0,"n_rows":66,"n_cols":15,"rows_kept":66,"merged":[[0,0,0,12],[2,0,3,0],[2,1,3,1],[2,2,3,2],[2,3,3,3],[2,4,3,4],[2,5,3,5],[2,6,3,6],[2,7,3,7],[2,8,3,8],[2,9,3,9],[2,10,3,10],[2,11,3,11],[2,12,3,12],[65,0,65,4]]}
["2024年封丘县土地流转奖补项目公告公示明细表（2）"]
["日期：","2024年6月18日-28日"]
["序号","项目 名称","建设内容","实施地点","经营主体","流转土地面积（亩）","补助标准","补助金额","资金来源","建设期限","绩效目标","利益联结机制","备注"]
[]
[1,"封丘县王村乡（携缘合种植专业合作社）土地流转奖补项目","对经营主体和11户流出土地的贫困户进行奖补，流转土地47.6亩。","王村乡北孟庄村","封丘县携缘合种植专业合作社",47.6,"经营主体每亩补助300元",14280,"衔接资金","2024年1月-12月","通过土地流转使享受政策的建档立卡户每亩增收200元，经营主体每亩补助300元。","项目实施将带动低收入人口增加收入，增加务工就业机会，群众满意。"]
[2,"封丘县王村乡（喜相逢种植专业合作社）土地流转奖补项目","对经营主体和2户流出土地的贫困户进行奖补，流转土地7.8亩。","王村乡尚庄村","封丘县喜相逢种植专业合作社",7.8,"经营主体每亩补助300元",2340,"衔接资金","2024年1月-12月","通过土地流转使享受政策的建档立卡户每亩增收200元，经营主体每亩补助300元。","项目实施将带动低收入人口增加收入，增加务工就业机会，群众满意。"]
[3,"封丘县黄陵镇（建伟农业家庭农场）土地流转奖补项目","对经营主体和3户流出土地的贫困户进行奖补，流转土地17.53亩。","黄陵镇陈寨村","封丘县建伟农业家庭农场",17.53,"经营主体每亩补助300元",5259,"衔接资金","2024年1月-12月","通过土地流转使享受政策的建档立卡户每亩增收200元，经营主体每亩补助300元。","项目实施将带动低收入人口增加收入，增加务工就业机会，群众满意。"]
[4,"封丘县黄陵镇（献振种植专业合作社）土地流转奖补项目","对经营主体和10户流出土地的贫困户进行奖补，流转土地28.98亩。","黄陵镇高村","封丘县献振种植专业合作社",28.98,"经营主体每亩补助300元",8694,"衔接资金","2024年1月-12月","通过土地流转使享受政策的建档立卡户每亩增收200元，经营主体每亩补助300元。","项目实施将带动低收入人口增加收入，增加务工就业机会，群众满意。"]
[5,"封丘县黄陵镇（胜源种植场）土地流转奖补项目","对经营主体和13户流出土地的贫困户进行奖补，流转土地67.77亩。","黄陵镇平街村","封丘县黄陵镇胜源种植场",67.77,"经营主体每亩补助300元",20331,"衔接资金","2024年1月-12月","通过土地流转使享受政策的建档立卡户每亩增收200元，经营主体每亩补助300元。","项目实施将带动低收入人口增加收入，增加务工就业机会，群众满意。"]
[6,"封丘县鲁岗镇（中俊种植农场）土地流转奖补项目","对经营主体和4户流出土地的贫困户进行奖补，流转土地20.64亩。","鲁岗镇和寨村","封丘县中俊种植农场",20.64,"经营主体每亩补助300元",6192,"衔接资金","2024年1月-15月","通过土地流转使享受政策的建档立卡户每亩增收200元，经营主体每亩补助300元。","项目实施将带动低收入人口增加收入，增加务工就业机会，群众满意。"]
[7,"封丘县鲁岗镇（广记种植场）土地流转奖补项目","对经营主体和1户流出土地的贫困户进行奖补，流转土地5亩。","鲁岗镇东马庄村","封丘县广记种植场",5,"经营主体每亩补助300元",1500,"衔接资金","2024年1月-14月","通过土地流转使享受政策的建档立卡户每亩增收200元，经营主体每亩补助300元。","项目实施将带动低收入人口增加收入，增加务工就业机会，群众满意。"]
[8,"封丘县鲁岗镇（梓钰种植专业合作社）土地流转奖补项目","对经营主体和13户流出土地的贫困户进行奖补，流转土地15.78亩。","鲁岗镇白店村","封丘县梓钰种植专业合作社",15.78,"经营主体每亩补助300元",4734,"衔接资金","2024年1月-12月","通过土地流转使享受政策的建档立卡户每亩增收200元，经营主体每亩补助300元。","项目实施将带动低收入人口增加收入，增加务工就业机会，群众满意。"]
[9,"封丘县鲁岗镇（客之家家庭农场）土地流转奖补项目","对经营主体和1户流出土地的贫困户进行奖补，流转土地3.29亩。","鲁岗镇鲁岗村","封丘县客之家家庭农场",3.29,"经营主体每亩补助300元",987,"衔接资金","2024年1月-13月","通过土地流转使享受政策的建档立卡户每亩增收200元，经营主体每亩补助300元。","项目实施将带动低收入人口增加收入，增加务工就业机会，群众满意。"]
[10,"封丘县居厢镇（庆富金银花种植专业合作社）土地流转奖补项目","对经营主体和9户流出土地的贫困户进行奖补，流转土地89.92亩。","居厢镇纪店村","封丘县庆富金银花种植专业合作社",89.92,"经营主体每亩补助300元",26976,"衔接资金","2024年1月-12月","通过土地流转使享受政策的建档立卡户每亩增收200元，经营主体每亩补助300元。","项目实施将带动低收入人口增加收入，增加务工就业机会，群众满意。"]
[11,"封丘县居厢镇（济钦种植家庭农场）土地流转奖补项目","对经营主体和1户流出土地的贫困户进行奖补，流转土地8.36亩。","居厢镇河东村","封丘县济钦种植家庭农场",8.36,"经营主体每亩补助300元",2508,"衔接资金","2024年1月-12月","通过土地流转使享受政策的建档立卡户每亩增收200元，经营主体每亩补助300元。","项目实施将带动低收入人口增加收入，增加务工就业机会，群众满意。"]
[12,"封丘县黄德镇(鑫豫种植专业合作社)土地流转奖补项目","对经营主体和  6户流出土地的贫困户进行奖补，流转土地48.2亩。","黄德镇黄德村、文岩村","封丘县鑫豫种植专业合作社",48.2,"经营主体每亩补助300元",14460,"衔接资金","2024年1月-12月","通过土地流转使享受政策的建档立卡户每亩增收200元，经营主体每亩补助300元。","项目实施将带动低收入人口增加收入，增加务工就业机会，群众满意。"]
[13,"封丘县黄德镇(黄河古道生态农业发展有限公司）土地流转奖补项目","对经营主体和 7户流出土地的贫困户进行奖补，流转土地48.02亩。","黄德镇蒋西村","封丘县黄河古道生态农业发展有限公司",48.02,"经营主体每亩补助300元",14406,"衔接资金","2024年1月-12月","通过土地流转使享受政策的建档立卡户每亩增收200元，经营主体每亩补助300元。","项目实施将带动低收入人口增加收入，增加务工就业机会，群众满意。"]
[14,"封丘县荆隆宫乡(宏晟家庭农场)土地流转奖补项目","对经营主体和3户流出土地的贫困户进行奖补，流转土地22.49亩。","荆隆宫乡水驿村","封丘县宏晟家庭农场",22.49,"经营主体每亩补助300元",6747,"衔接资金","2024年1月-12月","通过土地流转使享受政策的建档立卡户每亩增收200元，经营主体每亩补助300元。","项目实施将带动低收入人口增加收入，增加务工就业机会，群众满意。"]
[15,"封丘县荆隆宫乡(沁雅桃园家庭农场)土地流转奖补项目","对经营主体和1户流出土地的贫困户进行奖补，流转土地6.5亩。","荆隆宫乡小齐寨村","封丘县沁雅桃园家庭农场",6.5,"经营主体每亩补助300元",1950,"衔接资金","2024年1月-12月","通过土地流转使享受政策的建档立卡户每亩增收200元，经营主体每亩补助300元。","项目实施将带动低收入人口增加收入，增加务工就业机会，群众满意。"]
[16,"封丘县荆隆宫乡(携缘合种植专业合作社)土地流转奖补项目","对经营主体和4户流出土地的贫困户进行奖补，流转土地30.65亩。","荆隆宫乡丁庄村","封丘县携缘合种植专业合作社",30.65,"经营主体每亩补助300元",9195,"衔接资金","2024年1月-12月","通过土地流转使享受政策的建档立卡户每亩增收200元，经营主体每亩补助300元。","项目实施将带动低收入人口增加收入，增加务工就业机会，群众满意。"]
[17,"封丘县荆隆宫乡(永顺种植专业合作社)土地流转奖补项目","对经营主体和8户流出土地的贫困户进行奖补，流转土地76.3亩。","荆隆宫乡西辛庄村","封丘县永顺种植专业合作社",76.3,"经营主体每亩补助300元",22890,"衔接资金","2024年1月-12月","通过土地流转使享受政策的建档立卡户每亩增收200元，经营主体每亩补助300元。","项目实施将带动低收入人口增加收入，增加务工就业机会，群众满意。"]
[18,"封丘县荆隆宫乡(乃海种植专业合作社)土地流转奖补项目","对经营主体和8户流出土地的贫困户进行奖补，流转土地63.1亩。","荆隆宫乡大王庄村","封丘县乃海种植专业合作社",63.1,"经营主体每亩补助300元",18930,"衔接资金","2024年1月-12月","通过土地流转使享受政策的建档立卡户每亩增收200元，经营主体每亩补助300元。","项目实施将带动低收入人口增加收入，增加务工就业机会，群众满意。"]
[19,"河南荆隆宫乡(黄池农业发展有限公司)土地流转奖补项目","对经营主体和10户流出土地的贫困户进行奖补，流转土地58.1亩。","荆隆宫乡后桑园村","河南黄池农业发展有限公司",58.1,"经营主体每亩补助300元",17430,"衔接资金","2024年1月-12月","通过土地流转使享受政策的建档立卡户每亩增收200元，经营主体每亩补助300元。","项目实施将带动低收入人口增加收入，增加务工就业机会，群众满意。"]
[20,"封丘县陈桥镇(陈桥村股份经济合作社)土地流转奖补项目","对经营主体和19户流出土地的贫困户进行奖补，流转土地42.09亩。","陈桥镇陈桥村","封丘县陈桥镇陈桥村股份经济合作社",42.09,"经营主体每亩补助300元",12627,"衔接资金","2024年1月-12月","通过土地流转使享受政策的建档立卡户每亩增收200元，经营主体每亩补助300元。","项目实施将带动低收入人口增加收入，增加务工就业机会，群众满意。"]
[21,"封丘县陈桥镇(盛道生态种植专业合作社)土地流转奖补项目","对经营主体和4户流出土地的贫困户进行奖补，流转土地12.81亩。","陈桥镇贺寨村","封丘县陈桥镇盛道生态种植专业合作社",12.81,"经营主体每亩补助300元",3843,"衔接资金","2024年1月-12月","通过土地流转使享受政策的建档立卡户每亩增收200元，经营主体每亩补助300元。","项目实施将带动低收入人口增加收入，增加务工就业机会，群众满意。"]
[22,"封丘县陈固镇(新中土地流转合作社)土地流转奖补项目","对经营主体和3户流出土地的贫困户进行奖补，流转土地17.19亩。","陈固镇东守宫村","封丘县新中土地流转合作社",17.19,"经营主体每亩补助300元",5157,"衔接资金","2024年1月-12月","通过土地流转使享受政策的建档立卡户每亩增收200元，经营主体每亩补助300元。","项目实施将带动低收入人口增加收入，增加务工就业机会，群众满意。"]
[23,"封丘县陈固镇(西域土地流转专业合作社)土地流转奖补项目","对经营主体和6户流出土地的贫困户进行奖补，流转土地59.65亩。","陈固镇梅口村","封丘县西域土地流转专业合作社",59.65,"经营主体每亩补助300元",17895,"衔接资金","2024年1月-12月","通过土地流转使享受政策的建档立卡户每亩增收200元，经营主体每亩补助300元。","项目实施将带动低收入人口增加收入，增加务工就业机会，群众满意。"]
[24,"封丘县陈固镇(士伟土地流转合作社)土地流转奖补项目","对经营主体和2户流出土地的贫困户进行奖补，流转土地15.87亩。","陈固镇后李湾村","封丘县士伟土地流转合作社",15.87,"经营主体每亩补助300元",4761,"衔接资金","2024年1月-12月","通过土地流转使享受政策的建档立卡户每亩增收200元，经营主体每亩补助300元。","项目实施将带动低收入人口增加收入，增加务工就业机会，群众满意。"]
[25,"封丘县赵岗镇(永峰家庭农场)土地流转奖补项目","对经营主体和5户流出土地的贫困户进行奖补，流转土地35.1亩。","赵岗镇惠寨村","封丘县永峰家庭农场",35.1,"经营主体每亩补助300元",10530,"衔接资金","2024年1月-12月","通过土地流转使享受政策的建档立卡户每亩增收200元，经营主体每亩补助300元。","项目实施将带动低收入人口增加收入，增加务工就业机会，群众满意。"]
[26,"封丘县留光镇(西林庄吉丰种植专业合作社)土地流转奖补项目","对经营主体和16户流出土地的贫困户进行奖补，流转土地62.13亩。","留光镇西林庄","封丘县西林庄吉丰种植专业合作社",62.13,"经营主体每亩补助300元",18639,"衔接资金","2024年1月-12月","通过土地流转使享受政策的建档立卡户每亩增收200元，经营主体每亩补助300元。","项目实施将带动低收入人口增加收入，增加务工就业机会，群众满意。"]
[27,"封丘县留光镇(俊波种植专业合作社)土地流转奖补项目","对经营主体和2户流出土地的贫困户进行奖补，流转土地10.89亩。","留光镇西林庄","封丘县俊波种植专业合作社",10.89,"经营主体每亩补助300元",3267,"衔接资金","2024年1月-12月","通过土地流转使享受政策的建档立卡户每亩增收200元，经营主体每亩补助300元。","项目实施将带动低收入人口增加收入，增加务工就业机会，群众满意。"]
[28,"封丘县留光镇（海港种植家庭农场）土地流转奖补项目","对经营主体和23户流出土地的贫困户进行奖补，流转土地102.72亩。","留光镇合城","封丘县海港种植家庭农场",102.72,"经营主体每亩补助300元",30816,"衔接资金","2024年1月-12月","通过土地流转使享受政策的建档立卡户每亩增收200元，经营主体每亩补助300元。","项目实施将带动低收入人口增加收入，增加务工就业机会，群众满意。"]
[29,"封丘县留光镇（鼎力种植专业合作社）土地流转奖补项目","对经营主体和8户流出土地的贫困户进行奖补，流转土地41.08亩。","留光镇留固村","封丘县鼎力种植专业合作社",41.08,"经营主体每亩补助300元",12324,"衔接资金","2024年1月-12月","通过土地流转使享受政策的建档立卡户每亩增收200元，经营主体每亩补助300元。","项目实施将带动低收入人口增加收入，增加务工就业机会，群众满意。"]
[30,"封丘县留光镇（安超家庭农场）土地流转奖补项目","对经营主体和17户流出土地的贫困户进行奖补，流转土地50.41亩。","留光镇留固村","封丘县安超家庭农场",50.41,"经营主体每亩补助300元",15123,"衔接资金","2024年1月-12月","通过土地流转使享受政策的建档立卡户每亩增收200元，经营主体每亩补助300元。","项目实施将带动低收入人口增加收入，增加务工就业机会，群众满意。"]
[31,"封丘县留光镇（华领种植专业合作社）土地流转奖补项目","对经营主体和5户流出土地的贫困户进行奖补，流转土地16.8亩。","留光镇于庄","封丘县华领种植专业合作社",16.8,"经营主体每亩补助300元",5040,"衔接资金","2024年1月-12月","通过土地流转使享受政策的建档立卡户每亩增收200元，经营主体每亩补助300元。","项目实施将带动低收入人口增加收入，增加务工就业机会，群众满意。"]
[32,"封丘县留光镇（青青康种植专业合作社）土地流转奖补项目","对经营主体和51户流出土地的贫困户进行奖补，流转土地84.67亩。","留光镇李王庄","封丘县青青康种植专业合作社",84.67,"经营主体每亩补助300元",25401,"衔接资金","2024年1月-12月","通过土地流转使享受政策的建档立卡户每亩增收200元，经营主体每亩补助300元。","项目实施将带动低收入人口增加收入，增加务工就业机会，群众满意。",null,null," "]
[33,"封丘县留光镇（建康家庭农场）土地流转奖补项目","对经营主体和1户流出土地的贫困户进行奖补，流转土地10.26亩。","留光镇中王庄","封丘县建康家庭农场",10.26,"经营主体每亩补助300元",3078,"衔接资金","2024年1月-12月","通过土地流转使享受政策的建档立卡户每亩增收200元，经营主体每亩补助300元。","项目实施将带动低收入人口增加收入，增加务工就业机会，群众满意。"]
[34,"封丘县李庄镇(河南格瑞佳农业科技有限公司)土地流转奖补项目","对经营主体和130户流转土地的贫困户进行奖补，流转土地521.93亩。","李庄镇前辛庄村、后辛庄村、贯台村、张曹村","河南格瑞佳农业科技有限公司 ",521.93,"经营主体每亩补助300元",{"$f":"F38*300","v":156579},"衔接资金","2024年1月-12月","通过土地流转使享受政策的建档立卡户每亩增收200元，经营主体每亩补助315元。","项目实施将带动低收入人口增加收入，增加务工就业机会，群众满意。"]
[35,"封丘县李庄镇(东浩种植专业合作社)土地流转奖补项目","对经营主体和52户流转土地的贫困户进行奖补，流转土地148.679亩。","李庄镇前辛庄村、南曹村","封丘县东浩种植专业合作社",148.679,"经营主体每亩补助300元",44603.7,"衔接资金","2024年1月-12月","通过土地流转使享受政策的建档立卡户每亩增收200元，经营主体每亩补助322元。","项目实施将带动低收入人口增加收入，增加务工就业机会，群众满意。"]
[36,"封丘县李庄镇(封新禾种植专业合作社)土地流转奖补项目","对经营主体和2户流转土地的贫困户进行奖补，流转土地70.564亩。","李庄镇贯台村","封丘县封新禾种植专业合作社",70.564,"经营主体每亩补助300元",21169.2,"衔接资金","2024年1月-12月","通过土地流转使享受政策的建档立卡户每亩增收200元，经营主体每亩补助311元。","项目实施将带动低收入人口增加收入，增加务工就业机会，群众满意。"]
[37,"封丘县李庄镇(彤鑫农业家庭农场)土地流转奖补项目","对经营主体和6户流转土地的贫困户进行奖补，流转土地42.2亩。","李庄镇贯台村","封丘县彤鑫农业家庭农场",42.2,"经营主体每亩补助300元",12660,"衔接资金","2024年1月-12月","通过土地流转使享受政策的建档立卡户每亩增收200元，经营主体每亩补助310元。","项目实施将带动低收入人口增加收入，增加务工就业机会，群众满意。"]
[38,"封丘县李庄镇(恩英家庭农场)土地流转奖补项目","对经营主体和3户流转土地的贫困户进行奖补，流转土地43亩。","李庄镇贯台村","封丘县李庄镇恩英家庭农场",43,"经营主体每亩补助300元",12900,"衔接资金","2024年1月-12月","通过土地流转使享受政策的建档立卡户每亩增收200元，经营主体每亩补助308元。","项目实施将带动低收入人口增加收入，增加务工就业机会，群众满意。"]
[39,"封丘县李庄镇(天蓝农业种植养殖专业合作社)土地流转奖补项目","对经营主体和16户流转土地的贫困户进行奖补，流转土地38.47亩。","李庄镇后辛庄村","封丘县天蓝农业种植养殖专业合作社",38.47,"经营主体每亩补助300元",11541,"衔接资金","2024年1月-12月","通过土地流转使享受政策的建档立卡户每亩增收200元，经营主体每亩补助320元。","项目实施将带动低收入人口增加收入，增加务工就业机会，群众满意。"]
[40,"封丘县李庄镇（从众种植专业合作社）土地流转奖补项目","对经营主体和10户流转土地的贫困户进行奖补，流转土地38.029亩。","李庄镇竹岗村","封丘县从众种植专业合作社",38.029,"经营主体每亩补助300元",11408.7,"衔接资金","2024年1月-12月","通过土地流转使享受政策的建档立卡户每亩增收200元，经营主体每亩补助300元。","项目实施将带动低收入人口增加收入，增加务工就业机会，群众满意。"]
[41,"封丘县李庄镇（豫柱家庭农场）土地流转奖补项目","对经营主体和3户流转土地的贫困户进行奖补，流转土地14.8亩。","李庄镇朱寨村","封丘县李庄镇豫柱家庭农场",14.8,"经营主体每亩补助300元",4440,"衔接资金","2024年1月-12月","通过土地流转使享受政策的建档立卡户每亩增收200元，经营主体每亩补助306元。","项目实施将带动低收入人口增加收入，增加务工就业机会，群众满意。"]
[42,"封丘县李庄镇(安乐种植家庭农场)土地流转奖补项目","对经营主体和2户流转土地的贫困户进行奖补，流转土地10.36亩。","李庄镇苦庄村","封丘县安乐种植家庭农场",10.36,"经营主体每亩补助300元",3108,"衔接资金","2024年1月-12月","通过土地流转使享受政策的建档立卡户每亩增收200元，经营主体每亩补助318元。","项目实施将带动低收入人口增加收入，增加务工就业机会，群众满意。"]
[43,"封丘县李庄镇(创富苗木种植专业合作社)土地流转奖补项目","对经营主体和58户流转土地的贫困户进行奖补，流转土地119.69亩。","李庄镇前辛庄","封丘县创富苗木种植专业合作社",119.69,"经营主体每亩补助300元",35907,"衔接资金","2024年1月-12月","通过土地流转使享受政策的建档立卡户每亩增收200元，经营主体每亩补助323元。","项目实施将带动低收入人口增加收入，增加务工就业机会，群众满意。"]
[44,"封丘县李庄镇(雷得生养殖家庭农场)土地流转奖补项目","对经营主体和1户流转土地的贫困户进行奖补，流转土地3.97亩。","李庄镇竹岗村","封丘县雷得生养殖家庭农场",3.97,"经营主体每亩补助300元",1191,"衔接资金","2024年1月-12月","通过土地流转使享受政策的建档立卡户每亩增收200元，经营主体每亩补助324元。","项目实施将带动低收入人口增加收入，增加务工就业机会，群众满意。"]
[45,"封丘县李庄镇(聚源种植专业合作社)土地流转奖补项目","对经营主体和7户流转土地的贫困户进行奖补，流转土地42.55亩。","李庄镇堤湾村","封丘县李庄镇聚源种植专业合作社",42.55,"经营主体每亩补助300元",12765,"衔接资金","2024年1月-12月","通过土地流转使享受政策的建档立卡户每亩增收200元，经营主体每亩补助326元。","项目实施将带动低收入人口增加收入，增加务工就业机会，群众满意。"]
[46,"封丘李庄镇(梦飞养殖种植合作社)土地流转奖补项目","对经营主体和9户流转土地的贫困户进行奖补，流转土地49.3亩。","李庄镇苦庄村、竹岗村","封丘李庄镇梦飞养殖种植合作社",49.3,"经营主体每亩补助300元",14790,"衔接资金","2024年1月-12月","通过土地流转使享受政策的建档立卡户每亩增收200元，经营主体每亩补助317元。","项目实施将带动低收入人口增加收入，增加务工就业机会，群众满意。"]
[47,"封丘县李庄镇（海鹏种植家庭农场)土地流转奖补项目","对经营主体和7户流转土地的贫困户进行奖补，流转土地7.06亩。","李庄镇竹岗村","封丘县海鹏种植家庭农场",7.06,"经营主体每亩补助300元",2118,"衔接资金","2024年1月-12月","通过土地流转使享受政策的建档立卡户每亩增收200元，经营主体每亩补助307元。","项目实施将带动低收入人口增加收入，增加务工就业机会，群众满意。"]
[48,"封丘县李庄镇(获嘉县福茂林专业合作社)土地流转奖补项目","对经营主体和59户流转土地的贫困户进行奖补，流转土地197.232亩。","李庄镇前辛庄、后辛庄、贯台、张曹","获嘉县福茂林专业合作社",197.232,"经营主体每亩补助300元",59169.6,"衔接资金","2024年1月-12月","通过土地流转使享受政策的建档立卡户每亩增收200元，经营主体每亩补助313元。","项目实施将带动低收入人口增加收入，增加务工就业机会，群众满意。"]
[49,"封丘县李庄镇（河南绿碧源农林开发有限公司）土地流转奖补项目","对经营主体和19户流转土地的贫困户进行奖补，流转土地136.06亩。","李庄镇常东村","河南绿碧源农林开发有限公司",136.06,"经营主体每亩补助300元",40818,"衔接资金","2024年1月-12月","通过土地流转使享受政策的建档立卡户每亩增收200元，经营主体每亩补助301元。","项目实施将带动低收入人口增加收入，增加务工就业机会，群众满意。"]
[50,"封丘县李庄镇(宝亮家庭农场)土地流转奖补项目","对经营主体和28户流转土地的贫困户进行奖补，流转土地43.03亩。","李庄镇俄湾村","封丘县李庄镇宝亮家庭农场",43.03,"经营主体每亩补助300元",12909,"衔接资金","2024年1月-12月","通过土地流转使享受政策的建档立卡户每亩增收200元，经营主体每亩补助309元。","项目实施将带动低收入人口增加收入，增加务工就业机会，群众满意。"]
[51,"封丘县李庄镇(峰桐农业发展有限公司)土地流转奖补项目","对经营主体和28户流转土地的贫困户进行奖补，流转土地64.39亩。","李庄镇俄湾村、南曹村","封丘县峰桐农业发展有限公司",64.39,"经营主体每亩补助300元",19317,"衔接资金","2024年1月-12月","通过土地流转使享受政策的建档立卡户每亩增收200元，经营主体每亩补助312元。","项目实施将带动低收入人口增加收入，增加务工就业机会，群众满意。"]
[52,"封丘县李庄镇(金鑫土地流转专业合作社)土地流转奖补项目","对经营主体和70户流转土地的贫困户进行奖补，流转土地97.599亩。","李庄镇朱寨村","封丘县金鑫土地流转专业合作社",97.599,"经营主体每亩补助300元",29279.7,"衔接资金","2024年1月-12月","通过土地流转使享受政策的建档立卡户每亩增收200元，经营主体每亩补助314元。","项目实施将带动低收入人口增加收入，增加务工就业机会，群众满意。"]
[53,"封丘县李庄镇（桃缘农业种养专业合作社）土地流转奖补项目","对经营主体和10户流转土地的贫困户进行奖补，流转土地10.76亩。","李庄镇竹岗村","封丘县李庄镇竹岗桃缘农业种养专业合作社",10.76,"经营主体每亩补助300元",3228,"衔接资金","2024年1月-12月","通过土地流转使享受政策的建档立卡户每亩增收200元，经营主体每亩补助305元。","项目实施将带动低收入人口增加收入，增加务工就业机会，群众满意。"]
[54,"封丘县李庄镇(黄河农产种植家庭农场)土地流转奖补项目","对经营主体和9户流转土地的贫困户进行奖补，流转土地12.674亩。","李庄镇贯台村","封丘县黄河农产种植家庭农场",12.674,"经营主体每亩补助300元",3802.2,"衔接资金","2024年1月-12月","通过土地流转使享受政策的建档立卡户每亩增收200元，经营主体每亩补助316元。","项目实施将带动低收入人口增加收入，增加务工就业机会，群众满意。"]
[55,"封丘县李庄镇(大河湾发展有限公司)土地流转奖补项目","对经营主体和5户流转土地的贫困户进行奖补，流转土地7.22亩。","李庄镇后辛庄村","封丘县大河湾发展有限公司",7.22,"经营主体每亩补助300元",2166,"衔接资金","2024年1月-12月","通过土地流转使享受政策的建档立卡户每亩增收200元，经营主体每亩补助321元。","项目实施将带动低收入人口增加收入，增加务工就业机会，群众满意。"]
[56,"封丘县李庄镇（河南京香豫生物科技有限公司）土地流转奖补项目","对经营主体和9户流转土地的贫困户进行奖补，流转土地34亩。","李庄镇竹岗村","河南京香豫生物科技有限公司 ",34,"经营主体每亩补助300元",10200,"衔接资金","2024年1月-12月","通过土地流转使享受政策的建档立卡户每亩增收200元，经营主体每亩补助302元。","项目实施将带动低收入人口增加收入，增加务工就业机会，群众满意。"]
[57,"封丘县李庄镇(闰土家庭农场)土地流转奖补项目","对经营主体和23户流转土地的贫困户进行奖补，流转土地51.824亩。","李庄镇贯台村","封丘县闰土家庭农场",51.824,"经营主体每亩补助300元",15547.2,"衔接资金","2024年1月-12月","通过土地流转使享受政策的建档立卡户每亩增收200元，经营主体每亩补助327元。","项目实施将带动低收入人口增加收入，增加务工就业机会，群众满意。"]
[58,"封丘县李庄镇（顺科种植家庭农场）土地流转奖补项目","对经营主体和9户流转土地的贫困户进行奖补，流转土地16.11亩。","李庄镇李庄村","封丘县顺科种植家庭农场",16.11,"经营主体每亩补助300元",4833,"衔接资金","2024年1月-12月","通过土地流转使享受政策的建档立卡户每亩增收200元，经营主体每亩补助303元。","项目实施将带动低收入人口增加收入，增加务工就业机会，群众满意。"]
[59,"封丘县李庄镇(新乡市鸿程林业有限公司)土地流转奖补项目","对经营主体和11户流转土地的贫困户进行奖补，流转土地53.3511亩。","李庄镇薛郭庄村","新乡市鸿程林业有限公司",53.3511,"经营主体每亩补助300元",16005.33,"衔接资金","2024年1月-12月","通过土地流转使享受政策的建档立卡户每亩增收200元，经营主体每亩补助319元。","项目实施将带动低收入人口增加收入，增加务工就业机会，群众满意。"]
[60,"封丘县李庄镇(丰硕家庭农场)土地流转奖补项目","对经营主体和9户流转土地的贫困户进行奖补，流转土地19.4亩。","李庄镇堤湾村","封丘县李庄镇丰硕家庭农场",19.4,"经营主体每亩补助300元",5820,"衔接资金","2024年1月-12月","通过土地流转使享受政策的建档立卡户每亩增收200元，经营主体每亩补助325元。","项目实施将带动低收入人口增加收入，增加务工就业机会，群众满意。"]
[61,"封丘县李庄镇（清河家庭农场）土地流转奖补项目","对经营主体和3户流转土地的贫困户进行奖补，流转土地104.32亩。","李庄镇贯台、李庄村","封丘县李庄镇清河家庭农场",104.32,"经营主体每亩补助300元",31296,"衔接资金","2024年1月-12月","通过土地流转使享受政策的建档立卡户每亩增收200元，经营主体每亩补助304元。","项目实施将带动低收入人口增加收入，增加务工就业机会，群众满意。"]
["合  计",{"$nulls":4},{"$f":"SUM(F5:F65)","v":3226.2721},null,{"$f":"SUM(H5:H65)","v":967881.63}]

{"sheet":"乡村公示","index":1,"n_rows":879,"n_cols":13,"rows_kept":879,"merged":[[0,0,0,12],[1,1,1,2],[3,1,13,1],[3,2,13,2],[14,1,15,1],[14,2,15,2],[16,1,18,1],[16,2,18,2],[19,1,28,1],[19,2,28,2],[29,1,41,1],[29,2,41,2],[42,1,45,1],[42,2,45,2],[47,1,59,1],[47,2,59,2],[61,1,69,1],[61,2,69,2],[71,1,76,1],[71,2,75,2],[77,1,83,1],[77,2,83,2],[84,1,86,1],[84,2,86,2],[88,1,91,1],[88,2,91,2],[92,1,99,1],[92,2,99,2],[100,1,107,1],[100,2,107,2],[108,1,117,1],[108,2,117,2],[118,1,136,1],[118,2,136,2],[137,1,140,1],[137,2,140,2],[141,1,143,1],[141,2,143,2],[144,1,149,1],[144,2,149,2],[150,1,151,1],[150,2,151,2],[152,1,156,1],[152,2,156,2],[157,1,172,1],[157,2,172,2],[173,1,174,1],[173,2,174,2],[175,1,197,1],[175,2,197,2],[198,1,205,1],[198,2,205,2],[206,1,222,1],[206,2,222,2],[223,1,227,1],[223,2,227,2],[228,1,278,1],[228,2,278,2],[280,1,409,1],[280,2,409,2],[410,1,461,1],[410,2,461,2],[462,1,463,1],[462,2,463,2],[464,1,469,1],[464,2,469,2],[470,1,472,1],[470,2,472,2],[473,1,488,1],[473,2,488,2],[489,1,498,1],[489,2,498,2],[499,1,501,1],[499,2,501,2],[502,1,503,1],[502,2,503,2],[504,1,561,1],[504,2,561,2],[563,1,569,1],[563,2,569,2],[570,1,578,1],[570,2,578,2],[579,1,585,1],[579,2,585,2],[586,1,644,1],[586,2,644,2],[645,1,663,1],[645,2,663,2],[664,1,691,1],[664,2,691,2],[692,1,719,1],[692,2,719,2],[720,1,789,1],[720,2,789,2],[790,1,799,1],[790,2,799,2],[800,1,808,1],[800,2,808,2],[809,1,813,1],[809,2,813,2],[814,1,822,1],[814,2,822,2],[823,1,845,1],[823,2,845,2],[846,1,854,1],[846,2,854,2],[855,1,865,1],[855,2,865,2],[866,1,874,1],[866,2,874,2],[875,1,877,1],[875,2,877,2],[878,0,878,4]]}
["2024年封丘县土地流转奖补项目公告公示明细表（1）"]
["日期：","2024年6月18日-28日",{"$nulls":8},"            单位：元"]
["序号","项目 名称","建设内容","乡（镇）村","户 名","流转土地面积（亩）","补助标准","补助金额","资金来源","建设期限","绩效目标","利益联结机制","备注"]
[1,"封丘县王村乡（携缘合种植专业合作社）土地流转奖补项目","对经营主体和11户流转土地的贫困户进行奖补，流转土地51.54亩。","王村乡北孟庄村","边亮",8.49,"贫困户每亩补助200元",{"v":1698,"d":"1698.00"},"衔接资金","2024年1月-12月","通过土地流转使享受政策的建档立卡户每亩增收200元，经营主体每亩补助300元。","项目实施将带动低收入人口增加收入，增加务工就业机会，群众满意。"]
[2,null,null,"王村乡北孟庄村","陈喜梅",1.19,"贫困户每亩补助200元",{"v":238,"d":"238.00"},"衔接资金","2024年1月-12月","通过土地流转使享受政策的建档立卡户每亩增收200元，经营主体每亩补助300元。","项目实施将带动低收入人口增加收入，增加务工就业机会，群众满意。"]
[3,null,null,"王村乡北孟庄村","刘举胜",6.5,"贫困户每亩补助200元",{"v":1300,"d":"1300.00"},"衔接资金","2024年1月-12月","通过土地流转使享受政策的建档立卡户每亩增收200元，经营主体每亩补助300元。","项目实施将带动低收入人口增加收入，增加务工就业机会，群众满意。"]
[4,null,null,"王村乡北孟庄村","刘士正",2.03,"贫困户每亩补助200元",{"v":406,"d":"406.00"},"衔接资金","2024年1月-12月","通过土地流转使享受政策的建档立卡户每亩增收200元，经营主体每亩补助300元。","项目实施将带动低收入人口增加收入，增加务工就业机会，群众满意。"]
[5,null,null,"王村乡北孟庄村","刘传路",3.42,"贫困户每亩补助200元",{"v":684,"d":"684.00"},"衔接资金","2024年1月-12月","通过土地流转使享受政策的建档立卡户每亩增收200元，经营主体每亩补助300元。","项目实施将带动低收入人口增加收入，增加务工就业机会，群众满意。"]
[6,null,null,"王村乡北孟庄村","刘勋正",6.5,"贫困户每亩补助200元",{"v":1300,"d":"1300.00"},"衔接资金","2024年1月-12月","通过土地流转使享受政策的建档立卡户每亩增收200元，经营主体每亩补助300元。","项目实施将带动低收入人口增加收入，增加务工就业机会，群众满意。"]
[7,null,null,"王村乡北孟庄村","汪树芹",4.8,"贫困户每亩补助200元",{"v":960,"d":"960.00"},"衔接资金","2024年1月-12月","通过土地流转使享受政策的建档立卡户每亩增收200元，经营主体每亩补助300元。","项目实施将带动低收入人口增加收入，增加务工就业机会，群众满意。"]
[8,null,null,"王村乡北孟庄村","马秀真",1.07,"贫困户每亩补助200元",{"v":214,"d":"214.00"},"衔接资金","2024年1月-12月","通过土地流转使享受政策的建档立卡户每亩增收200元，经营主体每亩补助300元。","项目实施将带动低收入人口增加收入，增加务工就业机会，群众满意。"]
[9,null,null,"王村乡北孟庄村","刘万正",2.4,"贫困户每亩补助200元",{"v":480,"d":"480.00"},"衔接资金","2024年1月-12月","通过土地流转使享受政策的建档立卡户每亩增收200元，经营主体每亩补助300元。","项目实施将带动低收入人口增加收入，增加务工就业机会，群众满意。"]
[10,null,null,"王村乡北孟庄村","刘学正",4,"贫困户每亩补助200元",{"v":800,"d":"800.00"},"衔接资金","2024年1月-12月","通过土地流转使享受政策的建档立卡户每亩增收200元，经营主体每亩补助300元。","项目实施将带动低收入人口增加收入，增加务工就业机会，群众满意。"]
[11,null,null,"王村乡北孟庄村","边玉峰",7.2,"贫困户每亩补助200元",{"v":1440,"d":"1440.00"},"衔接资金","2024年1月-12月","通过土地流转使享受政策的建档立卡户每亩增收200元，经营主体每亩补助300元。","项目实施将带动低收入人口增加收入，增加务工就业机会，群众满意。"]
[12,"封丘县王村乡（喜相逢种植专业合作社）土地流转奖补项目","对经营主体和2户流转土地的贫困户进行奖补，流转土地7.8亩。","王村乡尚庄村","季荣安",5.16,"贫困户每亩补助200元",{"v":1032,"d":"1032.00"},"衔接资金","2024年1月-12月","通过土地流转使享受政策的建档立卡户每亩增收200元，经营主体每亩补助300元。","项目实施将带动低收入人口增加收入，增加务工就业机会，群众满意。"]
[13,null,null,"王村乡尚庄村","杜义章",2.64,"贫困户每亩补助200元",{"v":528,"d":"528.00"},"衔接资金","2024年1月-12月","通过土地流转使享受政策的建档立卡户每亩增收200元，经营主体每亩补助300元。","项目实施将带动低收入人口增加收入，增加务工就业机会，群众满意。"]
[14,"封丘县黄陵镇（建伟农业家庭农场）土地流转奖补项目","对经营主体和3户流转土地的贫困户进行奖补，流转土地17.53亩。","黄陵镇陈寨村","陈付运",6.03,"贫困户每亩补助200元",{"v":1206,"d":"1206.00"},"衔接资金","2023年1月-12月","通过土地流转使享受政策的建档立卡户每亩增收200元，经营主体每亩补助300元。","项目实施将带动低收入人口增加收入，增加务工就业机会，群众满意。"]
[15,null,null,"黄陵镇陈寨村","陈学亮",3.3,"贫困户每亩补助200元",{"v":660,"d":"660.00"},"衔接资金","2023年1月-12月","通过土地流转使享受政策的建档立卡户每亩增收200元，经营主体每亩补助300元。","项目实施将带动低收入人口增加收入，增加务工就业机会，群众满意。"]
[16,null,null,"黄陵镇陈寨村","李长莲",8.2,"贫困户每亩补助200元",{"v":1640,"d":"1640.00"},"衔接资金","2023年1月-12月","通过土地流转使享受政策的建档立卡户每亩增收200元，经营主体每亩补助300元。","项目实施将带动低收入人口增加收入，增加务工就业机会，群众满意。"]
[17,"封丘县黄陵镇（献振种植专业合作社）土地流转奖补项目","对经营主体和10户流转土地的贫困户进行奖补，流转土地28.98亩。","黄陵镇高村","李守潮",2.1,"贫困户每亩补助200元",{"v":420,"d":"420.00"},"衔接资金","2023年1月-12月","通过土地流转使享受政策的建档立卡户每亩增收200元，经营主体每亩补助300元。","项目实施将带动低收入人口增加收入，增加务工就业机会，群众满意。"]
[18,null,null,"黄陵镇高村","李廷振",1.8,"贫困户每亩补助200元",{"v":360,"d":"360.00"},"衔接资金","2023年1月-12月","通过土地流转使享受政策的建档立卡户每亩增收200元，经营主体每亩补助300元。","项目实施将带动低收入人口增加收入，增加务工就业机会，群众满意。"]
[19,null,null,"黄陵镇高村","李守田",6,"贫困户每亩补助200元",{"v":1200,"d":"1200.00"},"衔接资金","2023年1月-12月","通过土地流转使享受政策的建档立卡户每亩增收200元，经营主体每亩补助300元。","项目实施将带动低收入人口增加收入，增加务工就业机会，群众满意。"]
[20,null,null,"黄陵镇高村","孙留记",2.25,"贫困户每亩补助200元",{"v":450,"d":"450.00"},"衔接资金","2023年1月-12月","通过土地流转使享受政策的建档立卡户每亩增收200元，经营主体每亩补助300元。","项目实施将带动低收入人口增加收入，增加务工就业机会，群众满意。"]
[21,null,null,"黄陵镇高村","李守根",5.07,"贫困户每亩补助200元",{"v":1014,"d":"1014.00"},"衔接资金","2023年1月-12月","通过土地流转使享受政策的建档立卡户每亩增收200元，经营主体每亩补助300元。","项目实施将带动低收入人口增加收入，增加务工就业机会，群众满意。"]
[22,null,null,"黄陵镇高村","李守坤",2.9,"贫困户每亩补助200元",{"v":580,"d":"580.00"},"衔接资金","2023年1月-12月","通过土地流转使享受政策的建档立卡户每亩增收200元，经营主体每亩补助300元。","项目实施将带动低收入人口增加收入，增加务工就业机会，群众满意。"]
[23,null,null,"黄陵镇高村","刘景连",2.54,"贫困户每亩补助200元",{"v":508,"d":"508.00"},"衔接资金","2023年1月-12月","通过土地流转使享受政策的建档立卡户每亩增收200元，经营主体每亩补助300元。","项目实施将带动低收入人口增加收入，增加务工就业机会，群众满意。"]
[24,null,null,"黄陵镇高村","韩同卫",2.64,"贫困户每亩补助200元",{"v":528,"d":"528.00"},"衔接资金","2023年1月-12月","通过土地流转使享受政策的建档立卡户每亩增收200元，经营主体每亩补助300元。","项目实施将带动低收入人口增加收入，增加务工就业机会，群众满意。"]
[25,null,null,"黄陵镇高村","李守平",2.71,"贫困户每亩补助200元",{"v":542,"d":"542.00"},"衔接资金","2023年1月-12月","通过土地流转使享受政策的建档立卡户每亩增收200元，经营主体每亩补助300元。","项目实施将带动低收入人口增加收入，增加务工就业机会，群众满意。"]
[26,null,null,"黄陵镇高村","孙正国",0.97,"贫困户每亩补助200元",{"v":194,"d":"194.00"},"衔接资金","2023年1月-12月","通过土地流转使享受政策的建档立卡户每亩增收200元，经营主体每亩补助300元。","项目实施将带动低收入人口增加收入，增加务工就业机会，群众满意。"]
[27,"封丘县黄陵镇（胜源种植场）土地流转奖补项目","对经营主体和13户流转土地的贫困户进行奖补，流转土地67.77亩。","黄陵镇平街村","李性银",1.5,"贫困户每亩补助200元",300,"衔接资金","2024年1月-12月","通过土地流转使享受政策的建档立卡户每亩增收200元，经营主体每亩补助300元。","项目实施将带动低收入人口增加收入，增加务工就业机会，群众满意。"]
[28,null,null,"黄陵镇平街村","李书贤",2.19,"贫困户每亩补助200元",438,"衔接资金","2024年1月-12月","通过土地流转使享受政策的建档立卡户每亩增收200元，经营主体每亩补助300元。","项目实施将带动低收入人口增加收入，增加务工就业机会，群众满意。"]
[29,null,null,"黄陵镇平街村","李书民",2.9,"贫困户每亩补助200元",580,"衔接资金","2024年1月-12月","通过土地流转使享受政策的建档立卡户每亩增收200元，经营主体每亩补助300元。","项目实施将带动低收入人口增加收入，增加务工就业机会，群众满意。"]
[30,null,null,"黄陵镇平街村","李保平",3.69,"贫困户每亩补助200元",738,"衔接资金","2024年1月-12月","通过土地流转使享受政策的建档立卡户每亩增收200元，经营主体每亩补助300元。","项目实施将带动低收入人口增加收入，增加务工就业机会，群众满意。"]
[31,null,null,"黄陵镇平街村","李性亮",1.62,"贫困户每亩补助200元",324,"衔接资金","2024年1月-12月","通过土地流转使享受政策的建档立卡户每亩增收200元，经营主体每亩补助300元。","项目实施将带动低收入人口增加收入，增加务工就业机会，群众满意。"]
[32,null,null,"黄陵镇平街村","李东海",{"$f":"2.13+2+3.05","v":7.18},"贫困户每亩补助200元",1436,"衔接资金","2024年1月-12月","通过土地流转使享受政策的建档立卡户每亩增收200元，经营主体每亩补助300元。","项目实施将带动低收入人口增加收入，增加务工就业机会，群众满意。"]
[33,null,null,"黄陵镇平街村","于运辉",18.74,"贫困户每亩补助200元",3748,"衔接资金","2024年1月-12月","通过土地流转使享受政策的建档立卡户每亩增收200元，经营主体每亩补助300元。","项目实施将带动低收入人口增加收入，增加务工就业机会，群众满意。"]
[34,null,null,"黄陵镇平街村","李性江",9.65,"贫困户每亩补助200元",1930,"衔接资金","2024年1月-12月","通过土地流转使享受政策的建档立卡户每亩增收200元，经营主体每亩补助300元。","项目实施将带动低收入人口增加收入，增加务工就业机会，群众满意。"]
[35,null,null,"黄陵镇平街村","李广河",{"$f":"2.71+2.58","v":5.29},"贫困户每亩补助200元",1058,"衔接资金","2024年1月-12月","通过土地流转使享受政策的建档立卡户每亩增收200元，经营主体每亩补助300元。","项目实施将带动低收入人口增加收入，增加务工就业机会，群众满意。"]
[36,null,null,"黄陵镇平街村","于运生",2.5,"贫困户每亩补助200元",500,"衔接资金","2024年1月-12月","通过土地流转使享受政策的建档立卡户每亩增收200元，经营主体每亩补助300元。","项目实施将带动低收入人口增加收入，增加务工就业机会，群众满意。"]
[37,null,null,"黄陵镇平街村","李书岭",5.22,"贫困户每亩补助200元",1044,"衔接资金","2024年1月-12月","通过土地流转使享受政策的建档立卡户每亩增收200元，经营主体每亩补助300元。","项目实施将带动低收入人口增加收入，增加务工就业机会，群众满意。"]
[38,null,null,"黄陵镇平街村","李书仁",4.88,"贫困户每亩补助200元",976,"衔接资金","2024年1月-12月","通过土地流转使享受政策的建档立卡户每亩增收200元，经营主体每亩补助300元。","项目实施将带动低收入人口增加收入，增加务工就业机会，群众满意。"]
[39,null,null,"黄陵镇平街村","李书奇",2.41,"贫困户每亩补助200元",482,"衔接资金","2024年1月-12月","通过土地流转使享受政策的建档立卡户每亩增收200元，经营主体每亩补助300元。","项目实施将带动低收入人口增加收入，增加务工就业机会，群众满意。"]
[40,"封丘县鲁岗镇（中俊种植农场）土地流转奖补项目","对经营主体和4户流转土地的贫困户进行奖补，流转土地 20.64亩。","鲁岗镇和寨村","钟天许",5,"贫困户每亩补助200元",1000,"衔接资金","2024年1月-12月","通过土地流转使享受政策的建档立卡户每亩增收200元，经营主体每亩补助300元。","项目实施将带动低收入人口增加收入，增加务工就业机会，群众满意。"]
[41,null,null,"鲁岗镇和寨村","陈庆轩",4.72,"贫困户每亩补助200元",944,"衔接资金","2024年1月-12月","通过土地流转使享受政策的建档立卡户每亩增收200元，经营主体每亩补助300元。","项目实施将带动低收入人口增加收入，增加务工就业机会，群众满意。"]
[42,null,null,"鲁岗镇和寨村","张秀芝",6.72,"贫困户每亩补助200元",1344,"衔接资金","2024年1月-12月","通过土地流转使享受政策的建档立卡户每亩增收200元，经营主体每亩补助300元。","项目实施将带动低收入人口增加收入，增加务工就业机会，群众满意。"]
[43,null,null,"鲁岗镇和寨村","陈庆然",4.2,"贫困户每亩补助200元",840,"衔接资金","2024年1月-12月","通过土地流转使享受政策的建档立卡户每亩增收200元，经营主体每亩补助300元。","项目实施将带动低收入人口增加收入，增加务工就业机会，群众满意。"]
[44,"封丘县鲁岗镇（广记种植场）土地流转奖补项目","对经营主体和1户流转土地的贫困户进行奖补，流转土地 5亩。","鲁岗镇东马庄村","聂登科",5,"贫困户每亩补助200元",1000,"衔接资金","2024年1月-12月","通过土地流转使享受政策的建档立卡户每亩增收200元，经营主体每亩补助300元。","项目实施将带动低收入人口增加收入，增加务工就业机会，群众满意。"]
[45,"封丘县鲁岗镇（梓钰种植专业合作社）土地流转奖补项目","对经营主体和13户流转土地的贫困户进行奖补，流转土地 15.7亩。","鲁岗镇白店村","郝金天",1.12,"贫困户每亩补助200元",224,"衔接资金","2024年1月-12月","通过土地流转使享受政策的建档立卡户每亩增收200元，经营主体每亩补助300元。","项目实施将带动低收入人口增加收入，增加务工就业机会，群众满意。"]
[46,null,null,"鲁岗镇白店村","郝书云",2.27,"贫困户每亩补助200元",454,"衔接资金","2024年1月-12月","通过土地流转使享受政策的建档立卡户每亩增收200元，经营主体每亩补助300元。","项目实施将带动低收入人口增加收入，增加务工就业机会，群众满意。"]
[47,null,null,"鲁岗镇白店村","孟祥龙",1.69,"贫困户每亩补助200元",338,"衔接资金","2024年1月-12月","通过土地流转使享受政策的建档立卡户每亩增收200元，经营主体每亩补助300元。","项目实施将带动低收入人口增加收入，增加务工就业机会，群众满意。"]
[48,null,null,"鲁岗镇白店村","孟庆力",1.77,"贫困户每亩补助200元",354,"衔接资金","2024年1月-12月","通过土地流转使享受政策的建档立卡户每亩增收200元，经营主体每亩补助300元。","项目实施将带动低收入人口增加收入，增加务工就业机会，群众满意。"]
[49,null,null,"鲁岗镇白店村","孟庆荣",1.72,"贫困户每亩补助200元",344,"衔接资金","2024年1月-12月","通过土地流转使享受政策的建档立卡户每亩增收200元，经营主体每亩补助300元。","项目实施将带动低收入人口增加收入，增加务工就业机会，群众满意。"]
[50,null,null,"鲁岗镇白店村","孟庆连",1.55,"贫困户每亩补助200元",310,"衔接资金","2024年1月-12月","通过土地流转使享受政策的建档立卡户每亩增收200元，经营主体每亩补助300元。","项目实施将带动低收入人口增加收入，增加务工就业机会，群众满意。"]
[51,null,null,"鲁岗镇白店村","李学川",0.81,"贫困户每亩补助200元",162,"衔接资金","2024年1月-12月","通过土地流转使享受政策的建档立卡户每亩增收200元，经营主体每亩补助300元。","项目实施将带动低收入人口增加收入，增加务工就业机会，群众满意。"]
[52,null,null,"鲁岗镇白店村","李学宽",0.49,"贫困户每亩补助200元",98,"衔接资金","2024年1月-12月","通过土地流转使享受政策的建档立卡户每亩增收200元，经营主体每亩补助300元。","项目实施将带动低收入人口增加收入，增加务工就业机会，群众满意。"]
[53,null,null,"鲁岗镇白店村","李学轩",0.41,"贫困户每亩补助200元",82,"衔接资金","2024年1月-12月","通过土地流转使享受政策的建档立卡户每亩增收200元，经营主体每亩补助300元。","项目实施将带动低收入人口增加收入，增加务工就业机会，群众满意。"]
[54,null,null,"鲁岗镇白店村","刘军臣",0.09,"贫困户每亩补助200元",18,"衔接资金","2024年1月-12月","通过土地流转使享受政策的建档立卡户每亩增收200元，经营主体每亩补助300元。","项目实施将带动低收入人口增加收入，增加务工就业机会，群众满意。"]
[55,null,null,"鲁岗镇白店村","张春学",0.28,"贫困户每亩补助200元",56,"衔接资金","2024年1月-12月","通过土地流转使享受政策的建档立卡户每亩增收200元，经营主体每亩补助300元。","项目实施将带动低收入人口增加收入，增加务工就业机会，群众满意。"]
[56,null,null,"鲁岗镇白店村","孟祥群",2.2,"贫困户每亩补助200元",440,"衔接资金","2024年1月-12月","通过土地流转使享受政策的建档立卡户每亩增收200元，经营主体每亩补助300元。","项目实施将带动低收入人口增加收入，增加务工就业机会，群众满意。"]
[57,null,null,"鲁岗镇白店村","孟凡江",1.38,"贫困户每亩补助200元",276,"衔接资金","2024年1月-12月","通过土地流转使享受政策的建档立卡户每亩增收200元，经营主体每亩补助300元。","项目实施将带动低收入人口增加收入，增加务工就业机会，群众满意。"]
[58,"封丘县鲁岗镇（客之家家庭农场）土地流转奖补项目","对经营主体和1户流转土地的贫困户进行奖补，流转土地3.29亩。","鲁岗镇鲁岗村","李素萍",3.29,"贫困户每亩补助200元",658,"衔接资金","2024年1月-12月","通过土地流转使享受政策的建档立卡户每亩增收200元，经营主体每亩补助300元。","项目实施将带动低收入人口增加收入，增加务工就业机会，群众满意。"]
[59,"封丘县居厢镇（庆富金银花种植专业合作社）土地流转奖补项目","对经营主体和9户流转土地的贫困户进行奖补，流转土地89.92亩。","居厢镇纪店村","李庆有",6.29,"贫困户每亩补助200元",1258,"衔接资金","2024年1月-12月","通过土地流转使享受政策的建档立卡户每亩增收200元，经营主体每亩补助300元。","项目实施将带动低收入人口增加收入，增加务工就业机会，群众满意。"]
[60,null,null,"居厢镇纪店村","马占国",5.39,"贫困户每亩补助200元",1078,"衔接资金","2024年1月-12月","通过土地流转使享受政策的建档立卡户每亩增收200元，经营主体每亩补助300元。","项目实施将带动低收入人口增加收入，增加务工就业机会，群众满意。"]
[61,null,null,"居厢镇纪店村","高香粉",13.95,"贫困户每亩补助200元",2790,"衔接资金","2024年1月-12月","通过土地流转使享受政策的建档立卡户每亩增收200元，经营主体每亩补助300元。","项目实施将带动低收入人口增加收入，增加务工就业机会，群众满意。"]
[62,null,null,"居厢镇纪店村","张祖海",{"v":13.7,"d":"13.70"},"贫困户每亩补助200元",2740,"衔接资金","2024年1月-12月","通过土地流转使享受政策的建档立卡户每亩增收200元，经营主体每亩补助300元。","项目实施将带动低收入人口增加收入，增加务工就业机会，群众满意。"]
[63,null,null,"居厢镇纪店村","赵书宝",12.17,"贫困户每亩补助200元",2434,"衔接资金","2024年1月-12月","通过土地流转使享受政策的建档立卡户每亩增收200元，经营主体每亩补助300元。","项目实施将带动低收入人口增加收入，增加务工就业机会，群众满意。"]
[64,null,null,"居厢镇纪店村","郑新艾",12.06,"贫困户每亩补助200元",2412,"衔接资金","2024年1月-12月","通过土地流转使享受政策的建档立卡户每亩增收200元，经营主体每亩补助300元。","项目实施将带动低收入人口增加收入，增加务工就业机会，群众满意。"]
[65,null,null,"居厢镇纪店村","李少勤",8.06,"贫困户每亩补助200元",1612,"衔接资金","2024年1月-12月","通过土地流转使享受政策的建档立卡户每亩增收200元，经营主体每亩补助300元。","项目实施将带动低收入人口增加收入，增加务工就业机会，群众满意。"]
[66,null,null,"居厢镇纪店村","赵伟",7.97,"贫困户每亩补助200元",1594,"衔接资金","2024年1月-12月","通过土地流转使享受政策的建档立卡户每亩增收200元，经营主体每亩补助300元。","项目实施将带动低收入人口增加收入，增加务工就业机会，群众满意。"]
[67,null,null,"居厢镇纪店村","赵张岭",10.33,"贫困户每亩补助200元",2066,"衔接资金","2024年1月-12月","通过土地流转使享受政策的建档立卡户每亩增收200元，经营主体每亩补助300元。","项目实施将带动低收入人口增加收入，增加务工就业机会，群众满意。"]
[68,"封丘县居厢镇（济钦种植家庭农场）土地流转奖补项目","对经营主体1户流转土地的贫困户进行奖补，流转土地8.36亩。","居厢镇河东村","樊彦中",8.36,"贫困户每亩补助200元",1672,"衔接资金","2024年1月-12月","通过土地流转使享受政策的建档立卡户每亩增收200元，经营主体每亩补助300元。","项目实施将带动低收入人口增加收入，增加务工就业机会，群众满意。"]
[69,"封丘县黄德镇(鑫豫种植专业合作社)土地流转奖补项目","对经营主体和5户流转土地的贫困户进行奖补，流转土地38.8亩。","黄德镇黄德村","于际忠",8.5,"贫困户每亩补助200元",1700,"衔接资金","2024年1月-12月","通过土地流转使享受政策的建档立卡户每亩增收200元，经营主体每亩补助300元。","项目实施将带动低收入人口增加收入，增加务工就业机会，群众满意。"]
[70,null,null,"黄德镇黄德村","赵启营",6.7,"贫困户每亩补助200元",1340,"衔接资金","2024年1月-13月","通过土地流转使享受政策的建档立卡户每亩增收200元，经营主体每亩补助300元。","项目实施将带动低收入人口增加收入，增加务工就业机会，群众满意。"]
[71,null,null,"黄德镇黄德村","靳红荣",4.6,"贫困户每亩补助200元",920,"衔接资金","2024年1月-14月","通过土地流转使享受政策的建档立卡户每亩增收200元，经营主体每亩补助300元。","项目实施将带动低收入人口增加收入，增加务工就业机会，群众满意。"]
[72,null,null,"黄德镇黄德村","张明堂",5.7,"贫困户每亩补助200元",1140,"衔接资金","2024年1月-15月","通过土地流转使享受政策的建档立卡户每亩增收200元，经营主体每亩补助300元。","项目实施将带动低收入人口增加收入，增加务工就业机会，群众满意。"]
[73,null,null,"黄德镇黄德村","杨长治",13.3,"贫困户每亩补助200元",2660,"衔接资金","2024年1月-16月","通过土地流转使享受政策的建档立卡户每亩增收200元，经营主体每亩补助300元。","项目实施将带动低收入人口增加收入，增加务工就业机会，群众满意。"]
[74,null,"对经营主体和1户流转土地的贫困户进行奖补，流转土地9.4 亩。","黄德镇文岩村","于明琴",9.4,"贫困户每亩补助200元",1880,"衔接资金","2024年1月-17月","通过土地流转使享受政策的建档立卡户每亩增收200元，经营主体每亩补助300元。","项目实施将带动低收入人口增加收入，增加务工就业机会，群众满意。"]
[75,"封丘县黄德镇(黄河古道生态农业发展有限公司）土地流转奖补项目","对经营主体和7户流转土地的贫困户进行奖补，流转土地48.02亩。","黄德镇蒋西村","邢素英",3.57,"贫困户每亩补助200元",714,"衔接资金","2024年1月-18月","通过土地流转使享受政策的建档立卡户每亩增收200元，经营主体每亩补助300元。","项目实施将带动低收入人口增加收入，增加务工就业机会，群众满意。"]
[76,null,null,"黄德镇蒋西村","董治先",2.17,"贫困户每亩补助200元",434,"衔接资金","2024年1月-19月","通过土地流转使享受政策的建档立卡户每亩增收200元，经营主体每亩补助300元。","项目实施将带动低收入人口增加收入，增加务工就业机会，群众满意。"]
[77,null,null,"黄德镇蒋西村","卢秋山",2.5,"贫困户每亩补助200元",500,"衔接资金","2024年1月-20月","通过土地流转使享受政策的建档立卡户每亩增收200元，经营主体每亩补助300元。","项目实施将带动低收入人口增加收入，增加务工就业机会，群众满意。"]
[78,null,null,"黄德镇蒋西村","牛建志",5.82,"贫困户每亩补助200元",1164,"衔接资金","2024年1月-21月","通过土地流转使享受政策的建档立卡户每亩增收200元，经营主体每亩补助300元。","项目实施将带动低收入人口增加收入，增加务工就业机会，群众满意。"]
[79,null,null,"黄德镇蒋西村","王天民",15.47,"贫困户每亩补助200元",3094,"衔接资金","2024年1月-22月","通过土地流转使享受政策的建档立卡户每亩增收200元，经营主体每亩补助300元。","项目实施将带动低收入人口增加收入，增加务工就业机会，群众满意。"]
[80,null,null,"黄德镇蒋西村","刘成社",7.26,"贫困户每亩补助200元",1452,"衔接资金","2024年1月-23月","通过土地流转使享受政策的建档立卡户每亩增收200元，经营主体每亩补助300元。","项目实施将带动低收入人口增加收入，增加务工就业机会，群众满意。"]
[81,null,null,"黄德镇蒋西村","齐风花",11.23,"贫困户每亩补助200元",2246,"衔接资金","2024年1月-24月","通过土地流转使享受政策的建档立卡户每亩增收200元，经营主体每亩补助300元。","项目实施将带动低收入人口增加收入，增加务工就业机会，群众满意。"]
[82,"封丘县荆隆宫乡(宏晟家庭农场)土地流转奖补项目","对经营主体和3户流转土地的贫困户进行奖补，流转土地22.49亩。","荆隆宫乡水驿村","杨树祥",4,"贫困户每亩补助200元",800,"衔接资金","2024年1月-12月","通过土地流转使享受政策的建档立卡户每亩增收200元，经营主体每亩补助300元。","项目实施将带动低收入人口增加收入，增加务工就业机会，群众满意。"]
[83,null,null,"荆隆宫乡水驿村","孙朝仲",8,"贫困户每亩补助200元",1600,"衔接资金","2024年1月-12月","通过土地流转使享受政策的建档立卡户每亩增收200元，经营主体每亩补助300元。","项目实施将带动低收入人口增加收入，增加务工就业机会，群众满意。"]
[84,null,null,"荆隆宫乡水驿村","杨全有",10.49,"贫困户每亩补助200元",2098,"衔接资金","2024年1月-12月","通过土地流转使享受政策的建档立卡户每亩增收200元，经营主体每亩补助300元。","项目实施将带动低收入人口增加收入，增加务工就业机会，群众满意。"]
[85,"封丘县荆隆宫乡(沁雅桃园家庭农场)土地流转奖补项目","对经营主体和1户流转土地的贫困户进行奖补，流转土地6.5亩。","荆隆宫乡小齐寨村","齐明营",6.5,"贫困户每亩补助200元",1300,"衔接资金","2024年1月-12月","通过土地流转使享受政策的建档立卡户每亩增收200元，经营主体每亩补助300元。","项目实施将带动低收入人口增加收入，增加务工就业机会，群众满意。"]
[86,"封丘县荆隆宫乡(携缘合种植专业合作社)土地流转奖补项目","对经营主体和4户流转土地的贫困户进行奖补，流转土地30.65亩。","荆隆宫乡丁庄村","黄振跃",10.14,"贫困户每亩补助200元",2028,"衔接资金","2024年1月-12月","通过土地流转使享受政策的建档立卡户每亩增收200元，经营主体每亩补助300元。","项目实施将带动低收入人口增加收入，增加务工就业机会，群众满意。"]
[87,null,null,"荆隆宫乡丁庄村","蒋国玉",6.76,"贫困户每亩补助200元",1352,"衔接资金","2024年1月-12月","通过土地流转使享受政策的建档立卡户每亩增收200元，经营主体每亩补助300元。","项目实施将带动低收入人口增加收入，增加务工就业机会，群众满意。"]
[88,null,null,"荆隆宫乡丁庄村","王林",8.32,"贫困户每亩补助200元",1664,"衔接资金","2024年1月-12月","通过土地流转使享受政策的建档立卡户每亩增收200元，经营主体每亩补助300元。","项目实施将带动低收入人口增加收入，增加务工就业机会，群众满意。"]
[89,null,null,"荆隆宫乡丁庄村","杜山",5.43,"贫困户每亩补助200元",1086,"衔接资金","2024年1月-12月","通过土地流转使享受政策的建档立卡户每亩增收200元，经营主体每亩补助300元。","项目实施将带动低收入人口增加收入，增加务工就业机会，群众满意。"]
[90,"封丘县荆隆宫乡(永顺种植专业合作社)土地流转奖补项目","对经营主体和8户流转土地的贫困户进行奖补，流转土地76.3亩。","荆隆宫乡西辛庄村","翟孝荣",5,"贫困户每亩补助200元",1000,"衔接资金","2024年1月-12月","通过土地流转使享受政策的建档立卡户每亩增收200元，经营主体每亩补助300元。","项目实施将带动低收入人口增加收入，增加务工就业机会，群众满意。"]
[91,null,null,"荆隆宫乡西辛庄村","刘青平",7.1,"贫困户每亩补助200元",1420,"衔接资金","2024年1月-12月","通过土地流转使享受政策的建档立卡户每亩增收200元，经营主体每亩补助300元。","项目实施将带动低收入人口增加收入，增加务工就业机会，群众满意。"]
[92,null,null,"荆隆宫乡西辛庄村","王松",10.3,"贫困户每亩补助200元",2060,"衔接资金","2024年1月-12月","通过土地流转使享受政策的建档立卡户每亩增收200元，经营主体每亩补助300元。","项目实施将带动低收入人口增加收入，增加务工就业机会，群众满意。"]
[93,null,null,"荆隆宫乡西辛庄村","刘振法",12.4,"贫困户每亩补助200元",2480,"衔接资金","2024年1月-12月","通过土地流转使享受政策的建档立卡户每亩增收200元，经营主体每亩补助300元。","项目实施将带动低收入人口增加收入，增加务工就业机会，群众满意。"]
[94,null,null,"荆隆宫乡西辛庄村","刘仓洲",11.8,"贫困户每亩补助200元",2360,"衔接资金","2024年1月-12月","通过土地流转使享受政策的建档立卡户每亩增收200元，经营主体每亩补助300元。","项目实施将带动低收入人口增加收入，增加务工就业机会，群众满意。"]
[95,null,null,"荆隆宫乡西辛庄村","刘振顺",8.1,"贫困户每亩补助200元",1620,"衔接资金","2024年1月-12月","通过土地流转使享受政策的建档立卡户每亩增收200元，经营主体每亩补助300元。","项目实施将带动低收入人口增加收入，增加务工就业机会，群众满意。"]
[96,null,null,"荆隆宫乡西辛庄村","刘万顺",12.6,"贫困户每亩补助200元",2520,"衔接资金","2024年1月-12月","通过土地流转使享受政策的建档立卡户每亩增收200元，经营主体每亩补助300元。","项目实施将带动低收入人口增加收入，增加务工就业机会，群众满意。"]
[97,null,null,"荆隆宫乡西辛庄村","刘建华",9,"贫困户每亩补助200元",1800,"衔接资金","2024年1月-12月","通过土地流转使享受政策的建档立卡户每亩增收200元，经营主体每亩补助300元。","项目实施将带动低收入人口增加收入，增加务工就业机会，群众满意。"]
[98,"封丘县荆隆宫乡(乃海种植专业合作社)土地流转奖补项目","对经营主体和8户流转土地的贫困户进行奖补，流转土地63.1亩。","荆隆宫乡大王庄村","张乃龙",10,"贫困户每亩补助200元",2000,"衔接资金","2024年1月-12月","通过土地流转使享受政策的建档立卡户每亩增收200元，经营主体每亩补助300元。","项目实施将带动低收入人口增加收入，增加务工就业机会，群众满意。"]
[99,null,null,"荆隆宫乡大王庄村","张天明",13,"贫困户每亩补助200元",2600,"衔接资金","2024年1月-12月","通过土地流转使享受政策的建档立卡户每亩增收200元，经营主体每亩补助300元。","项目实施将带动低收入人口增加收入，增加务工就业机会，群众满意。"]
[100,null,null,"荆隆宫乡大王庄村","张乃春",7,"贫困户每亩补助200元",1400,"衔接资金","2024年1月-12月","通过土地流转使享受政策的建档立卡户每亩增收200元，经营主体每亩补助300元。","项目实施将带动低收入人口增加收入，增加务工就业机会，群众满意。"]
[101,null,null,"荆隆宫乡大王庄村","张胜",3.5,"贫困户每亩补助200元",700,"衔接资金","2024年1月-12月","通过土地流转使享受政策的建档立卡户每亩增收200元，经营主体每亩补助300元。","项目实施将带动低收入人口增加收入，增加务工就业机会，群众满意。"]
[102,null,null,"荆隆宫乡大王庄村","张天本",9,"贫困户每亩补助200元",1800,"衔接资金","2024年1月-12月","通过土地流转使享受政策的建档立卡户每亩增收200元，经营主体每亩补助300元。","项目实施将带动低收入人口增加收入，增加务工就业机会，群众满意。"]
[103,null,null,"荆隆宫乡大王庄村","张乃树",5,"贫困户每亩补助200元",1000,"衔接资金","2024年1月-12月","通过土地流转使享受政策的建档立卡户每亩增收200元，经营主体每亩补助300元。","项目实施将带动低收入人口增加收入，增加务工就业机会，群众满意。"]
[104,null,null,"荆隆宫乡大王庄村","孙兆安",5.6,"贫困户每亩补助200元",1120,"衔接资金","2024年1月-12月","通过土地流转使享受政策的建档立卡户每亩增收200元，经营主体每亩补助300元。","项目实施将带动低收入人口增加收入，增加务工就业机会，群众满意。"]
[105,null,null,"荆隆宫乡大王庄村","孙喜",10,"贫困户每亩补助200元",2000,"衔接资金","2024年1月-12月","通过土地流转使享受政策的建档立卡户每亩增收200元，经营主体每亩补助300元。","项目实施将带动低收入人口增加收入，增加务工就业机会，群众满意。"]
[106,"河南荆隆宫乡(黄池农业发展有限公司)土地流转奖补项目","对经营主体和10户流转土地的贫困户进行奖补，流转土地58.1亩。","荆隆宫乡后桑园村","温治峰",12.3,"贫困户每亩补助200元",2460,"衔接资金","2024年1月-12月","通过土地流转使享受政策的建档立卡户每亩增收200元，经营主体每亩补助300元。","项目实施将带动低收入人口增加收入，增加务工就业机会，群众满意。"]
[107,null,null,"荆隆宫乡后桑园村","温义州",4.3,"贫困户每亩补助200元",860,"衔接资金","2024年1月-12月","通过土地流转使享受政策的建档立卡户每亩增收200元，经营主体每亩补助300元。","项目实施将带动低收入人口增加收入，增加务工就业机会，群众满意。"]
[108,null,null,"荆隆宫乡后桑园村","屈广勋",7.5,"贫困户每亩补助200元",1500,"衔接资金","2024年1月-12月","通过土地流转使享受政策的建档立卡户每亩增收200元，经营主体每亩补助300元。","项目实施将带动低收入人口增加收入，增加务工就业机会，群众满意。"]
[109,null,null,"荆隆宫乡后桑园村","温亮",4.9,"贫困户每亩补助200元",980,"衔接资金","2024年1月-12月","通过土地流转使享受政策的建档立卡户每亩增收200元，经营主体每亩补助300元。","项目实施将带动低收入人口增加收入，增加务工就业机会，群众满意。"]
[110,null,null,"荆隆宫乡后桑园村","屈广峰",2.5,"贫困户每亩补助200元",500,"衔接资金","2024年1月-12月","通过土地流转使享受政策的建档立卡户每亩增收200元，经营主体每亩补助300元。","项目实施将带动低收入人口增加收入，增加务工就业机会，群众满意。"]
[111,null,null,"荆隆宫乡后桑园村","原传根",11.8,"贫困户每亩补助200元",2360,"衔接资金","2024年1月-12月","通过土地流转使享受政策的建档立卡户每亩增收200元，经营主体每亩补助300元。","项目实施将带动低收入人口增加收入，增加务工就业机会，群众满意。"]
[112,null,null,"荆隆宫乡后桑园村","温河",2.5,"贫困户每亩补助200元",500,"衔接资金","2024年1月-12月","通过土地流转使享受政策的建档立卡户每亩增收200元，经营主体每亩补助300元。","项目实施将带动低收入人口增加收入，增加务工就业机会，群众满意。"]
[113,null,null,"荆隆宫乡后桑园村","温绍全",7.3,"贫困户每亩补助200元",1460,"衔接资金","2024年1月-12月","通过土地流转使享受政策的建档立卡户每亩增收200元，经营主体每亩补助300元。","项目实施将带动低收入人口增加收入，增加务工就业机会，群众满意。"]
[114,null,null,"荆隆宫乡后桑园村","温电军",2.5,"贫困户每亩补助200元",500,"衔接资金","2024年1月-12月","通过土地流转使享受政策的建档立卡户每亩增收200元，经营主体每亩补助300元。","项目实施将带动低收入人口增加收入，增加务工就业机会，群众满意。"]
[115,null,null,"荆隆宫乡后桑园村","温成",2.5,"贫困户每亩补助200元",500,"衔接资金","2024年1月-12月","通过土地流转使享受政策的建档立卡户每亩增收200元，经营主体每亩补助300元。","项目实施将带动低收入人口增加收入，增加务工就业机会，群众满意。"]
[116,"封丘县陈桥镇(陈桥村股份经济合作社)土地流转奖补项目","对经营主体和19户流转土地的贫困户进行奖补，流转土地42.09 亩。","陈桥镇陈桥村","郜树才",0.77,"贫困户每亩补助200元",154,"衔接资金","2024年1月-12月","通过土地流转使享受政策的建档立卡户每亩增收200元，经营主体每亩补助300元。","项目实施将带动低收入人口增加收入，增加务工就业机会，群众满意。"]
[117,null,null,"陈桥镇陈桥村","杨兴",2.05,"贫困户每亩补助200元",410,"衔接资金","2024年1月-12月","通过土地流转使享受政策的建档立卡户每亩增收200元，经营主体每亩补助300元。","项目实施将带动低收入人口增加收入，增加务工就业机会，群众满意。"]
[118,null,null,"陈桥镇陈桥村","王俊",1.3,"贫困户每亩补助200元",{"v":260,"d":"260.00"},"衔接资金","2024年1月-12月","通过土地流转使享受政策的建档立卡户每亩增收200元，经营主体每亩补助300元。","项目实施将带动低收入人口增加收入，增加务工就业机会，群众满意。"]
[119,null,null,"陈桥镇陈桥村","袁振亭",1.34,"贫困户每亩补助200元",{"v":268,"d":"268.00"},"衔接资金","2024年1月-12月","通过土地流转使享受政策的建档立卡户每亩增收200元，经营主体每亩补助300元。","项目实施将带动低收入人口增加收入，增加务工就业机会，群众满意。"]
[120,null,null,"陈桥镇陈桥村","柳丙义",0.9,"贫困户每亩补助200元",{"v":180,"d":"180.00"},"衔接资金","2024年1月-12月","通过土地流转使享受政策的建档立卡户每亩增收200元，经营主体每亩补助300元。","项目实施将带动低收入人口增加收入，增加务工就业机会，群众满意。"]
[121,null,null,"陈桥镇陈桥村","卢文兰",1.8,"贫困户每亩补助200元",{"v":360,"d":"360.00"},"衔接资金","2024年1月-12月","通过土地流转使享受政策的建档立卡户每亩增收200元，经营主体每亩补助300元。","项目实施将带动低收入人口增加收入，增加务工就业机会，群众满意。"]
[122,null,null,"陈桥镇陈桥村","赵红霞",2.33,"贫困户每亩补助200元",{"v":466,"d":"466.00"},"衔接资金","2024年1月-12月","通过土地流转使享受政策的建档立卡户每亩增收200元，经营主体每亩补助300元。","项目实施将带动低收入人口增加收入，增加务工就业机会，群众满意。"]
[123,null,null,"陈桥镇陈桥村","宋银合",5.6,"贫困户每亩补助200元",{"v":1120,"d":"1120.00"},"衔接资金","2024年1月-12月","通过土地流转使享受政策的建档立卡户每亩增收200元，经营主体每亩补助300元。","项目实施将带动低收入人口增加收入，增加务工就业机会，群众满意。"]
[124,null,null,"陈桥镇陈桥村","赵玉梅",1.8,"贫困户每亩补助200元",{"v":360,"d":"360.00"},"衔接资金","2024年1月-12月","通过土地流转使享受政策的建档立卡户每亩增收200元，经营主体每亩补助300元。","项目实施将带动低收入人口增加收入，增加务工就业机会，群众满意。"]
[125,null,null,"陈桥镇陈桥村","芦秀玲",1.5,"贫困户每亩补助200元",{"v":300,"d":"300.00"},"衔接资金","2024年1月-12月","通过土地流转使享受政策的建档立卡户每亩增收200元，经营主体每亩补助300元。","项目实施将带动低收入人口增加收入，增加务工就业机会，群众满意。"]
[126,null,null,"陈桥镇陈桥村","张永胜",1.1,"贫困户每亩补助200元",{"v":220,"d":"220.00"},"衔接资金","2024年1月-12月","通过土地流转使享受政策的建档立卡户每亩增收200元，经营主体每亩补助300元。","项目实施将带动低收入人口增加收入，增加务工就业机会，群众满意。"]
[127,null,null,"陈桥镇陈桥村","范其魁",1.68,"贫困户每亩补助200元",{"v":336,"d":"336.00"},"衔接资金","2024年1月-12月","通过土地流转使享受政策的建档立卡户每亩增收200元，经营主体每亩补助300元。","项目实施将带动低收入人口增加收入，增加务工就业机会，群众满意。"]
[128,null,null,"陈桥镇陈桥村","时风运",1.74,"贫困户每亩补助200元",{"v":348,"d":"348.00"},"衔接资金","2024年1月-12月","通过土地流转使享受政策的建档立卡户每亩增收200元，经营主体每亩补助300元。","项目实施将带动低收入人口增加收入，增加务工就业机会，群众满意。"]
[129,null,null,"陈桥镇陈桥村","雷云",2.15,"贫困户每亩补助200元",{"v":430,"d":"430.00"},"衔接资金","2024年1月-12月","通过土地流转使享受政策的建档立卡户每亩增收200元，经营主体每亩补助300元。","项目实施将带动低收入人口增加收入，增加务工就业机会，群众满意。"]
[130,null,null,"陈桥镇陈桥村","王新才",7.68,"贫困户每亩补助200元",{"v":1536,"d":"1536.00"},"衔接资金","2024年1月-12月","通过土地流转使享受政策的建档立卡户每亩增收200元，经营主体每亩补助300元。","项目实施将带动低收入人口增加收入，增加务工就业机会，群众满意。"]
[131,null,null,"陈桥镇陈桥村","于景生",2.61,"贫困户每亩补助200元",{"v":522,"d":"522.00"},"衔接资金","2024年1月-12月","通过土地流转使享受政策的建档立卡户每亩增收200元，经营主体每亩补助300元。","项目实施将带动低收入人口增加收入，增加务工就业机会，群众满意。"]
[132,null,null,"陈桥镇陈桥村","范振叶",3.74,"贫困户每亩补助200元",{"v":748,"d":"748.00"},"衔接资金","2024年1月-12月","通过土地流转使享受政策的建档立卡户每亩增收200元，经营主体每亩补助300元。","项目实施将带动低收入人口增加收入，增加务工就业机会，群众满意。"]
[133,null,null,"陈桥镇陈桥村","杨国胜",0.7,"贫困户每亩补助200元",{"v":140,"d":"140.00"},"衔接资金","2024年1月-12月","通过土地流转使享受政策的建档立卡户每亩增收200元，经营主体每亩补助300元。","项目实施将带动低收入人口增加收入，增加务工就业机会，群众满意。"]
[134,null,null,"陈桥镇陈桥村","杨军",1.3,"贫困户每亩补助200元",{"v":260,"d":"260.00"},"衔接资金","2024年1月-12月","通过土地流转使享受政策的建档立卡户每亩增收200元，经营主体每亩补助300元。","项目实施将带动低收入人口增加收入，增加务工就业机会，群众满意。"]
[135,"封丘县陈桥镇(盛道生态种植专业合作社)土地流转奖补项目","对经营主体和4户流转土地的贫困户进行奖补，流转土地12.81亩。","陈桥镇贺寨村","李荣",1.74,"贫困户每亩补助200元",348,"衔接资金","2024年1月-12月","通过土地流转使享受政策的建档立卡户每亩增收200元，经营主体每亩补助300元。","项目实施将带动低收入人口增加收入，增加务工就业机会，群众满意。"]
[136,null,null,"陈桥镇贺寨村","卢振波",4.32,"贫困户每亩补助200元",864,"衔接资金","2024年1月-12月","通过土地流转使享受政策的建档立卡户每亩增收200元，经营主体每亩补助300元。","项目实施将带动低收入人口增加收入，增加务工就业机会，群众满意。"]
[137,null,null,"陈桥镇贺寨村","王振勇",3.3,"贫困户每亩补助200元",660,"衔接资金","2024年1月-12月","通过土地流转使享受政策的建档立卡户每亩增收200元，经营主体每亩补助300元。","项目实施将带动低收入人口增加收入，增加务工就业机会，群众满意。"]
[138,null,null,"陈桥镇贺寨村","裴连朵",3.45,"贫困户每亩补助200元",690,"衔接资金","2024年1月-12月","通过土地流转使享受政策的建档立卡户每亩增收200元，经营主体每亩补助300元。","项目实施将带动低收入人口增加收入，增加务工就业机会，群众满意。"]
[139,"封丘县陈固镇(新中土地流转合作社)土地流转奖补项目","对经营主体和3户流转土地的贫困户进行奖补，流转土地17.19亩。","陈固镇东守宫村","冯连香",5.41,"贫困户每亩补助200元",1082,"衔接资金","2023年1月-12月","通过土地流转使享受政策的建档立卡户每亩增收200元，经营主体每亩补助300元。","项目实施将带动低收入人口增加收入，增加务工就业机会，群众满意。"]
[140,null,null,"陈固镇东守宫村","高晓喜",4.28,"贫困户每亩补助200元",856,"衔接资金","2023年1月-12月","通过土地流转使享受政策的建档立卡户每亩增收200元，经营主体每亩补助300元。","项目实施将带动低收入人口增加收入，增加务工就业机会，群众满意。"]
[141,null,null,"陈固镇东守宫村","高其爱",7.5,"贫困户每亩补助200元",1500,"衔接资金","2023年1月-12月","通过土地流转使享受政策的建档立卡户每亩增收200元，经营主体每亩补助300元。","项目实施将带动低收入人口增加收入，增加务工就业机会，群众满意。"]
[142,"封丘县陈固镇(西域土地流转专业合作社)土地流转奖补项目","对经营主体和6户流转土地的贫困户进行奖补，流转土地59.65亩。","陈固镇梅口村","曹国文",15.34,"贫困户每亩补助200元",3068,"衔接资金","2023年1月-12月","通过土地流转使享受政策的建档立卡户每亩增收200元，经营主体每亩补助300元。","项目实施将带动低收入人口增加收入，增加务工就业机会，群众满意。"]
[143,null,null,"陈固镇梅口村","翟振勋",10.94,"贫困户每亩补助200元",2188,"衔接资金","2023年1月-12月","通过土地流转使享受政策的建档立卡户每亩增收200元，经营主体每亩补助300元。","项目实施将带动低收入人口增加收入，增加务工就业机会，群众满意。"]
[144,null,null,"陈固镇梅口村","吕东林",10.15,"贫困户每亩补助200元",2030,"衔接资金","2023年1月-12月","通过土地流转使享受政策的建档立卡户每亩增收200元，经营主体每亩补助300元。","项目实施将带动低收入人口增加收入，增加务工就业机会，群众满意。"]
[145,null,null,"陈固镇梅口村","翟振威",7.17,"贫困户每亩补助200元",1434,"衔接资金","2023年1月-12月","通过土地流转使享受政策的建档立卡户每亩增收200元，经营主体每亩补助300元。","项目实施将带动低收入人口增加收入，增加务工就业机会，群众满意。"]
[146,null,null,"陈固镇梅口村","焦风宝",7.09,"贫困户每亩补助200元",1418,"衔接资金","2023年1月-12月","通过土地流转使享受政策的建档立卡户每亩增收200元，经营主体每亩补助300元。","项目实施将带动低收入人口增加收入，增加务工就业机会，群众满意。"]
[147,null,null,"陈固镇梅口村","范俊旺",8.96,"贫困户每亩补助200元",1792,"衔接资金","2023年1月-12月","通过土地流转使享受政策的建档立卡户每亩增收200元，经营主体每亩补助300元。","项目实施将带动低收入人口增加收入，增加务工就业机会，群众满意。"]
[148,"封丘县陈固镇(士伟土地流转合作社)土地流转奖补项目","对经营主体2户流转土地的贫困户进行奖补，流转土地15.87亩。","陈固镇后李湾村","孙玉俊",5.03,"贫困户每亩补助200元",1006,"衔接资金","2023年1月-12月","通过土地流转使享受政策的建档立卡户每亩增收200元，经营主体每亩补助300元。","项目实施将带动低收入人口增加收入，增加务工就业机会，群众满意。"]
[149,null,null,"陈固镇后李湾村","鲍刘计",10.84,"贫困户每亩补助200元",2168,"衔接资金","2023年1月-12月","通过土地流转使享受政策的建档立卡户每亩增收200元，经营主体每亩补助300元。","项目实施将带动低收入人口增加收入，增加务工就业机会，群众满意。"]
[150,"封丘县赵岗镇(永峰家庭农场)土地流转奖补项目","对经营主体和5户流转土地的贫困户进行奖补，流转土地35.1亩。","赵岗镇惠寨村","惠庆旺",9.49,"贫困户每亩补助200元",1898,"衔接资金","2024年1月-12月","通过土地流转使享受政策的建档立卡户每亩增收200元，经营主体每亩补助300元。","项目实施将带动低收入人口增加收入，增加务工就业机会，群众满意。"]
[151,null,null,"赵岗镇惠寨村","惠庆仕",7.97,"贫困户每亩补助200元",1594,"衔接资金","2024年1月-12月","通过土地流转使享受政策的建档立卡户每亩增收200元，经营主体每亩补助300元。","项目实施将带动低收入人口增加收入，增加务工就业机会，群众满意。"]
[152,null,null,"赵岗镇惠寨村","惠丙竹",5.35,"贫困户每亩补助200元",1070,"衔接资金","2024年1月-12月","通过土地流转使享受政策的建档立卡户每亩增收200元，经营主体每亩补助300元。","项目实施将带动低收入人口增加收入，增加务工就业机会，群众满意。"]
[153,null,null,"赵岗镇惠寨村","魏凤莲",7.85,"贫困户每亩补助200元",1570,"衔接资金","2024年1月-12月","通过土地流转使享受政策的建档立卡户每亩增收200元，经营主体每亩补助300元。","项目实施将带动低收入人口增加收入，增加务工就业机会，群众满意。"]
[154,null,null,"赵岗镇惠寨村","惠丙兴",4.44,"贫困户每亩补助200元",888,"衔接资金","2024年1月-12月","通过土地流转使享受政策的建档立卡户每亩增收200元，经营主体每亩补助300元。","项目实施将带动低收入人口增加收入，增加务工就业机会，群众满意。"]
[155,"封丘县留光镇(西林庄吉丰种植专业合作社)土地流转奖补项目","对经营主体和16户流转土地的贫困户进行奖补，流转土地62.13亩。","留光乡西林庄村","王念护",3.77,"贫困户每亩补助200元",754,"衔接资金","2024年1月-12月","通过土地流转使享受政策的建档立卡户每亩增收200元，经营主体每亩补助300元。","项目实施将带动低收入人口增加收入，增加务工就业机会，群众满意。"]
[156,null,null,"留光乡西林庄村","王宋然",1.42,"贫困户每亩补助200元",284,"衔接资金","2024年1月-12月","通过土地流转使享受政策的建档立卡户每亩增收200元，经营主体每亩补助300元。","项目实施将带动低收入人口增加收入，增加务工就业机会，群众满意。"]
[157,null,null,"留光乡西林庄村","王卫峰",4.16,"贫困户每亩补助200元",832,"衔接资金","2024年1月-12月","通过土地流转使享受政策的建档立卡户每亩增收200元，经营主体每亩补助300元。","项目实施将带动低收入人口增加收入，增加务工就业机会，群众满意。"]
[158,null,null,"留光乡西林庄村","王用兴",1.32,"贫困户每亩补助200元",264,"衔接资金","2024年1月-12月","通过土地流转使享受政策的建档立卡户每亩增收200元，经营主体每亩补助300元。","项目实施将带动低收入人口增加收入，增加务工就业机会，群众满意。"]
[159,null,null,"留光乡西林庄村","李士英",6.81,"贫困户每亩补助200元",1362,"衔接资金","2024年1月-12月","通过土地流转使享受政策的建档立卡户每亩增收200元，经营主体每亩补助300元。","项目实施将带动低收入人口增加收入，增加务工就业机会，群众满意。"]
[160,null,null,"留光乡西林庄村","王二佩",1.2,"贫困户每亩补助200元",240,"衔接资金","2024年1月-12月","通过土地流转使享受政策的建档立卡户每亩增收200元，经营主体每亩补助300元。","项目实施将带动低收入人口增加收入，增加务工就业机会，群众满意。"]
[161,null,null,"留光乡西林庄村","王又坦",1.7,"贫困户每亩补助200元",340,"衔接资金","2024年1月-12月","通过土地流转使享受政策的建档立卡户每亩增收200元，经营主体每亩补助300元。","项目实施将带动低收入人口增加收入，增加务工就业机会，群众满意。"]
[162,null,null,"留光乡西林庄村","王用仓",3.44,"贫困户每亩补助200元",688,"衔接资金","2024年1月-12月","通过土地流转使享受政策的建档立卡户每亩增收200元，经营主体每亩补助300元。","项目实施将带动低收入人口增加收入，增加务工就业机会，群众满意。"]
[163,null,null,"留光乡西林庄村","王守付",4.88,"贫困户每亩补助200元",976,"衔接资金","2024年1月-12月","通过土地流转使享受政策的建档立卡户每亩增收200元，经营主体每亩补助300元。","项目实施将带动低收入人口增加收入，增加务工就业机会，群众满意。"]
[164,null,null,"留光乡西林庄村","高长岭",3.63,"贫困户每亩补助200元",726,"衔接资金","2024年1月-12月","通过土地流转使享受政策的建档立卡户每亩增收200元，经营主体每亩补助300元。","项目实施将带动低收入人口增加收入，增加务工就业机会，群众满意。"]
[165,null,null,"留光乡西林庄村","王又社",1.77,"贫困户每亩补助200元",354,"衔接资金","2024年1月-12月","通过土地流转使享受政策的建档立卡户每亩增收200元，经营主体每亩补助300元。","项目实施将带动低收入人口增加收入，增加务工就业机会，群众满意。"]
[166,null,null,"留光乡西林庄村","王振东",6.21,"贫困户每亩补助200元",1242,"衔接资金","2024年1月-12月","通过土地流转使享受政策的建档立卡户每亩增收200元，经营主体每亩补助300元。","项目实施将带动低收入人口增加收入，增加务工就业机会，群众满意。"]
[167,null,null,"留光乡西林庄村","王用海",1.42,"贫困户每亩补助200元",284,"衔接资金","2024年1月-12月","通过土地流转使享受政策的建档立卡户每亩增收200元，经营主体每亩补助300元。","项目实施将带动低收入人口增加收入，增加务工就业机会，群众满意。"]
[168,null,null,"留光乡西林庄村","马淑兰",8.49,"贫困户每亩补助200元",1698,"衔接资金","2024年1月-12月","通过土地流转使享受政策的建档立卡户每亩增收200元，经营主体每亩补助300元。","项目实施将带动低收入人口增加收入，增加务工就业机会，群众满意。"]
[169,null,null,"留光乡西林庄村","王用娥",7.58,"贫困户每亩补助200元",1516,"衔接资金","2024年1月-12月","通过土地流转使享受政策的建档立卡户每亩增收200元，经营主体每亩补助300元。","项目实施将带动低收入人口增加收入，增加务工就业机会，群众满意。"]
[170,null,null,"留光乡西林庄村","罗祥菊",4.33,"贫困户每亩补助200元",866,"衔接资金","2024年1月-12月","通过土地流转使享受政策的建档立卡户每亩增收200元，经营主体每亩补助300元。","项目实施将带动低收入人口增加收入，增加务工就业机会，群众满意。"]
[171,"封丘县留光镇(俊波种植专业合作社)土地流转奖补项目","对经营主体和2户流转土地的贫困户进行奖补，流转土地10.89亩。","留光乡西林庄村","王军廷",5.59,"贫困户每亩补助200元",1118,"衔接资金","2024年1月-12月","通过土地流转使享受政策的建档立卡户每亩增收200元，经营主体每亩补助300元。","项目实施将带动低收入人口增加收入，增加务工就业机会，群众满意。"]
[172,null,null,"留光乡西林庄村","王又堂",5.3,"贫困户每亩补助200元",1060,"衔接资金","2024年1月-12月","通过土地流转使享受政策的建档立卡户每亩增收200元，经营主体每亩补助300元。","项目实施将带动低收入人口增加收入，增加务工就业机会，群众满意。"]
[173,"封丘县留光镇（海港种植家庭农场）土地流转奖补项目","对经营主体和23户流转土地的贫困户进行奖补，流转土地102.72亩。","留光乡合城村","司孝锤",5.7,"贫困户每亩补助200元",1140,"衔接资金","2024年1月-12月","通过土地流转使享受政策的建档立卡户每亩增收200元，经营主体每亩补助300元。","项目实施将带动低收入人口增加收入，增加务工就业机会，群众满意。"]
[174,null,null,"留光乡合城村","司增良",5.1,"贫困户每亩补助200元",1020,"衔接资金","2024年1月-12月","通过土地流转使享受政策的建档立卡户每亩增收200元，经营主体每亩补助300元。","项目实施将带动低收入人口增加收入，增加务工就业机会，群众满意。"]
[175,null,null,"留光乡合城村","司振轩",7.8,"贫困户每亩补助200元",1560,"衔接资金","2024年1月-12月","通过土地流转使享受政策的建档立卡户每亩增收200元，经营主体每亩补助300元。","项目实施将带动低收入人口增加收入，增加务工就业机会，群众满意。"]
[176,null,null,"留光乡合城村","王春允",4.5,"贫困户每亩补助200元",900,"衔接资金","2024年1月-12月","通过土地流转使享受政策的建档立卡户每亩增收200元，经营主体每亩补助300元。","项目实施将带动低收入人口增加收入，增加务工就业机会，群众满意。"]
[177,null,null,"留光乡合城村","司恒莲",3.2,"贫困户每亩补助200元",640,"衔接资金","2024年1月-12月","通过土地流转使享受政策的建档立卡户每亩增收200元，经营主体每亩补助300元。","项目实施将带动低收入人口增加收入，增加务工就业机会，群众满意。"]
[178,null,null,"留光乡合城村","王喜堂",11,"贫困户每亩补助200元",2200,"衔接资金","2024年1月-12月","通过土地流转使享受政策的建档立卡户每亩增收200元，经营主体每亩补助300元。","项目实施将带动低收入人口增加收入，增加务工就业机会，群众满意。"]
[179,null,null,"留光乡合城村","许自安",2,"贫困户每亩补助200元",400,"衔接资金","2024年1月-12月","通过土地流转使享受政策的建档立卡户每亩增收200元，经营主体每亩补助300元。","项目实施将带动低收入人口增加收入，增加务工就业机会，群众满意。"]
[180,null,null,"留光乡合城村","司光明",6.45,"贫困户每亩补助200元",1290,"衔接资金","2024年1月-12月","通过土地流转使享受政策的建档立卡户每亩增收200元，经营主体每亩补助300元。","项目实施将带动低收入人口增加收入，增加务工就业机会，群众满意。"]
[181,null,null,"留光乡合城村","司学信",1.21,"贫困户每亩补助200元",242,"衔接资金","2024年1月-12月","通过土地流转使享受政策的建档立卡户每亩增收200元，经营主体每亩补助300元。","项目实施将带动低收入人口增加收入，增加务工就业机会，群众满意。"]
[182,null,null,"留光乡合城村","司广利",2.13,"贫困户每亩补助200元",426,"衔接资金","2024年1月-12月","通过土地流转使享受政策的建档立卡户每亩增收200元，经营主体每亩补助300元。","项目实施将带动低收入人口增加收入，增加务工就业机会，群众满意。"]
[183,null,null,"留光乡合城村","王玉兰",4.55,"贫困户每亩补助200元",910,"衔接资金","2024年1月-12月","通过土地流转使享受政策的建档立卡户每亩增收200元，经营主体每亩补助300元。","项目实施将带动低收入人口增加收入，增加务工就业机会，群众满意。"]
[184,null,null,"留光乡合城村","徐广元",1.04,"贫困户每亩补助200元",208,"衔接资金","2024年1月-12月","通过土地流转使享受政策的建档立卡户每亩增收200元，经营主体每亩补助300元。","项目实施将带动低收入人口增加收入，增加务工就业机会，群众满意。"]
[185,null,null,"留光乡合城村","司利园",6,"贫困户每亩补助200元",1200,"衔接资金","2024年1月-12月","通过土地流转使享受政策的建档立卡户每亩增收200元，经营主体每亩补助300元。","项目实施将带动低收入人口增加收入，增加务工就业机会，群众满意。"]
[186,null,null,"留光乡合城村","申际枝",1.5,"贫困户每亩补助200元",300,"衔接资金","2024年1月-12月","通过土地流转使享受政策的建档立卡户每亩增收200元，经营主体每亩补助300元。","项目实施将带动低收入人口增加收入，增加务工就业机会，群众满意。"]
[187,null,null,"留光乡合城村","张秀兰",5.58,"贫困户每亩补助200元",1116,"衔接资金","2024年1月-12月","通过土地流转使享受政策的建档立卡户每亩增收200元，经营主体每亩补助300元。","项目实施将带动低收入人口增加收入，增加务工就业机会，群众满意。"]
[188,null,null,"留光乡合城村","许光法",3.5,"贫困户每亩补助200元",700,"衔接资金","2024年1月-12月","通过土地流转使享受政策的建档立卡户每亩增收200元，经营主体每亩补助300元。","项目实施将带动低收入人口增加收入，增加务工就业机会，群众满意。"]
[189,null,null,"留光乡合城村","李秀叶",4.9,"贫困户每亩补助200元",980,"衔接资金","2024年1月-12月","通过土地流转使享受政策的建档立卡户每亩增收200元，经营主体每亩补助300元。","项目实施将带动低收入人口增加收入，增加务工就业机会，群众满意。"]
[190,null,null,"留光乡合城村","徐广学",7.6,"贫困户每亩补助200元",1520,"衔接资金","2024年1月-12月","通过土地流转使享受政策的建档立卡户每亩增收200元，经营主体每亩补助300元。","项目实施将带动低收入人口增加收入，增加务工就业机会，群众满意。"]
[191,null,null,"留光乡合城村","许自海",5.1,"贫困户每亩补助200元",1020,"衔接资金","2024年1月-12月","通过土地流转使享受政策的建档立卡户每亩增收200元，经营主体每亩补助300元。","项目实施将带动低收入人口增加收入，增加务工就业机会，群众满意。"]
[192,null,null,"留光乡合城村","司孝乐",1.9,"贫困户每亩补助200元",380,"衔接资金","2024年1月-12月","通过土地流转使享受政策的建档立卡户每亩增收200元，经营主体每亩补助300元。","项目实施将带动低收入人口增加收入，增加务工就业机会，群众满意。"]
[193,null,null,"留光乡合城村","司振让",5.11,"贫困户每亩补助200元",1022,"衔接资金","2024年1月-12月","通过土地流转使享受政策的建档立卡户每亩增收200元，经营主体每亩补助300元。","项目实施将带动低收入人口增加收入，增加务工就业机会，群众满意。"]
[194,null,null,"留光乡合城村","司振美",4.3,"贫困户每亩补助200元",860,"衔接资金","2024年1月-12月","通过土地流转使享受政策的建档立卡户每亩增收200元，经营主体每亩补助300元。","项目实施将带动低收入人口增加收入，增加务工就业机会，群众满意。"]
[195,null,null,"留光乡合城村","于晓芹",2.55,"贫困户每亩补助200元",510,"衔接资金","2024年1月-12月","通过土地流转使享受政策的建档立卡户每亩增收200元，经营主体每亩补助300元。","项目实施将带动低收入人口增加收入，增加务工就业机会，群众满意。"]
[196,"封丘县留光镇（鼎力种植专业合作社）土地流转奖补项目","对经营主体和8户流转土地的贫困户进行奖补，流转土地41.08亩。","留光乡留固村","薛根明",7.56,"贫困户每亩补助200元",1512,"衔接资金","2024年1月-12月","通过土地流转使享受政策的建档立卡户每亩增收200元，经营主体每亩补助300元。","项目实施将带动低收入人口增加收入，增加务工就业机会，群众满意。"]
[197,null,null,"留光乡留固村","邓济涛",5.67,"贫困户每亩补助200元",1134,"衔接资金","2024年1月-12月","通过土地流转使享受政策的建档立卡户每亩增收200元，经营主体每亩补助300元。","项目实施将带动低收入人口增加收入，增加务工就业机会，群众满意。"]
[198,null,null,"留光乡留固村","朱家征",3.16,"贫困户每亩补助200元",632,"衔接资金","2024年1月-12月","通过土地流转使享受政策的建档立卡户每亩增收200元，经营主体每亩补助300元。","项目实施将带动低收入人口增加收入，增加务工就业机会，群众满意。"]
[199,null,null,"留光乡留固村","王金亮",1.13,"贫困户每亩补助200元",226,"衔接资金","2024年1月-12月","通过土地流转使享受政策的建档立卡户每亩增收200元，经营主体每亩补助300元。","项目实施将带动低收入人口增加收入，增加务工就业机会，群众满意。"]
[200,null,null,"留光乡留固村","吕金春",6,"贫困户每亩补助200元",1200,"衔接资金","2024年1月-12月","通过土地流转使享受政策的建档立卡户每亩增收200元，经营主体每亩补助300元。","项目实施将带动低收入人口增加收入，增加务工就业机会，群众满意。"]
[201,null,null,"留光乡留固村","朱登周",7.6,"贫困户每亩补助200元",1520,"衔接资金","2024年1月-12月","通过土地流转使享受政策的建档立卡户每亩增收200元，经营主体每亩补助300元。","项目实施将带动低收入人口增加收入，增加务工就业机会，群众满意。"]
[202,null,null,"留光乡留固村","吕金军",3.66,"贫困户每亩补助200元",732,"衔接资金","2024年1月-12月","通过土地流转使享受政策的建档立卡户每亩增收200元，经营主体每亩补助300元。","项目实施将带动低收入人口增加收入，增加务工就业机会，群众满意。"]
[203,null,null,"留光乡留固村","薛德刚",6.3,"贫困户每亩补助200元",1260,"衔接资金","2024年1月-12月","通过土地流转使享受政策的建档立卡户每亩增收200元，经营主体每亩补助300元。","项目实施将带动低收入人口增加收入，增加务工就业机会，群众满意。"]
[204,"封丘县留光镇（安超家庭农场）土地流转奖补项目","对经营主体和17户流转土地的贫困户进行奖补，流转土地50.41亩。","留光乡留固村","朱永康",3.68,"贫困户每亩补助200元",736,"衔接资金","2024年1月-12月","通过土地流转使享受政策的建档立卡户每亩增收200元，经营主体每亩补助300元。","项目实施将带动低收入人口增加收入，增加务工就业机会，群众满意。"]
[205,null,null,"留光乡留固村","朱登松",1.8,"贫困户每亩补助200元",360,"衔接资金","2024年1月-12月","通过土地流转使享受政策的建档立卡户每亩增收200元，经营主体每亩补助300元。","项目实施将带动低收入人口增加收入，增加务工就业机会，群众满意。"]
[206,null,null,"留光乡留固村","薛德军",3.7,"贫困户每亩补助200元",740,"衔接资金","2024年1月-12月","通过土地流转使享受政策的建档立卡户每亩增收200元，经营主体每亩补助300元。","项目实施将带动低收入人口增加收入，增加务工就业机会，群众满意。"]
[207,null,null,"留光乡留固村","朱永周",3,"贫困户每亩补助200元",600,"衔接资金","2024年1月-12月","通过土地流转使享受政策的建档立卡户每亩增收200元，经营主体每亩补助300元。","项目实施将带动低收入人口增加收入，增加务工就业机会，群众满意。"]
[208,null,null,"留光乡留固村","邓德林",2.6,"贫困户每亩补助200元",520,"衔接资金","2024年1月-12月","通过土地流转使享受政策的建档立卡户每亩增收200元，经营主体每亩补助300元。","项目实施将带动低收入人口增加收入，增加务工就业机会，群众满意。"]
[209,null,null,"留光乡留固村","赵运修",2.4,"贫困户每亩补助200元",480,"衔接资金","2024年1月-12月","通过土地流转使享受政策的建档立卡户每亩增收200元，经营主体每亩补助300元。","项目实施将带动低收入人口增加收入，增加务工就业机会，群众满意。"]
[210,null,null,"留光乡留固村","朱可麦",6,"贫困户每亩补助200元",1200,"衔接资金","2024年1月-12月","通过土地流转使享受政策的建档立卡户每亩增收200元，经营主体每亩补助300元。","项目实施将带动低收入人口增加收入，增加务工就业机会，群众满意。"]
[211,null,null,"留光乡留固村","朱永文",4.19,"贫困户每亩补助200元",838,"衔接资金","2024年1月-12月","通过土地流转使享受政策的建档立卡户每亩增收200元，经营主体每亩补助300元。","项目实施将带动低收入人口增加收入，增加务工就业机会，群众满意。"]
[212,null,null,"留光乡留固村","吕风梅",3.5,"贫困户每亩补助200元",700,"衔接资金","2024年1月-12月","通过土地流转使享受政策的建档立卡户每亩增收200元，经营主体每亩补助300元。","项目实施将带动低收入人口增加收入，增加务工就业机会，群众满意。"]
[213,null,null,"留光乡留固村","邓德顺",1,"贫困户每亩补助200元",200,"衔接资金","2024年1月-12月","通过土地流转使享受政策的建档立卡户每亩增收200元，经营主体每亩补助300元。","项目实施将带动低收入人口增加收入，增加务工就业机会，群众满意。"]
[214,null,null,"留光乡留固村","张中英",0.92,"贫困户每亩补助200元",184,"衔接资金","2024年1月-12月","通过土地流转使享受政策的建档立卡户每亩增收200元，经营主体每亩补助300元。","项目实施将带动低收入人口增加收入，增加务工就业机会，群众满意。"]
[215,null,null,"留光乡留固村","吕金广",2.6,"贫困户每亩补助200元",520,"衔接资金","2024年1月-12月","通过土地流转使享受政策的建档立卡户每亩增收200元，经营主体每亩补助300元。","项目实施将带动低收入人口增加收入，增加务工就业机会，群众满意。"]
[216,null,null,"留光乡留固村","朱登安",4.66,"贫困户每亩补助200元",932,"衔接资金","2024年1月-12月","通过土地流转使享受政策的建档立卡户每亩增收200元，经营主体每亩补助300元。","项目实施将带动低收入人口增加收入，增加务工就业机会，群众满意。"]
[217,null,null,"留光乡留固村","薛德原",1.3,"贫困户每亩补助200元",260,"衔接资金","2024年1月-12月","通过土地流转使享受政策的建档立卡户每亩增收200元，经营主体每亩补助300元。","项目实施将带动低收入人口增加收入，增加务工就业机会，群众满意。"]
[218,null,null,"留光乡留固村","赵俊州",4,"贫困户每亩补助200元",800,"衔接资金","2024年1月-12月","通过土地流转使享受政策的建档立卡户每亩增收200元，经营主体每亩补助300元。","项目实施将带动低收入人口增加收入，增加务工就业机会，群众满意。"]
[219,null,null,"留光乡留固村","王学枝",2.06,"贫困户每亩补助200元",412,"衔接资金","2024年1月-12月","通过土地流转使享受政策的建档立卡户每亩增收200元，经营主体每亩补助300元。","项目实施将带动低收入人口增加收入，增加务工就业机会，群众满意。"]
[220,null,null,"留光乡留固村","朱格建",3,"贫困户每亩补助200元",600,"衔接资金","2024年1月-12月","通过土地流转使享受政策的建档立卡户每亩增收200元，经营主体每亩补助300元。","项目实施将带动低收入人口增加收入，增加务工就业机会，群众满意。"]
[221,"封丘县留光镇（华领种植专业合作社）土地流转奖补项目","对经营主体和5户流转土地的贫困户进行奖补，流转土地16.8亩。","留光乡于庄村","高玉珍",3.1,"贫困户每亩补助200元",620,"衔接资金","2024年1月-12月","通过土地流转使享受政策的建档立卡户每亩增收200元，经营主体每亩补助300元。","项目实施将带动低收入人口增加收入，增加务工就业机会，群众满意。"]
[222,null,null,"留光乡于庄村","于步池",3.3,"贫困户每亩补助200元",660,"衔接资金","2024年1月-12月","通过土地流转使享受政策的建档立卡户每亩增收200元，经营主体每亩补助300元。","项目实施将带动低收入人口增加收入，增加务工就业机会，群众满意。"]
[223,null,null,"留光乡于庄村","李国臣",7.7,"贫困户每亩补助200元",1540,"衔接资金","2024年1月-12月","通过土地流转使享受政策的建档立卡户每亩增收200元，经营主体每亩补助300元。","项目实施将带动低收入人口增加收入，增加务工就业机会，群众满意。"]
[224,null,null,"留光乡于庄村","于步美",1.7,"贫困户每亩补助200元",340,"衔接资金","2024年1月-12月","通过土地流转使享受政策的建档立卡户每亩增收200元，经营主体每亩补助300元。","项目实施将带动低收入人口增加收入，增加务工就业机会，群众满意。"]
[225,null,null,"留光乡于庄村","薛小英",1,"贫困户每亩补助200元",200,"衔接资金","2024年1月-12月","通过土地流转使享受政策的建档立卡户每亩增收200元，经营主体每亩补助300元。","项目实施将带动低收入人口增加收入，增加务工就业机会，群众满意。"]
[226,"封丘县留光镇（青青康种植专业合作社）土地流转奖补项目","对经营主体和51户流转土地的贫困户进行奖补，流转土地84.67亩。","留光镇李王庄","李高生",0.55,"贫困户每亩补助200元",110,"衔接资金","2024年1月-12月","通过土地流转使享受政策的建档立卡户每亩增收200元，经营主体每亩补助300元。","项目实施将带动低收入人口增加收入，增加务工就业机会，群众满意。"]
[227,null,null,"留光镇李王庄","张玉霞",0.5,"贫困户每亩补助200元",100,"衔接资金","2024年1月-12月","通过土地流转使享受政策的建档立卡户每亩增收200元，经营主体每亩补助300元。","项目实施将带动低收入人口增加收入，增加务工就业机会，群众满意。"]
[228,null,null,"留光镇李王庄","赵桂霞",3.04,"贫困户每亩补助200元",608,"衔接资金","2024年1月-12月","通过土地流转使享受政策的建档立卡户每亩增收200元，经营主体每亩补助300元。","项目实施将带动低收入人口增加收入，增加务工就业机会，群众满意。"]
[229,null,null,"留光镇李王庄","李东广",2.15,"贫困户每亩补助200元",430,"衔接资金","2024年1月-12月","通过土地流转使享受政策的建档立卡户每亩增收200元，经营主体每亩补助300元。","项目实施将带动低收入人口增加收入，增加务工就业机会，群众满意。"]
[230,null,null,"留光镇李王庄","李东立",2.69,"贫困户每亩补助200元",538,"衔接资金","2024年1月-12月","通过土地流转使享受政策的建档立卡户每亩增收200元，经营主体每亩补助300元。","项目实施将带动低收入人口增加收入，增加务工就业机会，群众满意。"]
[231,null,null,"留光镇李王庄","吕秋娥",2.94,"贫困户每亩补助200元",588,"衔接资金","2024年1月-12月","通过土地流转使享受政策的建档立卡户每亩增收200元，经营主体每亩补助300元。","项目实施将带动低收入人口增加收入，增加务工就业机会，群众满意。"]
[232,null,null,"留光镇李王庄","李安江",4.71,"贫困户每亩补助200元",942,"衔接资金","2024年1月-12月","通过土地流转使享受政策的建档立卡户每亩增收200元，经营主体每亩补助300元。","项目实施将带动低收入人口增加收入，增加务工就业机会，群众满意。"]
[233,null,null,"留光镇李王庄","张素兰",3.41,"贫困户每亩补助200元",682,"衔接资金","2024年1月-12月","通过土地流转使享受政策的建档立卡户每亩增收200元，经营主体每亩补助300元。","项目实施将带动低收入人口增加收入，增加务工就业机会，群众满意。"]
[234,null,null,"留光镇李王庄","李现太",2.72,"贫困户每亩补助200元",544,"衔接资金","2024年1月-12月","通过土地流转使享受政策的建档立卡户每亩增收200元，经营主体每亩补助300元。","项目实施将带动低收入人口增加收入，增加务工就业机会，群众满意。"]
[235,null,null,"留光镇李王庄","李安柱",1.62,"贫困户每亩补助200元",324,"衔接资金","2024年1月-12月","通过土地流转使享受政策的建档立卡户每亩增收200元，经营主体每亩补助300元。","项目实施将带动低收入人口增加收入，增加务工就业机会，群众满意。"]
[236,null,null,"留光镇李王庄","李安胜",1.56,"贫困户每亩补助200元",312,"衔接资金","2024年1月-12月","通过土地流转使享受政策的建档立卡户每亩增收200元，经营主体每亩补助300元。","项目实施将带动低收入人口增加收入，增加务工就业机会，群众满意。"]
[237,null,null,"留光镇李王庄","李乐石",1.4,"贫困户每亩补助200元",280,"衔接资金","2024年1月-12月","通过土地流转使享受政策的建档立卡户每亩增收200元，经营主体每亩补助300元。","项目实施将带动低收入人口增加收入，增加务工就业机会，群众满意。"]
[238,null,null,"留光镇李王庄","李子民",0.1,"贫困户每亩补助200元",20,"衔接资金","2024年1月-12月","通过土地流转使享受政策的建档立卡户每亩增收200元，经营主体每亩补助300元。","项目实施将带动低收入人口增加收入，增加务工就业机会，群众满意。"]
[239,null,null,"留光镇李王庄","王爱梅",1.71,"贫困户每亩补助200元",342,"衔接资金","2024年1月-12月","通过土地流转使享受政策的建档立卡户每亩增收200元，经营主体每亩补助300元。","项目实施将带动低收入人口增加收入，增加务工就业机会，群众满意。"]
[240,null,null,"留光镇李王庄","牛金枝",0.38,"贫困户每亩补助200元",76,"衔接资金","2024年1月-12月","通过土地流转使享受政策的建档立卡户每亩增收200元，经营主体每亩补助300元。","项目实施将带动低收入人口增加收入，增加务工就业机会，群众满意。"]
[241,null,null,"留光镇李王庄","李安全",1.64,"贫困户每亩补助200元",328,"衔接资金","2024年1月-12月","通过土地流转使享受政策的建档立卡户每亩增收200元，经营主体每亩补助300元。","项目实施将带动低收入人口增加收入，增加务工就业机会，群众满意。"]
[242,null,null,"留光镇李王庄","王梅花",0.55,"贫困户每亩补助200元",110,"衔接资金","2024年1月-12月","通过土地流转使享受政策的建档立卡户每亩增收200元，经营主体每亩补助300元。","项目实施将带动低收入人口增加收入，增加务工就业机会，群众满意。"]
[243,null,null,"留光镇李王庄","李文生",1.34,"贫困户每亩补助200元",268,"衔接资金","2024年1月-12月","通过土地流转使享受政策的建档立卡户每亩增收200元，经营主体每亩补助300元。","项目实施将带动低收入人口增加收入，增加务工就业机会，群众满意。"]
[244,null,null,"留光镇李王庄","刘凤娇",1.79,"贫困户每亩补助200元",358,"衔接资金","2024年1月-12月","通过土地流转使享受政策的建档立卡户每亩增收200元，经营主体每亩补助300元。","项目实施将带动低收入人口增加收入，增加务工就业机会，群众满意。"]
[245,null,null,"留光镇李王庄","李恒根",2,"贫困户每亩补助200元",400,"衔接资金","2024年1月-12月","通过土地流转使享受政策的建档立卡户每亩增收200元，经营主体每亩补助300元。","项目实施将带动低收入人口增加收入，增加务工就业机会，群众满意。"]
[246,null,null,"留光镇李王庄","李善见",3.61,"贫困户每亩补助200元",722,"衔接资金","2024年1月-12月","通过土地流转使享受政策的建档立卡户每亩增收200元，经营主体每亩补助300元。","项目实施将带动低收入人口增加收入，增加务工就业机会，群众满意。"]
[247,null,null,"留光镇李王庄","赵凤枝",2.3,"贫困户每亩补助200元",460,"衔接资金","2024年1月-12月","通过土地流转使享受政策的建档立卡户每亩增收200元，经营主体每亩补助300元。","项目实施将带动低收入人口增加收入，增加务工就业机会，群众满意。"]
[248,null,null,"留光镇李王庄","李恒兴",1.73,"贫困户每亩补助200元",346,"衔接资金","2024年1月-12月","通过土地流转使享受政策的建档立卡户每亩增收200元，经营主体每亩补助300元。","项目实施将带动低收入人口增加收入，增加务工就业机会，群众满意。"]
[249,null,null,"留光镇李王庄","李恒崔",2.44,"贫困户每亩补助200元",488,"衔接资金","2024年1月-12月","通过土地流转使享受政策的建档立卡户每亩增收200元，经营主体每亩补助300元。","项目实施将带动低收入人口增加收入，增加务工就业机会，群众满意。"]
[250,null,null,"留光镇李王庄","李善良",2.67,"贫困户每亩补助200元",534,"衔接资金","2024年1月-12月","通过土地流转使享受政策的建档立卡户每亩增收200元，经营主体每亩补助300元。","项目实施将带动低收入人口增加收入，增加务工就业机会，群众满意。"]
[251,null,null,"留光镇李王庄","李新春",1.72,"贫困户每亩补助200元",344,"衔接资金","2024年1月-12月","通过土地流转使享受政策的建档立卡户每亩增收200元，经营主体每亩补助300元。","项目实施将带动低收入人口增加收入，增加务工就业机会，群众满意。"]
[252,null,null,"留光镇李王庄","李怀堂",3.38,"贫困户每亩补助200元",676,"衔接资金","2024年1月-12月","通过土地流转使享受政策的建档立卡户每亩增收200元，经营主体每亩补助300元。","项目实施将带动低收入人口增加收入，增加务工就业机会，群众满意。"]
[253,null,null,"留光镇李王庄","孙爱萍",2.56,"贫困户每亩补助200元",512,"衔接资金","2024年1月-12月","通过土地流转使享受政策的建档立卡户每亩增收200元，经营主体每亩补助300元。","项目实施将带动低收入人口增加收入，增加务工就业机会，群众满意。"]
[254,null,null,"留光镇李王庄","李善林",2.63,"贫困户每亩补助200元",526,"衔接资金","2024年1月-12月","通过土地流转使享受政策的建档立卡户每亩增收200元，经营主体每亩补助300元。","项目实施将带动低收入人口增加收入，增加务工就业机会，群众满意。"]
[255,null,null,"留光镇李王庄","李善中",1.57,"贫困户每亩补助200元",314,"衔接资金","2024年1月-12月","通过土地流转使享受政策的建档立卡户每亩增收200元，经营主体每亩补助300元。","项目实施将带动低收入人口增加收入，增加务工就业机会，群众满意。"]
[256,null,null,"留光镇李王庄","李保记",1.03,"贫困户每亩补助200元",206,"衔接资金","2024年1月-12月","通过土地流转使享受政策的建档立卡户每亩增收200元，经营主体每亩补助300元。","项目实施将带动低收入人口增加收入，增加务工就业机会，群众满意。"]
[257,null,null,"留光镇李王庄","李怀标",0.57,"贫困户每亩补助200元",114,"衔接资金","2024年1月-12月","通过土地流转使享受政策的建档立卡户每亩增收200元，经营主体每亩补助300元。","项目实施将带动低收入人口增加收入，增加务工就业机会，群众满意。"]
[258,null,null,"留光镇李王庄","李乐芹",0.95,"贫困户每亩补助200元",190,"衔接资金","2024年1月-12月","通过土地流转使享受政策的建档立卡户每亩增收200元，经营主体每亩补助300元。","项目实施将带动低收入人口增加收入，增加务工就业机会，群众满意。"]
[259,null,null,"留光镇李王庄","李同良",1.57,"贫困户每亩补助200元",314,"衔接资金","2024年1月-12月","通过土地流转使享受政策的建档立卡户每亩增收200元，经营主体每亩补助300元。","项目实施将带动低收入人口增加收入，增加务工就业机会，群众满意。"]
[260,null,null,"留光镇李王庄","李乐均",0.98,"贫困户每亩补助200元",196,"衔接资金","2024年1月-12月","通过土地流转使享受政策的建档立卡户每亩增收200元，经营主体每亩补助300元。","项目实施将带动低收入人口增加收入，增加务工就业机会，群众满意。"]
[261,null,null,"留光镇李王庄","朱秀珍",1.28,"贫困户每亩补助200元",256,"衔接资金","2024年1月-12月","通过土地流转使享受政策的建档立卡户每亩增收200元，经营主体每亩补助300元。","项目实施将带动低收入人口增加收入，增加务工就业机会，群众满意。"]
[262,null,null,"留光镇李王庄","李恒科",0.75,"贫困户每亩补助200元",150,"衔接资金","2024年1月-12月","通过土地流转使享受政策的建档立卡户每亩增收200元，经营主体每亩补助300元。","项目实施将带动低收入人口增加收入，增加务工就业机会，群众满意。"]
[263,null,null,"留光镇李王庄","王凤梅",0.71,"贫困户每亩补助200元",142,"衔接资金","2024年1月-12月","通过土地流转使享受政策的建档立卡户每亩增收200元，经营主体每亩补助300元。","项目实施将带动低收入人口增加收入，增加务工就业机会，群众满意。"]
[264,null,null,"留光镇李王庄","徐桂兰",0.92,"贫困户每亩补助200元",184,"衔接资金","2024年1月-12月","通过土地流转使享受政策的建档立卡户每亩增收200元，经营主体每亩补助300元。","项目实施将带动低收入人口增加收入，增加务工就业机会，群众满意。"]
[265,null,null,"留光镇李王庄","李善良",0.85,"贫困户每亩补助200元",170,"衔接资金","2024年1月-12月","通过土地流转使享受政策的建档立卡户每亩增收200元，经营主体每亩补助300元。","项目实施将带动低收入人口增加收入，增加务工就业机会，群众满意。"]
[266,null,null,"留光镇李王庄","李恒志",0.7,"贫困户每亩补助200元",140,"衔接资金","2024年1月-12月","通过土地流转使享受政策的建档立卡户每亩增收200元，经营主体每亩补助300元。","项目实施将带动低收入人口增加收入，增加务工就业机会，群众满意。"]
[267,null,null,"留光镇李王庄","李恒义",0.74,"贫困户每亩补助200元",148,"衔接资金","2024年1月-12月","通过土地流转使享受政策的建档立卡户每亩增收200元，经营主体每亩补助300元。","项目实施将带动低收入人口增加收入，增加务工就业机会，群众满意。"]
[268,null,null,"留光镇李王庄","李善坤",0.5,"贫困户每亩补助200元",100,"衔接资金","2024年1月-12月","通过土地流转使享受政策的建档立卡户每亩增收200元，经营主体每亩补助300元。","项目实施将带动低收入人口增加收入，增加务工就业机会，群众满意。"]
[269,null,null,"留光镇李王庄","李邓超",0.69,"贫困户每亩补助200元",138,"衔接资金","2024年1月-12月","通过土地流转使享受政策的建档立卡户每亩增收200元，经营主体每亩补助300元。","项目实施将带动低收入人口增加收入，增加务工就业机会，群众满意。"]
[270,null,null,"留光镇李王庄","李恒记",1.36,"贫困户每亩补助200元",272,"衔接资金","2024年1月-12月","通过土地流转使享受政策的建档立卡户每亩增收200元，经营主体每亩补助300元。","项目实施将带动低收入人口增加收入，增加务工就业机会，群众满意。"]
[271,null,null,"留光镇李王庄","李乐存",1.17,"贫困户每亩补助200元",234,"衔接资金","2024年1月-12月","通过土地流转使享受政策的建档立卡户每亩增收200元，经营主体每亩补助300元。","项目实施将带动低收入人口增加收入，增加务工就业机会，群众满意。"]
[272,null,null,"留光镇李王庄","李小锋",3.3,"贫困户每亩补助200元",660,"衔接资金","2024年1月-12月","通过土地流转使享受政策的建档立卡户每亩增收200元，经营主体每亩补助300元。","项目实施将带动低收入人口增加收入，增加务工就业机会，群众满意。"]
[273,null,null,"留光镇李王庄","李善岭",0.72,"贫困户每亩补助200元",144,"衔接资金","2024年1月-12月","通过土地流转使享受政策的建档立卡户每亩增收200元，经营主体每亩补助300元。","项目实施将带动低收入人口增加收入，增加务工就业机会，群众满意。"]
[274,null,null,"留光镇李王庄","李安林",0.87,"贫困户每亩补助200元",174,"衔接资金","2024年1月-12月","通过土地流转使享受政策的建档立卡户每亩增收200元，经营主体每亩补助300元。","项目实施将带动低收入人口增加收入，增加务工就业机会，群众满意。"]
[275,null,null,"留光镇李王庄","李安义",2.6,"贫困户每亩补助200元",520,"衔接资金","2024年1月-12月","通过土地流转使享受政策的建档立卡户每亩增收200元，经营主体每亩补助300元。","项目实施将带动低收入人口增加收入，增加务工就业机会，群众满意。"]
[276,null,null,"留光镇李王庄","李善禹",1,"贫困户每亩补助200元",200,"衔接资金","2024年1月-12月","通过土地流转使享受政策的建档立卡户每亩增收200元，经营主体每亩补助300元。","项目实施将带动低收入人口增加收入，增加务工就业机会，群众满意。"]
[277,"封丘县留光镇（建康家庭农场）土地流转奖补项目","对经营主体和1户流转土地的贫困户进行奖补，流转土地10.26亩。","留光镇中王庄","张公义",10.26,"贫困户每亩补助200元",2052,"衔接资金","2024年1月-12月","通过土地流转使享受政策的建档立卡户每亩增收200元，经营主体每亩补助300元。","项目实施将带动低收入人口增加收入，增加务工就业机会，群众满意。"]
[278,"封丘县李庄镇(河南格瑞佳农业科技有限公司)土地流转奖补项目","对经营主体和130户流转土地的贫困户进行奖补，流转土地521.93亩。","李庄镇前辛庄村","曹振书",5.83,"贫困户每亩补助200元",{"$f":"F281*200","v":1166},"衔接资金","2024年1月-12月","通过土地流转使享受政策的建档立卡户每亩增收200元，经营主体每亩补助300元。","项目实施将带动低收入人口增加收入，增加务工就业机会，群众满意。"]
[279,null,null,"李庄镇前辛庄村","韩天霞",2.4,"贫困户每亩补助200元",480,"衔接资金","2024年1月-12月","通过土地流转使享受政策的建档立卡户每亩增收200元，经营主体每亩补助300元。","项目实施将带动低收入人口增加收入，增加务工就业机会，群众满意。"]
[280,null,null,"李庄镇前辛庄村","贺小平",3.54,"贫困户每亩补助200元",708,"衔接资金","2024年1月-12月","通过土地流转使享受政策的建档立卡户每亩增收200元，经营主体每亩补助300元。","项目实施将带动低收入人口增加收入，增加务工就业机会，群众满意。"]
[281,null,null,"李庄镇前辛庄村","靳河川",2.73,"贫困户每亩补助200元",546,"衔接资金","2024年1月-12月","通过土地流转使享受政策的建档立卡户每亩增收200元，经营主体每亩补助300元。","项目实施将带动低收入人口增加收入，增加务工就业机会，群众满意。"]
[282,null,null,"李庄镇前辛庄村","靳林永",5.67,"贫困户每亩补助200元",1134,"衔接资金","2024年1月-12月","通过土地流转使享受政策的建档立卡户每亩增收200元，经营主体每亩补助300元。","项目实施将带动低收入人口增加收入，增加务工就业机会，群众满意。"]
[283,null,null,"李庄镇前辛庄村","靳清东",9.2,"贫困户每亩补助200元",1840,"衔接资金","2024年1月-12月","通过土地流转使享受政策的建档立卡户每亩增收200元，经营主体每亩补助300元。","项目实施将带动低收入人口增加收入，增加务工就业机会，群众满意。"]
[284,null,null,"李庄镇前辛庄村","靳清风",3.25,"贫困户每亩补助200元",650,"衔接资金","2024年1月-12月","通过土地流转使享受政策的建档立卡户每亩增收200元，经营主体每亩补助300元。","项目实施将带动低收入人口增加收入，增加务工就业机会，群众满意。"]
[285,null,null,"李庄镇前辛庄村","靳清河",3.54,"贫困户每亩补助200元",708,"衔接资金","2024年1月-12月","通过土地流转使享受政策的建档立卡户每亩增收200元，经营主体每亩补助300元。","项目实施将带动低收入人口增加收入，增加务工就业机会，群众满意。"]
[286,null,null,"李庄镇前辛庄村","靳清余",3.25,"贫困户每亩补助200元",650,"衔接资金","2024年1月-12月","通过土地流转使享受政策的建档立卡户每亩增收200元，经营主体每亩补助300元。","项目实施将带动低收入人口增加收入，增加务工就业机会，群众满意。"]
[287,null,null,"李庄镇前辛庄村","靳士朋",1.74,"贫困户每亩补助200元",348,"衔接资金","2024年1月-12月","通过土地流转使享受政策的建档立卡户每亩增收200元，经营主体每亩补助300元。","项目实施将带动低收入人口增加收入，增加务工就业机会，群众满意。"]
[288,null,null,"李庄镇前辛庄村","靳士伟",5.27,"贫困户每亩补助200元",1054,"衔接资金","2024年1月-12月","通过土地流转使享受政策的建档立卡户每亩增收200元，经营主体每亩补助300元。","项目实施将带动低收入人口增加收入，增加务工就业机会，群众满意。"]
[289,null,null,"李庄镇前辛庄村","靳太行",4.77,"贫困户每亩补助200元",954,"衔接资金","2024年1月-12月","通过土地流转使享受政策的建档立卡户每亩增收200元，经营主体每亩补助300元。","项目实施将带动低收入人口增加收入，增加务工就业机会，群众满意。"]
[290,null,null,"李庄镇前辛庄村","曹素云",15.82,"贫困户每亩补助200元",3164,"衔接资金","2024年1月-12月","通过土地流转使享受政策的建档立卡户每亩增收200元，经营主体每亩补助300元。","项目实施将带动低收入人口增加收入，增加务工就业机会，群众满意。"]
[291,null,null,"李庄镇前辛庄村","李宝三",1.17,"贫困户每亩补助200元",234,"衔接资金","2024年1月-12月","通过土地流转使享受政策的建档立卡户每亩增收200元，经营主体每亩补助300元。","项目实施将带动低收入人口增加收入，增加务工就业机会，群众满意。"]
[292,null,null,"李庄镇前辛庄村","李纪永",9.68,"贫困户每亩补助200元",1936,"衔接资金","2024年1月-12月","通过土地流转使享受政策的建档立卡户每亩增收200元，经营主体每亩补助300元。","项目实施将带动低收入人口增加收入，增加务工就业机会，群众满意。"]
[293,null,null,"李庄镇前辛庄村","李娜",6.15,"贫困户每亩补助200元",1230,"衔接资金","2024年1月-12月","通过土地流转使享受政策的建档立卡户每亩增收200元，经营主体每亩补助300元。","项目实施将带动低收入人口增加收入，增加务工就业机会，群众满意。"]
[294,null,null,"李庄镇前辛庄村","梁纪周",5.52,"贫困户每亩补助200元",1104,"衔接资金","2024年1月-12月","通过土地流转使享受政策的建档立卡户每亩增收200元，经营主体每亩补助300元。","项目实施将带动低收入人口增加收入，增加务工就业机会，群众满意。"]
[295,null,null,"李庄镇前辛庄村","梁胜利",10.42,"贫困户每亩补助200元",2084,"衔接资金","2024年1月-12月","通过土地流转使享受政策的建档立卡户每亩增收200元，经营主体每亩补助300元。","项目实施将带动低收入人口增加收入，增加务工就业机会，群众满意。"]
[296,null,null,"李庄镇前辛庄村","梁现中",1.09,"贫困户每亩补助200元",218,"衔接资金","2024年1月-12月","通过土地流转使享受政策的建档立卡户每亩增收200元，经营主体每亩补助300元。","项目实施将带动低收入人口增加收入，增加务工就业机会，群众满意。"]
[297,null,null,"李庄镇前辛庄村","刘宝贵",3.5,"贫困户每亩补助200元",700,"衔接资金","2024年1月-12月","通过土地流转使享受政策的建档立卡户每亩增收200元，经营主体每亩补助300元。","项目实施将带动低收入人口增加收入，增加务工就业机会，群众满意。"]
[298,null,null,"李庄镇前辛庄村","刘振全",6.64,"贫困户每亩补助200元",1328,"衔接资金","2024年1月-12月","通过土地流转使享受政策的建档立卡户每亩增收200元，经营主体每亩补助300元。","项目实施将带动低收入人口增加收入，增加务工就业机会，群众满意。"]
[299,null,null,"李庄镇前辛庄村","刘志梅",4,"贫困户每亩补助200元",800,"衔接资金","2024年1月-12月","通过土地流转使享受政策的建档立卡户每亩增收200元，经营主体每亩补助300元。","项目实施将带动低收入人口增加收入，增加务工就业机会，群众满意。"]
[300,null,null,"李庄镇前辛庄村","孟广亮",3.74,"贫困户每亩补助200元",748,"衔接资金","2024年1月-12月","通过土地流转使享受政策的建档立卡户每亩增收200元，经营主体每亩补助300元。","项目实施将带动低收入人口增加收入，增加务工就业机会，群众满意。"]
[301,null,null,"李庄镇前辛庄村","孟广仁",4.55,"贫困户每亩补助200元",910,"衔接资金","2024年1月-12月","通过土地流转使享受政策的建档立卡户每亩增收200元，经营主体每亩补助300元。","项目实施将带动低收入人口增加收入，增加务工就业机会，群众满意。"]
[302,null,null,"李庄镇前辛庄村","孟兆恩",1.05,"贫困户每亩补助200元",210,"衔接资金","2024年1月-12月","通过土地流转使享受政策的建档立卡户每亩增收200元，经营主体每亩补助300元。","项目实施将带动低收入人口增加收入，增加务工就业机会，群众满意。"]
[303,null,null,"李庄镇前辛庄村","孟兆明",2.64,"贫困户每亩补助200元",528,"衔接资金","2024年1月-12月","通过土地流转使享受政策的建档立卡户每亩增收200元，经营主体每亩补助300元。","项目实施将带动低收入人口增加收入，增加务工就业机会，群众满意。"]
[304,null,null,"李庄镇前辛庄村","孟兆卫",2.1,"贫困户每亩补助200元",420,"衔接资金","2024年1月-12月","通过土地流转使享受政策的建档立卡户每亩增收200元，经营主体每亩补助300元。","项目实施将带动低收入人口增加收入，增加务工就业机会，群众满意。"]
[305,null,null,"李庄镇前辛庄村","牛好强",1.475,"贫困户每亩补助200元",295,"衔接资金","2024年1月-12月","通过土地流转使享受政策的建档立卡户每亩增收200元，经营主体每亩补助300元。","项目实施将带动低收入人口增加收入，增加务工就业机会，群众满意。"]
[306,null,null,"李庄镇前辛庄村","牛尚田",9.2,"贫困户每亩补助200元",1840,"衔接资金","2024年1月-12月","通过土地流转使享受政策的建档立卡户每亩增收200元，经营主体每亩补助300元。","项目实施将带动低收入人口增加收入，增加务工就业机会，群众满意。"]
[307,null,null,"李庄镇前辛庄村","牛振江",3.03,"贫困户每亩补助200元",606,"衔接资金","2024年1月-12月","通过土地流转使享受政策的建档立卡户每亩增收200元，经营主体每亩补助300元。","项目实施将带动低收入人口增加收入，增加务工就业机会，群众满意。"]
[308,null,null,"李庄镇前辛庄村","邵秀英",{"v":2.5,"d":"2.50"},"贫困户每亩补助200元",500,"衔接资金","2024年1月-12月","通过土地流转使享受政策的建档立卡户每亩增收200元，经营主体每亩补助300元。","项目实施将带动低收入人口增加收入，增加务工就业机会，群众满意。"]
[309,null,null,"李庄镇前辛庄村","苏保华",4.1,"贫困户每亩补助200元",820,"衔接资金","2024年1月-12月","通过土地流转使享受政策的建档立卡户每亩增收200元，经营主体每亩补助300元。","项目实施将带动低收入人口增加收入，增加务工就业机会，群众满意。"]
[310,null,null,"李庄镇前辛庄村","苏守乾",4.5,"贫困户每亩补助200元",900,"衔接资金","2024年1月-12月","通过土地流转使享受政策的建档立卡户每亩增收200元，经营主体每亩补助300元。","项目实施将带动低收入人口增加收入，增加务工就业机会，群众满意。"]
[311,null,null,"李庄镇前辛庄村","孙宝磊",1.12,"贫困户每亩补助200元",224,"衔接资金","2024年1月-12月","通过土地流转使享受政策的建档立卡户每亩增收200元，经营主体每亩补助300元。","项目实施将带动低收入人口增加收入，增加务工就业机会，群众满意。"]
[312,null,null,"李庄镇前辛庄村","孙秀成",2.5,"贫困户每亩补助200元",500,"衔接资金","2024年1月-12月","通过土地流转使享受政策的建档立卡户每亩增收200元，经营主体每亩补助300元。","项目实施将带动低收入人口增加收入，增加务工就业机会，群众满意。"]
[313,null,null,"李庄镇前辛庄村","孙玉付",5.24,"贫困户每亩补助200元",1048,"衔接资金","2024年1月-12月","通过土地流转使享受政策的建档立卡户每亩增收200元，经营主体每亩补助300元。","项目实施将带动低收入人口增加收入，增加务工就业机会，群众满意。"]
[314,null,null,"李庄镇前辛庄村","汤金成",3.6,"贫困户每亩补助200元",720,"衔接资金","2024年1月-12月","通过土地流转使享受政策的建档立卡户每亩增收200元，经营主体每亩补助300元。","项目实施将带动低收入人口增加收入，增加务工就业机会，群众满意。"]
[315,null,null,"李庄镇前辛庄村","田书臣",6.15,"贫困户每亩补助200元",1230,"衔接资金","2024年1月-12月","通过土地流转使享受政策的建档立卡户每亩增收200元，经营主体每亩补助300元。","项目实施将带动低收入人口增加收入，增加务工就业机会，群众满意。"]
[316,null,null,"李庄镇前辛庄村","田文成",9.25,"贫困户每亩补助200元",1850,"衔接资金","2024年1月-12月","通过土地流转使享受政策的建档立卡户每亩增收200元，经营主体每亩补助300元。","项目实施将带动低收入人口增加收入，增加务工就业机会，群众满意。"]
[317,null,null,"李庄镇前辛庄村","田文广",7.4,"贫困户每亩补助200元",1480,"衔接资金","2024年1月-12月","通过土地流转使享受政策的建档立卡户每亩增收200元，经营主体每亩补助300元。","项目实施将带动低收入人口增加收入，增加务工就业机会，群众满意。"]
[318,null,null,"李庄镇前辛庄村","田文化",8.33,"贫困户每亩补助200元",1666,"衔接资金","2024年1月-12月","通过土地流转使享受政策的建档立卡户每亩增收200元，经营主体每亩补助300元。","项目实施将带动低收入人口增加收入，增加务工就业机会，群众满意。"]
[319,null,null,"李庄镇前辛庄村","田文周",8.33,"贫困户每亩补助200元",1666,"衔接资金","2024年1月-12月","通过土地流转使享受政策的建档立卡户每亩增收200元，经营主体每亩补助300元。","项目实施将带动低收入人口增加收入，增加务工就业机会，群众满意。"]
[320,null,null,"李庄镇前辛庄村","王宝玉",0.98,"贫困户每亩补助200元",196,"衔接资金","2024年1月-12月","通过土地流转使享受政策的建档立卡户每亩增收200元，经营主体每亩补助300元。","项目实施将带动低收入人口增加收入，增加务工就业机会，群众满意。"]
[321,null,null,"李庄镇前辛庄村","王得刚",1.29,"贫困户每亩补助200元",258,"衔接资金","2024年1月-12月","通过土地流转使享受政策的建档立卡户每亩增收200元，经营主体每亩补助300元。","项目实施将带动低收入人口增加收入，增加务工就业机会，群众满意。"]
[322,null,null,"李庄镇前辛庄村","王风洲",4.4,"贫困户每亩补助200元",880,"衔接资金","2024年1月-12月","通过土地流转使享受政策的建档立卡户每亩增收200元，经营主体每亩补助300元。","项目实施将带动低收入人口增加收入，增加务工就业机会，群众满意。"]
[323,null,null,"李庄镇前辛庄村","王凤花",5.81,"贫困户每亩补助200元",1162,"衔接资金","2024年1月-12月","通过土地流转使享受政策的建档立卡户每亩增收200元，经营主体每亩补助300元。","项目实施将带动低收入人口增加收入，增加务工就业机会，群众满意。"]
[324,null,null,"李庄镇前辛庄村","王潘学",2.5,"贫困户每亩补助200元",500,"衔接资金","2024年1月-12月","通过土地流转使享受政策的建档立卡户每亩增收200元，经营主体每亩补助300元。","项目实施将带动低收入人口增加收入，增加务工就业机会，群众满意。"]
[325,null,null,"李庄镇前辛庄村","王青龙",3.25,"贫困户每亩补助200元",650,"衔接资金","2024年1月-12月","通过土地流转使享受政策的建档立卡户每亩增收200元，经营主体每亩补助300元。","项目实施将带动低收入人口增加收入，增加务工就业机会，群众满意。"]
[326,null,null,"李庄镇前辛庄村","王清合",8.08,"贫困户每亩补助200元",1616,"衔接资金","2024年1月-12月","通过土地流转使享受政策的建档立卡户每亩增收200元，经营主体每亩补助300元。","项目实施将带动低收入人口增加收入，增加务工就业机会，群众满意。"]
[327,null,null,"李庄镇前辛庄村","许广海",3.32,"贫困户每亩补助200元",664,"衔接资金","2024年1月-12月","通过土地流转使享受政策的建档立卡户每亩增收200元，经营主体每亩补助300元。","项目实施将带动低收入人口增加收入，增加务工就业机会，群众满意。"]
[328,null,null,"李庄镇前辛庄村","许克排",2.43,"贫困户每亩补助200元",486,"衔接资金","2024年1月-12月","通过土地流转使享受政策的建档立卡户每亩增收200元，经营主体每亩补助300元。","项目实施将带动低收入人口增加收入，增加务工就业机会，群众满意。"]
[329,null,null,"李庄镇前辛庄村","张建林",14.84,"贫困户每亩补助200元",2968,"衔接资金","2024年1月-12月","通过土地流转使享受政策的建档立卡户每亩增收200元，经营主体每亩补助300元。","项目实施将带动低收入人口增加收入，增加务工就业机会，群众满意。"]
[330,null,null,"李庄镇前辛庄村","张小臣",12.08,"贫困户每亩补助200元",2416,"衔接资金","2024年1月-12月","通过土地流转使享受政策的建档立卡户每亩增收200元，经营主体每亩补助300元。","项目实施将带动低收入人口增加收入，增加务工就业机会，群众满意。"]
[331,null,null,"李庄镇前辛庄村","张自民",12.89,"贫困户每亩补助200元",2578,"衔接资金","2024年1月-12月","通过土地流转使享受政策的建档立卡户每亩增收200元，经营主体每亩补助300元。","项目实施将带动低收入人口增加收入，增加务工就业机会，群众满意。"]
[332,null,null,"李庄镇前辛庄村","赵凤英",1.5,"贫困户每亩补助200元",300,"衔接资金","2024年1月-12月","通过土地流转使享受政策的建档立卡户每亩增收200元，经营主体每亩补助300元。","项目实施将带动低收入人口增加收入，增加务工就业机会，群众满意。"]
[333,null,null,"李庄镇前辛庄村","朱可法",7.2,"贫困户每亩补助200元",1440,"衔接资金","2024年1月-12月","通过土地流转使享受政策的建档立卡户每亩增收200元，经营主体每亩补助300元。","项目实施将带动低收入人口增加收入，增加务工就业机会，群众满意。"]
[334,null,null,"李庄镇贯台村","司进法",4.4,"贫困户每亩补助200元",880,"衔接资金","2024年1月-12月","通过土地流转使享受政策的建档立卡户每亩增收200元，经营主体每亩补助300元。","项目实施将带动低收入人口增加收入，增加务工就业机会，群众满意。"]
[335,null,null,"李庄镇贯台村","韩永亮",4.4,"贫困户每亩补助200元",880,"衔接资金","2024年1月-12月","通过土地流转使享受政策的建档立卡户每亩增收200元，经营主体每亩补助300元。","项目实施将带动低收入人口增加收入，增加务工就业机会，群众满意。"]
[336,null,null,"李庄镇贯台村","王德胜",4.55,"贫困户每亩补助200元",910,"衔接资金","2024年1月-12月","通过土地流转使享受政策的建档立卡户每亩增收200元，经营主体每亩补助300元。","项目实施将带动低收入人口增加收入，增加务工就业机会，群众满意。"]
[337,null,null,"李庄镇贯台村","韩万领",5.5,"贫困户每亩补助200元",1100,"衔接资金","2024年1月-12月","通过土地流转使享受政策的建档立卡户每亩增收200元，经营主体每亩补助300元。","项目实施将带动低收入人口增加收入，增加务工就业机会，群众满意。"]
[338,null,null,"李庄镇贯台村","司长胜",6.6,"贫困户每亩补助200元",1320,"衔接资金","2024年1月-12月","通过土地流转使享受政策的建档立卡户每亩增收200元，经营主体每亩补助300元。","项目实施将带动低收入人口增加收入，增加务工就业机会，群众满意。"]
[339,null,null,"李庄镇贯台村","梁廷珠",12.68,"贫困户每亩补助200元",2536,"衔接资金","2024年1月-12月","通过土地流转使享受政策的建档立卡户每亩增收200元，经营主体每亩补助300元。","项目实施将带动低收入人口增加收入，增加务工就业机会，群众满意。"]
[340,null,null,"李庄镇贯台村","姚玉申",4,"贫困户每亩补助200元",800,"衔接资金","2024年1月-12月","通过土地流转使享受政策的建档立卡户每亩增收200元，经营主体每亩补助300元。","项目实施将带动低收入人口增加收入，增加务工就业机会，群众满意。"]
[341,null,null,"李庄镇贯台村","王建华",4.53,"贫困户每亩补助200元",906,"衔接资金","2024年1月-12月","通过土地流转使享受政策的建档立卡户每亩增收200元，经营主体每亩补助300元。","项目实施将带动低收入人口增加收入，增加务工就业机会，群众满意。"]
[342,null,null,"李庄镇贯台村","王广房",5.58,"贫困户每亩补助200元",{"$f":"F345*200","v":1116},"衔接资金","2024年1月-12月","通过土地流转使享受政策的建档立卡户每亩增收200元，经营主体每亩补助300元。","项目实施将带动低收入人口增加收入，增加务工就业机会，群众满意。"]
[343,null,null,"李庄镇贯台村","靳清河",2.79,"贫困户每亩补助200元",558,"衔接资金","2024年1月-12月","通过土地流转使享受政策的建档立卡户每亩增收200元，经营主体每亩补助300元。","项目实施将带动低收入人口增加收入，增加务工就业机会，群众满意。"]
[344,null,null,"李庄镇贯台村","姜英",9.06,"贫困户每亩补助200元",1812,"衔接资金","2024年1月-12月","通过土地流转使享受政策的建档立卡户每亩增收200元，经营主体每亩补助300元。","项目实施将带动低收入人口增加收入，增加务工就业机会，群众满意。"]
[345,null,null,"李庄镇贯台村","罗金书",8.01,"贫困户每亩补助200元",1602,"衔接资金","2024年1月-12月","通过土地流转使享受政策的建档立卡户每亩增收200元，经营主体每亩补助300元。","项目实施将带动低收入人口增加收入，增加务工就业机会，群众满意。"]
[346,null,null,"李庄镇贯台村","赵之胜",2.43,"贫困户每亩补助200元",486,"衔接资金","2024年1月-12月","通过土地流转使享受政策的建档立卡户每亩增收200元，经营主体每亩补助300元。","项目实施将带动低收入人口增加收入，增加务工就业机会，群众满意。"]
[347,null,null,"李庄镇贯台村","王顺海",1.89,"贫困户每亩补助200元",378,"衔接资金","2024年1月-12月","通过土地流转使享受政策的建档立卡户每亩增收200元，经营主体每亩补助300元。","项目实施将带动低收入人口增加收入，增加务工就业机会，群众满意。"]
[348,null,null,"李庄镇贯台村","朱秀荣",1.08,"贫困户每亩补助200元",216,"衔接资金","2024年1月-12月","通过土地流转使享受政策的建档立卡户每亩增收200元，经营主体每亩补助300元。","项目实施将带动低收入人口增加收入，增加务工就业机会，群众满意。"]
[349,null,null,"李庄镇贯台村","王小玉",1.43,"贫困户每亩补助200元",286,"衔接资金","2024年1月-12月","通过土地流转使享受政策的建档立卡户每亩增收200元，经营主体每亩补助300元。","项目实施将带动低收入人口增加收入，增加务工就业机会，群众满意。"]
[350,null,null,"李庄镇贯台村","王伟民",1.35,"贫困户每亩补助200元",270,"衔接资金","2024年1月-12月","通过土地流转使享受政策的建档立卡户每亩增收200元，经营主体每亩补助300元。","项目实施将带动低收入人口增加收入，增加务工就业机会，群众满意。"]
[351,null,null,"李庄镇贯台村","蔡桂花",3.7,"贫困户每亩补助200元",740,"衔接资金","2024年1月-12月","通过土地流转使享受政策的建档立卡户每亩增收200元，经营主体每亩补助300元。","项目实施将带动低收入人口增加收入，增加务工就业机会，群众满意。"]
[352,null,null,"李庄镇贯台村","邵明奎",1.1,"贫困户每亩补助200元",220,"衔接资金","2024年1月-12月","通过土地流转使享受政策的建档立卡户每亩增收200元，经营主体每亩补助300元。","项目实施将带动低收入人口增加收入，增加务工就业机会，群众满意。"]
[353,null,null,"李庄镇贯台村","郭尚民",4.59,"贫困户每亩补助200元",918,"衔接资金","2024年1月-12月","通过土地流转使享受政策的建档立卡户每亩增收200元，经营主体每亩补助300元。","项目实施将带动低收入人口增加收入，增加务工就业机会，群众满意。"]
[354,null,null,"李庄镇贯台村","王文冬",5,"贫困户每亩补助200元",1000,"衔接资金","2024年1月-12月","通过土地流转使享受政策的建档立卡户每亩增收200元，经营主体每亩补助300元。","项目实施将带动低收入人口增加收入，增加务工就业机会，群众满意。"]
[355,null,null,"李庄镇贯台村","卜凡义",8.4,"贫困户每亩补助200元",1680,"衔接资金","2024年1月-12月","通过土地流转使享受政策的建档立卡户每亩增收200元，经营主体每亩补助300元。","项目实施将带动低收入人口增加收入，增加务工就业机会，群众满意。"]
[356,null,null,"李庄镇贯台村","卜庆斋",1.6,"贫困户每亩补助200元",320,"衔接资金","2024年1月-12月","通过土地流转使享受政策的建档立卡户每亩增收200元，经营主体每亩补助300元。","项目实施将带动低收入人口增加收入，增加务工就业机会，群众满意。"]
[357,null,null,"李庄镇贯台村","靳清芳",4.46,"贫困户每亩补助200元",892,"衔接资金","2024年1月-12月","通过土地流转使享受政策的建档立卡户每亩增收200元，经营主体每亩补助300元。","项目实施将带动低收入人口增加收入，增加务工就业机会，群众满意。"]
[358,null,null,"李庄镇贯台村","靳清波",4.455,"贫困户每亩补助200元",891,"衔接资金","2024年1月-12月","通过土地流转使享受政策的建档立卡户每亩增收200元，经营主体每亩补助300元。","项目实施将带动低收入人口增加收入，增加务工就业机会，群众满意。"]
[359,null,null,"李庄镇贯台村","卢立合",1.25,"贫困户每亩补助200元",250,"衔接资金","2024年1月-12月","通过土地流转使享受政策的建档立卡户每亩增收200元，经营主体每亩补助300元。","项目实施将带动低收入人口增加收入，增加务工就业机会，群众满意。"]
[360,null,null,"李庄镇贯台村","王文贤",2,"贫困户每亩补助200元",400,"衔接资金","2024年1月-12月","通过土地流转使享受政策的建档立卡户每亩增收200元，经营主体每亩补助300元。","项目实施将带动低收入人口增加收入，增加务工就业机会，群众满意。"]
[361,null,null,"李庄镇贯台村","靳清菊",1.63,"贫困户每亩补助200元",326,"衔接资金","2024年1月-12月","通过土地流转使享受政策的建档立卡户每亩增收200元，经营主体每亩补助300元。","项目实施将带动低收入人口增加收入，增加务工就业机会，群众满意。"]
[362,null,null,"李庄镇贯台村","高志学",1.25,"贫困户每亩补助200元",250,"衔接资金","2024年1月-12月","通过土地流转使享受政策的建档立卡户每亩增收200元，经营主体每亩补助300元。","项目实施将带动低收入人口增加收入，增加务工就业机会，群众满意。"]
[363,null,null,"李庄镇贯台村","邵珠强",1.25,"贫困户每亩补助200元",250,"衔接资金","2024年1月-12月","通过土地流转使享受政策的建档立卡户每亩增收200元，经营主体每亩补助300元。","项目实施将带动低收入人口增加收入，增加务工就业机会，群众满意。"]
[364,null,null,"李庄镇贯台村","王军贤",3,"贫困户每亩补助200元",600,"衔接资金","2024年1月-12月","通过土地流转使享受政策的建档立卡户每亩增收200元，经营主体每亩补助300元。","项目实施将带动低收入人口增加收入，增加务工就业机会，群众满意。"]
[365,null,null,"李庄镇贯台村","郭文兰",1.13,"贫困户每亩补助200元",226,"衔接资金","2024年1月-12月","通过土地流转使享受政策的建档立卡户每亩增收200元，经营主体每亩补助300元。","项目实施将带动低收入人口增加收入，增加务工就业机会，群众满意。"]
[366,null,null,"李庄镇贯台村","高秀枝",10.14,"贫困户每亩补助200元",2028,"衔接资金","2024年1月-12月","通过土地流转使享受政策的建档立卡户每亩增收200元，经营主体每亩补助300元。","项目实施将带动低收入人口增加收入，增加务工就业机会，群众满意。"]
[367,null,null,"李庄镇贯台村","张永军",5.14,"贫困户每亩补助200元",1028,"衔接资金","2024年1月-12月","通过土地流转使享受政策的建档立卡户每亩增收200元，经营主体每亩补助300元。","项目实施将带动低收入人口增加收入，增加务工就业机会，群众满意。"]
[368,null,null,"李庄镇贯台村","王景成",10.41,"贫困户每亩补助200元",2082,"衔接资金","2024年1月-12月","通过土地流转使享受政策的建档立卡户每亩增收200元，经营主体每亩补助300元。","项目实施将带动低收入人口增加收入，增加务工就业机会，群众满意。"]
[369,null,null,"李庄镇贯台村","王金德",2.79,"贫困户每亩补助200元",558,"衔接资金","2024年1月-12月","通过土地流转使享受政策的建档立卡户每亩增收200元，经营主体每亩补助300元。","项目实施将带动低收入人口增加收入，增加务工就业机会，群众满意。"]
[370,null,null,"李庄镇贯台村","靳清磊",5.859,"贫困户每亩补助200元",1171.8,"衔接资金","2024年1月-12月","通过土地流转使享受政策的建档立卡户每亩增收200元，经营主体每亩补助300元。","项目实施将带动低收入人口增加收入，增加务工就业机会，群众满意。"]
[371,null,null,"李庄镇贯台村","王保浮",1.3,"贫困户每亩补助200元",260,"衔接资金","2024年1月-12月","通过土地流转使享受政策的建档立卡户每亩增收200元，经营主体每亩补助300元。","项目实施将带动低收入人口增加收入，增加务工就业机会，群众满意。"]
[372,null,null,"李庄镇张曹村","杜绍民",3.481,"贫困户每亩补助200元",696.2,"衔接资金","2024年1月-12月","通过土地流转使享受政策的建档立卡户每亩增收200元，经营主体每亩补助300元。","项目实施将带动低收入人口增加收入，增加务工就业机会，群众满意。"]
[373,null,null,"李庄镇张曹村","寨松科",4.565,"贫困户每亩补助200元",913,"衔接资金","2024年1月-12月","通过土地流转使享受政策的建档立卡户每亩增收200元，经营主体每亩补助300元。","项目实施将带动低收入人口增加收入，增加务工就业机会，群众满意。"]
[374,null,null,"李庄镇张曹村","杜绍强",3.612,"贫困户每亩补助200元",722.4,"衔接资金","2024年1月-12月","通过土地流转使享受政策的建档立卡户每亩增收200元，经营主体每亩补助300元。","项目实施将带动低收入人口增加收入，增加务工就业机会，群众满意。"]
[375,null,null,"李庄镇张曹村","杜绍堂",2.257,"贫困户每亩补助200元",451.4,"衔接资金","2024年1月-12月","通过土地流转使享受政策的建档立卡户每亩增收200元，经营主体每亩补助300元。","项目实施将带动低收入人口增加收入，增加务工就业机会，群众满意。"]
[376,null,null,"李庄镇张曹村","刘长山",4.431,"贫困户每亩补助200元",886.2,"衔接资金","2024年1月-12月","通过土地流转使享受政策的建档立卡户每亩增收200元，经营主体每亩补助300元。","项目实施将带动低收入人口增加收入，增加务工就业机会，群众满意。"]
[377,null,null,"李庄镇张曹村","刘新民",0.2,"贫困户每亩补助200元",40,"衔接资金","2024年1月-12月","通过土地流转使享受政策的建档立卡户每亩增收200元，经营主体每亩补助300元。","项目实施将带动低收入人口增加收入，增加务工就业机会，群众满意。"]
[378,null,null,"李庄镇张曹村","王增民",2.36,"贫困户每亩补助200元",472,"衔接资金","2024年1月-12月","通过土地流转使享受政策的建档立卡户每亩增收200元，经营主体每亩补助300元。","项目实施将带动低收入人口增加收入，增加务工就业机会，群众满意。"]
[379,null,null,"李庄镇张曹村","王增修",2.36,"贫困户每亩补助200元",472,"衔接资金","2024年1月-12月","通过土地流转使享受政策的建档立卡户每亩增收200元，经营主体每亩补助300元。","项目实施将带动低收入人口增加收入，增加务工就业机会，群众满意。"]
[380,null,null,"李庄镇张曹村","李保亮",4.85,"贫困户每亩补助200元",970,"衔接资金","2024年1月-12月","通过土地流转使享受政策的建档立卡户每亩增收200元，经营主体每亩补助300元。","项目实施将带动低收入人口增加收入，增加务工就业机会，群众满意。"]
[381,null,null,"李庄镇张曹村","韩国学",2.7,"贫困户每亩补助200元",540,"衔接资金","2024年1月-12月","通过土地流转使享受政策的建档立卡户每亩增收200元，经营主体每亩补助300元。","项目实施将带动低收入人口增加收入，增加务工就业机会，群众满意。"]
[382,null,null,"李庄镇张曹村","王秀荣",2.02,"贫困户每亩补助200元",404,"衔接资金","2024年1月-12月","通过土地流转使享受政策的建档立卡户每亩增收200元，经营主体每亩补助300元。","项目实施将带动低收入人口增加收入，增加务工就业机会，群众满意。"]
[383,null,null,"李庄镇张曹村","刘举兴",6.58,"贫困户每亩补助200元",1316,"衔接资金","2024年1月-12月","通过土地流转使享受政策的建档立卡户每亩增收200元，经营主体每亩补助300元。","项目实施将带动低收入人口增加收入，增加务工就业机会，群众满意。"]
[384,null,null,"李庄镇张曹村","刘国强",2.3,"贫困户每亩补助200元",460,"衔接资金","2024年1月-12月","通过土地流转使享受政策的建档立卡户每亩增收200元，经营主体每亩补助300元。","项目实施将带动低收入人口增加收入，增加务工就业机会，群众满意。"]
[385,null,null,"李庄镇后辛庄村","张海磊",2.78,"贫困户每亩补助200元",556,"衔接资金","2024年1月-12月","通过土地流转使享受政策的建档立卡户每亩增收200元，经营主体每亩补助300元。","项目实施将带动低收入人口增加收入，增加务工就业机会，群众满意。"]
[386,null,null,"李庄镇后辛庄村","郭普安",1.17,"贫困户每亩补助200元",234,"衔接资金","2024年1月-12月","通过土地流转使享受政策的建档立卡户每亩增收200元，经营主体每亩补助300元。","项目实施将带动低收入人口增加收入，增加务工就业机会，群众满意。"]
[387,null,null,"李庄镇后辛庄村","李东臣",1.285,"贫困户每亩补助200元",257,"衔接资金","2024年1月-12月","通过土地流转使享受政策的建档立卡户每亩增收200元，经营主体每亩补助300元。","项目实施将带动低收入人口增加收入，增加务工就业机会，群众满意。"]
[388,null,null,"李庄镇后辛庄村","张辛忠",0.77,"贫困户每亩补助200元",154,"衔接资金","2024年1月-12月","通过土地流转使享受政策的建档立卡户每亩增收200元，经营主体每亩补助300元。","项目实施将带动低收入人口增加收入，增加务工就业机会，群众满意。"]
[389,null,null,"李庄镇后辛庄村","葛东山",0.62,"贫困户每亩补助200元",124,"衔接资金","2024年1月-12月","通过土地流转使享受政策的建档立卡户每亩增收200元，经营主体每亩补助300元。","项目实施将带动低收入人口增加收入，增加务工就业机会，群众满意。"]
[390,null,null,"李庄镇后辛庄村","杜景贤",1.18,"贫困户每亩补助200元",236,"衔接资金","2024年1月-12月","通过土地流转使享受政策的建档立卡户每亩增收200元，经营主体每亩补助300元。","项目实施将带动低收入人口增加收入，增加务工就业机会，群众满意。"]
[391,null,null,"李庄镇后辛庄村","曹克民",1.13,"贫困户每亩补助200元",226,"衔接资金","2024年1月-12月","通过土地流转使享受政策的建档立卡户每亩增收200元，经营主体每亩补助300元。","项目实施将带动低收入人口增加收入，增加务工就业机会，群众满意。"]
[392,null,null,"李庄镇后辛庄村","王保才",1.45,"贫困户每亩补助200元",290,"衔接资金","2024年1月-12月","通过土地流转使享受政策的建档立卡户每亩增收200元，经营主体每亩补助300元。","项目实施将带动低收入人口增加收入，增加务工就业机会，群众满意。"]
[393,null,null,"李庄镇后辛庄村","曹克兴",0.88,"贫困户每亩补助200元",176,"衔接资金","2024年1月-12月","通过土地流转使享受政策的建档立卡户每亩增收200元，经营主体每亩补助300元。","项目实施将带动低收入人口增加收入，增加务工就业机会，群众满意。"]
[394,null,null,"李庄镇后辛庄村","杜书江",0.8,"贫困户每亩补助200元",160,"衔接资金","2024年1月-12月","通过土地流转使享受政策的建档立卡户每亩增收200元，经营主体每亩补助300元。","项目实施将带动低收入人口增加收入，增加务工就业机会，群众满意。"]
[395,null,null,"李庄镇后辛庄村","王保国",0.91,"贫困户每亩补助200元",182,"衔接资金","2024年1月-12月","通过土地流转使享受政策的建档立卡户每亩增收200元，经营主体每亩补助300元。","项目实施将带动低收入人口增加收入，增加务工就业机会，群众满意。"]
[396,null,null,"李庄镇后辛庄村","刘铁山",1.64,"贫困户每亩补助200元",328,"衔接资金","2024年1月-12月","通过土地流转使享受政策的建档立卡户每亩增收200元，经营主体每亩补助300元。","项目实施将带动低收入人口增加收入，增加务工就业机会，群众满意。"]
[397,null,null,"李庄镇后辛庄村","杜绍臣",3.79,"贫困户每亩补助200元",758,"衔接资金","2024年1月-12月","通过土地流转使享受政策的建档立卡户每亩增收200元，经营主体每亩补助300元。","项目实施将带动低收入人口增加收入，增加务工就业机会，群众满意。"]
[398,null,null,"李庄镇后辛庄村","韩玉香",1.43,"贫困户每亩补助200元",286,"衔接资金","2024年1月-12月","通过土地流转使享受政策的建档立卡户每亩增收200元，经营主体每亩补助300元。","项目实施将带动低收入人口增加收入，增加务工就业机会，群众满意。"]
[399,null,null,"李庄镇后辛庄村","刘建国",2.12,"贫困户每亩补助200元",424,"衔接资金","2024年1月-12月","通过土地流转使享受政策的建档立卡户每亩增收200元，经营主体每亩补助300元。","项目实施将带动低收入人口增加收入，增加务工就业机会，群众满意。"]
[400,null,null,"李庄镇后辛庄村","张治安",0.66,"贫困户每亩补助200元",132,"衔接资金","2024年1月-12月","通过土地流转使享受政策的建档立卡户每亩增收200元，经营主体每亩补助300元。","项目实施将带动低收入人口增加收入，增加务工就业机会，群众满意。"]
[401,null,null,"李庄镇后辛庄村","杜书芬",3.32,"贫困户每亩补助200元",664,"衔接资金","2024年1月-12月","通过土地流转使享受政策的建档立卡户每亩增收200元，经营主体每亩补助300元。","项目实施将带动低收入人口增加收入，增加务工就业机会，群众满意。"]
[402,null,null,"李庄镇后辛庄村","张治国",2.1,"贫困户每亩补助200元",420,"衔接资金","2024年1月-12月","通过土地流转使享受政策的建档立卡户每亩增收200元，经营主体每亩补助300元。","项目实施将带动低收入人口增加收入，增加务工就业机会，群众满意。"]
[403,null,null,"李庄镇后辛庄村","李广然",0.6,"贫困户每亩补助200元",120,"衔接资金","2024年1月-12月","通过土地流转使享受政策的建档立卡户每亩增收200元，经营主体每亩补助300元。","项目实施将带动低收入人口增加收入，增加务工就业机会，群众满意。"]
[404,null,null,"李庄镇后辛庄村","葛清和",0.24,"贫困户每亩补助200元",48,"衔接资金","2024年1月-12月","通过土地流转使享受政策的建档立卡户每亩增收200元，经营主体每亩补助300元。","项目实施将带动低收入人口增加收入，增加务工就业机会，群众满意。"]
[405,null,null,"李庄镇后辛庄村","孟现金",1.62,"贫困户每亩补助200元",324,"衔接资金","2024年1月-12月","通过土地流转使享受政策的建档立卡户每亩增收200元，经营主体每亩补助300元。","项目实施将带动低收入人口增加收入，增加务工就业机会，群众满意。"]
[406,null,null,"李庄镇后辛庄村","孟现林",1,"贫困户每亩补助200元",{"$f":"F409*200","v":200},"衔接资金","2024年1月-12月","通过土地流转使享受政策的建档立卡户每亩增收200元，经营主体每亩补助300元。","项目实施将带动低收入人口增加收入，增加务工就业机会，群众满意。"]
[407,null,null,"李庄镇后辛庄村","韩宝国",1.43,"贫困户每亩补助200元",286,"衔接资金","2024年1月-12月","通过土地流转使享受政策的建档立卡户每亩增收200元，经营主体每亩补助300元。","项目实施将带动低收入人口增加收入，增加务工就业机会，群众满意。"]
[408,"封丘县李庄镇(东浩种植专业合作社)土地流转奖补项目","对经营主体和52户流转土地的贫困户进行奖补，流转土地148.679亩。","李庄镇前辛庄村","曹振书",4.24,"贫困户每亩补助200元",848,"衔接资金","2024年1月-12月","通过土地流转使享受政策的建档立卡户每亩增收200元，经营主体每亩补助300元。","项目实施将带动低收入人口增加收入，增加务工就业机会，群众满意。"]
[409,null,null,"李庄镇前辛庄村","曹素云",4.4,"贫困户每亩补助200元",880,"衔接资金","2024年1月-12月","通过土地流转使享受政策的建档立卡户每亩增收200元，经营主体每亩补助300元。","项目实施将带动低收入人口增加收入，增加务工就业机会，群众满意。"]
[410,null,null,"李庄镇前辛庄村","曹振鑫",0.385,"贫困户每亩补助200元",77,"衔接资金","2024年1月-12月","通过土地流转使享受政策的建档立卡户每亩增收200元，经营主体每亩补助300元。","项目实施将带动低收入人口增加收入，增加务工就业机会，群众满意。"]
[411,null,null,"李庄镇前辛庄村","段景山",8.4,"贫困户每亩补助200元",1680,"衔接资金","2024年1月-12月","通过土地流转使享受政策的建档立卡户每亩增收200元，经营主体每亩补助300元。","项目实施将带动低收入人口增加收入，增加务工就业机会，群众满意。"]
[412,null,null,"李庄镇前辛庄村","管新平",1.46,"贫困户每亩补助200元",292,"衔接资金","2024年1月-12月","通过土地流转使享受政策的建档立卡户每亩增收200元，经营主体每亩补助300元。","项目实施将带动低收入人口增加收入，增加务工就业机会，群众满意。"]
[413,null,null,"李庄镇前辛庄村","韩天霞",0.72,"贫困户每亩补助200元",144,"衔接资金","2024年1月-12月","通过土地流转使享受政策的建档立卡户每亩增收200元，经营主体每亩补助300元。","项目实施将带动低收入人口增加收入，增加务工就业机会，群众满意。"]
[414,null,null,"李庄镇前辛庄村","贺小平",2.73,"贫困户每亩补助200元",546,"衔接资金","2024年1月-12月","通过土地流转使享受政策的建档立卡户每亩增收200元，经营主体每亩补助300元。","项目实施将带动低收入人口增加收入，增加务工就业机会，群众满意。"]
[415,null,null,"李庄镇前辛庄村","黄加荣",3.06,"贫困户每亩补助200元",612,"衔接资金","2024年1月-12月","通过土地流转使享受政策的建档立卡户每亩增收200元，经营主体每亩补助300元。","项目实施将带动低收入人口增加收入，增加务工就业机会，群众满意。"]
[416,null,null,"李庄镇前辛庄村","靳林永",3.27,"贫困户每亩补助200元",654,"衔接资金","2024年1月-12月","通过土地流转使享受政策的建档立卡户每亩增收200元，经营主体每亩补助300元。","项目实施将带动低收入人口增加收入，增加务工就业机会，群众满意。"]
[417,null,null,"李庄镇前辛庄村","靳清东",0.44,"贫困户每亩补助200元",88,"衔接资金","2024年1月-12月","通过土地流转使享受政策的建档立卡户每亩增收200元，经营主体每亩补助300元。","项目实施将带动低收入人口增加收入，增加务工就业机会，群众满意。"]
[418,null,null,"李庄镇前辛庄村","靳士朋",4.4,"贫困户每亩补助200元",880,"衔接资金","2024年1月-12月","通过土地流转使享受政策的建档立卡户每亩增收200元，经营主体每亩补助300元。","项目实施将带动低收入人口增加收入，增加务工就业机会，群众满意。"]
[419,null,null,"李庄镇前辛庄村","李宝三",2.93,"贫困户每亩补助200元",586,"衔接资金","2024年1月-12月","通过土地流转使享受政策的建档立卡户每亩增收200元，经营主体每亩补助300元。","项目实施将带动低收入人口增加收入，增加务工就业机会，群众满意。"]
[420,null,null,"李庄镇前辛庄村","李富恩",2.194,"贫困户每亩补助200元",438.8,"衔接资金","2024年1月-12月","通过土地流转使享受政策的建档立卡户每亩增收200元，经营主体每亩补助300元。","项目实施将带动低收入人口增加收入，增加务工就业机会，群众满意。"]
[421,null,null,"李庄镇前辛庄村","梁现中",3.95,"贫困户每亩补助200元",790,"衔接资金","2024年1月-12月","通过土地流转使享受政策的建档立卡户每亩增收200元，经营主体每亩补助300元。","项目实施将带动低收入人口增加收入，增加务工就业机会，群众满意。"]
[422,null,null,"李庄镇前辛庄村","刘宝贵",2.1,"贫困户每亩补助200元",420,"衔接资金","2024年1月-12月","通过土地流转使享受政策的建档立卡户每亩增收200元，经营主体每亩补助300元。","项目实施将带动低收入人口增加收入，增加务工就业机会，群众满意。"]
[423,null,null,"李庄镇前辛庄村","刘振全",2.36,"贫困户每亩补助200元",472,"衔接资金","2024年1月-12月","通过土地流转使享受政策的建档立卡户每亩增收200元，经营主体每亩补助300元。","项目实施将带动低收入人口增加收入，增加务工就业机会，群众满意。"]
[424,null,null,"李庄镇前辛庄村","孟广亮",1.86,"贫困户每亩补助200元",372,"衔接资金","2024年1月-12月","通过土地流转使享受政策的建档立卡户每亩增收200元，经营主体每亩补助300元。","项目实施将带动低收入人口增加收入，增加务工就业机会，群众满意。"]
[425,null,null,"李庄镇前辛庄村","孟广仁",1.806,"贫困户每亩补助200元",361.2,"衔接资金","2024年1月-12月","通过土地流转使享受政策的建档立卡户每亩增收200元，经营主体每亩补助300元。","项目实施将带动低收入人口增加收入，增加务工就业机会，群众满意。"]
[426,null,null,"李庄镇前辛庄村","孟兆卫",2.8,"贫困户每亩补助200元",560,"衔接资金","2024年1月-12月","通过土地流转使享受政策的建档立卡户每亩增收200元，经营主体每亩补助300元。","项目实施将带动低收入人口增加收入，增加务工就业机会，群众满意。"]
[427,null,null,"李庄镇前辛庄村","孟兆恩",2.13,"贫困户每亩补助200元",426,"衔接资金","2024年1月-12月","通过土地流转使享受政策的建档立卡户每亩增收200元，经营主体每亩补助300元。","项目实施将带动低收入人口增加收入，增加务工就业机会，群众满意。"]
[428,null,null,"李庄镇前辛庄村","孟照云",3.889,"贫困户每亩补助200元",777.8,"衔接资金","2024年1月-12月","通过土地流转使享受政策的建档立卡户每亩增收200元，经营主体每亩补助300元。","项目实施将带动低收入人口增加收入，增加务工就业机会，群众满意。"]
[429,null,null,"李庄镇前辛庄村","牛尚杰",3.34,"贫困户每亩补助200元",668,"衔接资金","2024年1月-12月","通过土地流转使享受政策的建档立卡户每亩增收200元，经营主体每亩补助300元。","项目实施将带动低收入人口增加收入，增加务工就业机会，群众满意。"]
[430,null,null,"李庄镇前辛庄村","牛尚田",3.9,"贫困户每亩补助200元",780,"衔接资金","2024年1月-12月","通过土地流转使享受政策的建档立卡户每亩增收200元，经营主体每亩补助300元。","项目实施将带动低收入人口增加收入，增加务工就业机会，群众满意。"]
[431,null,null,"李庄镇前辛庄村","牛新春",6.4,"贫困户每亩补助200元",1280,"衔接资金","2024年1月-12月","通过土地流转使享受政策的建档立卡户每亩增收200元，经营主体每亩补助300元。","项目实施将带动低收入人口增加收入，增加务工就业机会，群众满意。"]
[432,null,null,"李庄镇前辛庄村","牛振江",1.375,"贫困户每亩补助200元",275,"衔接资金","2024年1月-12月","通过土地流转使享受政策的建档立卡户每亩增收200元，经营主体每亩补助300元。","项目实施将带动低收入人口增加收入，增加务工就业机会，群众满意。"]
[433,null,null,"李庄镇前辛庄村","邵秀英",1.5,"贫困户每亩补助200元",300,"衔接资金","2024年1月-12月","通过土地流转使享受政策的建档立卡户每亩增收200元，经营主体每亩补助300元。","项目实施将带动低收入人口增加收入，增加务工就业机会，群众满意。"]
[434,null,null,"李庄镇前辛庄村","孙秀成",1.5,"贫困户每亩补助200元",300,"衔接资金","2024年1月-12月","通过土地流转使享受政策的建档立卡户每亩增收200元，经营主体每亩补助300元。","项目实施将带动低收入人口增加收入，增加务工就业机会，群众满意。"]
[435,null,null,"李庄镇前辛庄村","汤金成",3.5,"贫困户每亩补助200元",700,"衔接资金","2024年1月-12月","通过土地流转使享受政策的建档立卡户每亩增收200元，经营主体每亩补助300元。","项目实施将带动低收入人口增加收入，增加务工就业机会，群众满意。"]
[436,null,null,"李庄镇前辛庄村","田文成",2.55,"贫困户每亩补助200元",510,"衔接资金","2024年1月-12月","通过土地流转使享受政策的建档立卡户每亩增收200元，经营主体每亩补助300元。","项目实施将带动低收入人口增加收入，增加务工就业机会，群众满意。"]
[437,null,null,"李庄镇前辛庄村","田文化",2.3,"贫困户每亩补助200元",460,"衔接资金","2024年1月-12月","通过土地流转使享受政策的建档立卡户每亩增收200元，经营主体每亩补助300元。","项目实施将带动低收入人口增加收入，增加务工就业机会，群众满意。"]
[438,null,null,"李庄镇前辛庄村","王宝玉",4.19,"贫困户每亩补助200元",838,"衔接资金","2024年1月-12月","通过土地流转使享受政策的建档立卡户每亩增收200元，经营主体每亩补助300元。","项目实施将带动低收入人口增加收入，增加务工就业机会，群众满意。"]
[439,null,null,"李庄镇前辛庄村","王恩中",3.2,"贫困户每亩补助200元",640,"衔接资金","2024年1月-12月","通过土地流转使享受政策的建档立卡户每亩增收200元，经营主体每亩补助300元。","项目实施将带动低收入人口增加收入，增加务工就业机会，群众满意。"]
[440,null,null,"李庄镇前辛庄村","王凤花",1.32,"贫困户每亩补助200元",264,"衔接资金","2024年1月-12月","通过土地流转使享受政策的建档立卡户每亩增收200元，经营主体每亩补助300元。","项目实施将带动低收入人口增加收入，增加务工就业机会，群众满意。"]
[441,null,null,"李庄镇前辛庄村","王青龙",1.65,"贫困户每亩补助200元",330,"衔接资金","2024年1月-12月","通过土地流转使享受政策的建档立卡户每亩增收200元，经营主体每亩补助300元。","项目实施将带动低收入人口增加收入，增加务工就业机会，群众满意。"]
[442,null,null,"李庄镇前辛庄村","王青山",1.74,"贫困户每亩补助200元",348,"衔接资金","2024年1月-12月","通过土地流转使享受政策的建档立卡户每亩增收200元，经营主体每亩补助300元。","项目实施将带动低收入人口增加收入，增加务工就业机会，群众满意。"]
[443,null,null,"李庄镇前辛庄村","徐凤春",1.5,"贫困户每亩补助200元",300,"衔接资金","2024年1月-12月","通过土地流转使享受政策的建档立卡户每亩增收200元，经营主体每亩补助300元。","项目实施将带动低收入人口增加收入，增加务工就业机会，群众满意。"]
[444,null,null,"李庄镇前辛庄村","徐红伟",1.96,"贫困户每亩补助200元",392,"衔接资金","2024年1月-12月","通过土地流转使享受政策的建档立卡户每亩增收200元，经营主体每亩补助300元。","项目实施将带动低收入人口增加收入，增加务工就业机会，群众满意。"]
[445,null,null,"李庄镇前辛庄村","徐建成",2.32,"贫困户每亩补助200元",464,"衔接资金","2024年1月-12月","通过土地流转使享受政策的建档立卡户每亩增收200元，经营主体每亩补助300元。","项目实施将带动低收入人口增加收入，增加务工就业机会，群众满意。"]
[446,null,null,"李庄镇前辛庄村","许广贵",2.89,"贫困户每亩补助200元",578,"衔接资金","2024年1月-12月","通过土地流转使享受政策的建档立卡户每亩增收200元，经营主体每亩补助300元。","项目实施将带动低收入人口增加收入，增加务工就业机会，群众满意。"]
[447,null,null,"李庄镇前辛庄村","许广亮",4.89,"贫困户每亩补助200元",978,"衔接资金","2024年1月-12月","通过土地流转使享受政策的建档立卡户每亩增收200元，经营主体每亩补助300元。","项目实施将带动低收入人口增加收入，增加务工就业机会，群众满意。"]
[448,null,null,"李庄镇前辛庄村","许广专",2.93,"贫困户每亩补助200元",586,"衔接资金","2024年1月-12月","通过土地流转使享受政策的建档立卡户每亩增收200元，经营主体每亩补助300元。","项目实施将带动低收入人口增加收入，增加务工就业机会，群众满意。"]
[449,null,null,"李庄镇前辛庄村","许克排",1.35,"贫困户每亩补助200元",270,"衔接资金","2024年1月-12月","通过土地流转使享受政策的建档立卡户每亩增收200元，经营主体每亩补助300元。","项目实施将带动低收入人口增加收入，增加务工就业机会，群众满意。"]
[450,null,null,"李庄镇前辛庄村","张建",2.59,"贫困户每亩补助200元",518,"衔接资金","2024年1月-12月","通过土地流转使享受政策的建档立卡户每亩增收200元，经营主体每亩补助300元。","项目实施将带动低收入人口增加收入，增加务工就业机会，群众满意。"]
[451,null,null,"李庄镇前辛庄村","王风洲 ",3.2,"贫困户每亩补助200元",640,"衔接资金","2024年1月-12月","通过土地流转使享受政策的建档立卡户每亩增收200元，经营主体每亩补助300元。","项目实施将带动低收入人口增加收入，增加务工就业机会，群众满意。"]
[452,null,null,"李庄镇前辛庄村","张振杰",1.41,"贫困户每亩补助200元",282,"衔接资金","2024年1月-12月","通过土地流转使享受政策的建档立卡户每亩增收200元，经营主体每亩补助300元。","项目实施将带动低收入人口增加收入，增加务工就业机会，群众满意。"]
[453,null,null,"李庄镇前辛庄村","赵凤英",0.9,"贫困户每亩补助200元",180,"衔接资金","2024年1月-12月","通过土地流转使享受政策的建档立卡户每亩增收200元，经营主体每亩补助300元。","项目实施将带动低收入人口增加收入，增加务工就业机会，群众满意。"]
[454,null,null,"李庄镇前辛庄村","周建党",2.29,"贫困户每亩补助200元",458,"衔接资金","2024年1月-12月","通过土地流转使享受政策的建档立卡户每亩增收200元，经营主体每亩补助300元。","项目实施将带动低收入人口增加收入，增加务工就业机会，群众满意。"]
[455,null,null,"李庄镇前辛庄村","朱可法",6.09,"贫困户每亩补助200元",1218,"衔接资金","2024年1月-12月","通过土地流转使享受政策的建档立卡户每亩增收200元，经营主体每亩补助300元。","项目实施将带动低收入人口增加收入，增加务工就业机会，群众满意。"]
[456,null,null,"李庄镇南曹村","李清江",5.37,"贫困户每亩补助200元",1074,"衔接资金","2024年1月-12月","通过土地流转使享受政策的建档立卡户每亩增收200元，经营主体每亩补助300元。","项目实施将带动低收入人口增加收入，增加务工就业机会，群众满意。"]
[457,null,null,"李庄镇南曹村","张鹏飞",6,"贫困户每亩补助200元",1200,"衔接资金","2024年1月-12月","通过土地流转使享受政策的建档立卡户每亩增收200元，经营主体每亩补助300元。","项目实施将带动低收入人口增加收入，增加务工就业机会，群众满意。"]
[458,null,null,"李庄镇南曹村","张宝珠",3,"贫困户每亩补助200元",600,"衔接资金","2024年1月-12月","通过土地流转使享受政策的建档立卡户每亩增收200元，经营主体每亩补助300元。","项目实施将带动低收入人口增加收入，增加务工就业机会，群众满意。"]
[459,null,null,"李庄镇南曹村","张小记",2,"贫困户每亩补助200元",400,"衔接资金","2024年1月-12月","通过土地流转使享受政策的建档立卡户每亩增收200元，经营主体每亩补助300元。","项目实施将带动低收入人口增加收入，增加务工就业机会，群众满意。"]
[460,"封丘县李庄镇(封新禾种植专业合作社)土地流转奖补项目","对经营主体和2户流转土地的贫困户进行奖补，  流转土地70.564亩。","李庄镇贯台村","王学顺",32.292,"贫困户每亩补助200元",6458.4,"衔接资金","2024年1月-12月","通过土地流转使享受政策的建档立卡户每亩增收200元，经营主体每亩补助300元。","项目实施将带动低收入人口增加收入，增加务工就业机会，群众满意。"]
[461,null,null,"李庄镇贯台村","王学保",38.272,"贫困户每亩补助200元",7654.4,"衔接资金","2024年1月-12月","通过土地流转使享受政策的建档立卡户每亩增收200元，经营主体每亩补助300元。","项目实施将带动低收入人口增加收入，增加务工就业机会，群众满意。"]
[462,"封丘县李庄镇(彤鑫农业家庭农场)土地流转奖补项目","对经营主体和6户流转土地的贫困户进行奖补，流转土地42.2亩。","李庄镇贯台村","陶维海",4,"贫困户每亩补助200元",800,"衔接资金","2024年1月-12月","通过土地流转使享受政策的建档立卡户每亩增收200元，经营主体每亩补助300元。","项目实施将带动低收入人口增加收入，增加务工就业机会，群众满意。"]
[463,null,null,"李庄镇贯台村","卜凡超",2.8,"贫困户每亩补助200元",560,"衔接资金","2024年1月-12月","通过土地流转使享受政策的建档立卡户每亩增收200元，经营主体每亩补助300元。","项目实施将带动低收入人口增加收入，增加务工就业机会，群众满意。"]
[464,null,null,"李庄镇贯台村","白凤连",6,"贫困户每亩补助200元",1200,"衔接资金","2024年1月-12月","通过土地流转使享受政策的建档立卡户每亩增收200元，经营主体每亩补助300元。","项目实施将带动低收入人口增加收入，增加务工就业机会，群众满意。"]
[465,null,null,"李庄镇贯台村","李保学",16,"贫困户每亩补助200元",3200,"衔接资金","2024年1月-12月","通过土地流转使享受政策的建档立卡户每亩增收200元，经营主体每亩补助300元。","项目实施将带动低收入人口增加收入，增加务工就业机会，群众满意。"]
[466,null,null,"李庄镇贯台村","王伟民",10.4,"贫困户每亩补助200元",2080,"衔接资金","2024年1月-12月","通过土地流转使享受政策的建档立卡户每亩增收200元，经营主体每亩补助300元。","项目实施将带动低收入人口增加收入，增加务工就业机会，群众满意。"]
[467,null,null,"李庄镇贯台村","邵连英",3,"贫困户每亩补助200元",600,"衔接资金","2024年1月-12月","通过土地流转使享受政策的建档立卡户每亩增收200元，经营主体每亩补助300元。","项目实施将带动低收入人口增加收入，增加务工就业机会，群众满意。"]
[468,"封丘县李庄镇(恩英家庭农场)土地流转奖补项目","对经营主体和3户流转土地的贫困户进行奖补，流转土地43亩。","李庄镇贯台村","梁现朋",18,"贫困户每亩补助200元",3600,"衔接资金","2024年1月-12月","通过土地流转使享受政策的建档立卡户每亩增收200元，经营主体每亩补助300元。","项目实施将带动低收入人口增加收入，增加务工就业机会，群众满意。"]
[469,null,null,"李庄镇贯台村","郭海刚",10,"贫困户每亩补助200元",2000,"衔接资金","2024年1月-12月","通过土地流转使享受政策的建档立卡户每亩增收200元，经营主体每亩补助300元。","项目实施将带动低收入人口增加收入，增加务工就业机会，群众满意。"]
[470,null,null,"李庄镇贯台村","李建军",15,"贫困户每亩补助200元",{"$f":"F473*200","v":3000},"衔接资金","2024年1月-12月","通过土地流转使享受政策的建档立卡户每亩增收200元，经营主体每亩补助300元。","项目实施将带动低收入人口增加收入，增加务工就业机会，群众满意。"]
[471,"封丘县李庄镇(天蓝农业种植养殖专业合作社)土地流转奖补项目","对经营主体和16户流转土地的贫困户进行奖补，流转土地38.47亩。","李庄镇后辛庄村","张治国",2.6,"贫困户每亩补助200元",520,"衔接资金","2024年1月-12月","通过土地流转使享受政策的建档立卡户每亩增收200元，经营主体每亩补助300元。","项目实施将带动低收入人口增加收入，增加务工就业机会，群众满意。"]
[472,null,null,"李庄镇后辛庄村","葛清和",3.2,"贫困户每亩补助200元",640,"衔接资金","2024年1月-12月","通过土地流转使享受政策的建档立卡户每亩增收200元，经营主体每亩补助300元。","项目实施将带动低收入人口增加收入，增加务工就业机会，群众满意。"]
[473,null,null,"李庄镇后辛庄村","孟现忠",4.35,"贫困户每亩补助200元",870,"衔接资金","2024年1月-12月","通过土地流转使享受政策的建档立卡户每亩增收200元，经营主体每亩补助300元。","项目实施将带动低收入人口增加收入，增加务工就业机会，群众满意。"]
[474,null,null,"李庄镇后辛庄村","孟现金",3.53,"贫困户每亩补助200元",706,"衔接资金","2024年1月-12月","通过土地流转使享受政策的建档立卡户每亩增收200元，经营主体每亩补助300元。","项目实施将带动低收入人口增加收入，增加务工就业机会，群众满意。"]
[475,null,null,"李庄镇后辛庄村","王书亮",1.18,"贫困户每亩补助200元",236,"衔接资金","2024年1月-12月","通过土地流转使享受政策的建档立卡户每亩增收200元，经营主体每亩补助300元。","项目实施将带动低收入人口增加收入，增加务工就业机会，群众满意。"]
[476,null,null,"李庄镇后辛庄村","王保春",1.06,"贫困户每亩补助200元",212,"衔接资金","2024年1月-12月","通过土地流转使享受政策的建档立卡户每亩增收200元，经营主体每亩补助300元。","项目实施将带动低收入人口增加收入，增加务工就业机会，群众满意。"]
[477,null,null,"李庄镇后辛庄村","张保全",{"v":1.2,"d":"1.20"},"贫困户每亩补助200元",240,"衔接资金","2024年1月-12月","通过土地流转使享受政策的建档立卡户每亩增收200元，经营主体每亩补助300元。","项目实施将带动低收入人口增加收入，增加务工就业机会，群众满意。"]
[478,null,null,"李庄镇后辛庄村","梁现桃",0.94,"贫困户每亩补助200元",188,"衔接资金","2024年1月-12月","通过土地流转使享受政策的建档立卡户每亩增收200元，经营主体每亩补助300元。","项目实施将带动低收入人口增加收入，增加务工就业机会，群众满意。"]
[479,null,null,"李庄镇后辛庄村","王书河",1.66,"贫困户每亩补助200元",332,"衔接资金","2024年1月-12月","通过土地流转使享受政策的建档立卡户每亩增收200元，经营主体每亩补助300元。","项目实施将带动低收入人口增加收入，增加务工就业机会，群众满意。"]
[480,null,null,"李庄镇后辛庄村","王保真",1.88,"贫困户每亩补助200元",376,"衔接资金","2024年1月-12月","通过土地流转使享受政策的建档立卡户每亩增收200元，经营主体每亩补助300元。","项目实施将带动低收入人口增加收入，增加务工就业机会，群众满意。"]
[481,null,null,"李庄镇后辛庄村","郭普安",2.32,"贫困户每亩补助200元",464,"衔接资金","2024年1月-12月","通过土地流转使享受政策的建档立卡户每亩增收200元，经营主体每亩补助300元。","项目实施将带动低收入人口增加收入，增加务工就业机会，群众满意。"]
[482,null,null,"李庄镇后辛庄村","刘强民",1.91,"贫困户每亩补助200元",382,"衔接资金","2024年1月-12月","通过土地流转使享受政策的建档立卡户每亩增收200元，经营主体每亩补助300元。","项目实施将带动低收入人口增加收入，增加务工就业机会，群众满意。"]
[483,null,null,"李庄镇后辛庄村","韩玉香",2.86,"贫困户每亩补助200元",572,"衔接资金","2024年1月-12月","通过土地流转使享受政策的建档立卡户每亩增收200元，经营主体每亩补助300元。","项目实施将带动低收入人口增加收入，增加务工就业机会，群众满意。"]
[484,null,null,"李庄镇后辛庄村","杜书辉",3.15,"贫困户每亩补助200元",630,"衔接资金","2024年1月-12月","通过土地流转使享受政策的建档立卡户每亩增收200元，经营主体每亩补助300元。","项目实施将带动低收入人口增加收入，增加务工就业机会，群众满意。"]
[485,null,null,"李庄镇后辛庄村","张纪友",4.9,"贫困户每亩补助200元",980,"衔接资金","2024年1月-12月","通过土地流转使享受政策的建档立卡户每亩增收200元，经营主体每亩补助300元。","项目实施将带动低收入人口增加收入，增加务工就业机会，群众满意。"]
[486,null,null,"李庄镇后辛庄村","张家旗",1.73,"贫困户每亩补助200元",346,"衔接资金","2024年1月-12月","通过土地流转使享受政策的建档立卡户每亩增收200元，经营主体每亩补助300元。","项目实施将带动低收入人口增加收入，增加务工就业机会，群众满意。"]
[487,"封丘县李庄镇（从众种植专业合作社）土地流转奖补项目","对经营主体和10户流转土地的贫困户进行奖补，流转土地38.029亩。","李庄镇竹岗村","魏清霞",2.12,"贫困户每亩补助200元",424,"衔接资金","2024年1月-12月","通过土地流转使享受政策的建档立卡户每亩增收200元，经营主体每亩补助300元。","项目实施将带动低收入人口增加收入，增加务工就业机会，群众满意。"]
[488,null,null,"李庄镇竹岗村","苏大敏",3.06,"贫困户每亩补助200元",612,"衔接资金","2024年1月-12月","通过土地流转使享受政策的建档立卡户每亩增收200元，经营主体每亩补助300元。","项目实施将带动低收入人口增加收入，增加务工就业机会，群众满意。"]
[489,null,null,"李庄镇竹岗村","李登玉",3.45,"贫困户每亩补助200元",690,"衔接资金","2024年1月-12月","通过土地流转使享受政策的建档立卡户每亩增收200元，经营主体每亩补助300元。","项目实施将带动低收入人口增加收入，增加务工就业机会，群众满意。"]
[490,null,null,"李庄镇竹岗村","李登广",3.7,"贫困户每亩补助200元",740,"衔接资金","2024年1月-12月","通过土地流转使享受政策的建档立卡户每亩增收200元，经营主体每亩补助300元。","项目实施将带动低收入人口增加收入，增加务工就业机会，群众满意。"]
[491,null,null,"李庄镇竹岗村","郑国胜",2.12,"贫困户每亩补助200元",424,"衔接资金","2024年1月-12月","通过土地流转使享受政策的建档立卡户每亩增收200元，经营主体每亩补助300元。","项目实施将带动低收入人口增加收入，增加务工就业机会，群众满意。"]
[492,null,null,"李庄镇竹岗村","李登选",5.3,"贫困户每亩补助200元",1060,"衔接资金","2024年1月-12月","通过土地流转使享受政策的建档立卡户每亩增收200元，经营主体每亩补助300元。","项目实施将带动低收入人口增加收入，增加务工就业机会，群众满意。"]
[493,null,null,"李庄镇竹岗村","李会才",2,"贫困户每亩补助200元",400,"衔接资金","2024年1月-12月","通过土地流转使享受政策的建档立卡户每亩增收200元，经营主体每亩补助300元。","项目实施将带动低收入人口增加收入，增加务工就业机会，群众满意。"]
[494,null,null,"李庄镇竹岗村","李存良",9.7,"贫困户每亩补助200元",1940,"衔接资金","2024年1月-12月","通过土地流转使享受政策的建档立卡户每亩增收200元，经营主体每亩补助300元。","项目实施将带动低收入人口增加收入，增加务工就业机会，群众满意。"]
[495,null,null,"李庄镇竹岗村","魏红雨",3.84,"贫困户每亩补助200元",768,"衔接资金","2024年1月-12月","通过土地流转使享受政策的建档立卡户每亩增收200元，经营主体每亩补助300元。","项目实施将带动低收入人口增加收入，增加务工就业机会，群众满意。"]
[496,null,null,"李庄镇竹岗村","李连闯",2.739,"贫困户每亩补助200元",547.8,"衔接资金","2024年1月-12月","通过土地流转使享受政策的建档立卡户每亩增收200元，经营主体每亩补助300元。","项目实施将带动低收入人口增加收入，增加务工就业机会，群众满意。"]
[497,"封丘县李庄镇（豫柱家庭农场）土地流转奖补项目","对经营主体和3户流转土地的贫困户进行奖补，流转土地14.8亩。","李庄镇朱寨村","卜见美",6,"贫困户每亩补助200元",1200,"衔接资金","2024年1月-12月","通过土地流转使享受政策的建档立卡户每亩增收200元，经营主体每亩补助300元。","项目实施将带动低收入人口增加收入，增加务工就业机会，群众满意。"]
[498,null,null,"李庄镇朱寨村","申见凤",4.8,"贫困户每亩补助200元",960,"衔接资金","2024年1月-12月","通过土地流转使享受政策的建档立卡户每亩增收200元，经营主体每亩补助300元。","项目实施将带动低收入人口增加收入，增加务工就业机会，群众满意。"]
[499,null,null,"李庄镇朱寨村","宋金荣",4,"贫困户每亩补助200元",800,"衔接资金","2024年1月-12月","通过土地流转使享受政策的建档立卡户每亩增收200元，经营主体每亩补助300元。","项目实施将带动低收入人口增加收入，增加务工就业机会，群众满意。"]
[500,"封丘县李庄镇(安乐种植家庭农场)土地流转奖补项目","对经营主体和2户流转土地的贫困户进行奖补，流转土地10.36亩。","李庄镇苦庄村","赵玉山",6.64,"贫困户每亩补助200元",1328,"衔接资金","2024年1月-12月","通过土地流转使享受政策的建档立卡户每亩增收200元，经营主体每亩补助300元。","项目实施将带动低收入人口增加收入，增加务工就业机会，群众满意。"]
[501,null,null,"李庄镇苦庄村","刘万振",3.72,"贫困户每亩补助200元",744,"衔接资金","2024年1月-12月","通过土地流转使享受政策的建档立卡户每亩增收200元，经营主体每亩补助300元。","项目实施将带动低收入人口增加收入，增加务工就业机会，群众满意。"]
[502,"封丘县李庄镇(创富苗木种植专业合作社)土地流转奖补项目","对经营主体和58户流转土地的贫困户进行奖补，流转土地119.69亩。","李庄镇前辛庄村","曹振书",0.8,"贫困户每亩补助200元",160,"衔接资金","2024年1月-12月","通过土地流转使享受政策的建档立卡户每亩增收200元，经营主体每亩补助300元。","项目实施将带动低收入人口增加收入，增加务工就业机会，群众满意。"]
[503,null,null,"李庄镇前辛庄村","管新平",1.25,"贫困户每亩补助200元",250,"衔接资金","2024年1月-12月","通过土地流转使享受政策的建档立卡户每亩增收200元，经营主体每亩补助300元。","项目实施将带动低收入人口增加收入，增加务工就业机会，群众满意。"]
[504,null,null,"李庄镇前辛庄村","韩天霞",1.53,"贫困户每亩补助200元",306,"衔接资金","2024年1月-12月","通过土地流转使享受政策的建档立卡户每亩增收200元，经营主体每亩补助300元。","项目实施将带动低收入人口增加收入，增加务工就业机会，群众满意。"]
[505,null,null,"李庄镇前辛庄村","贺小平",2.24,"贫困户每亩补助200元",448,"衔接资金","2024年1月-12月","通过土地流转使享受政策的建档立卡户每亩增收200元，经营主体每亩补助300元。","项目实施将带动低收入人口增加收入，增加务工就业机会，群众满意。"]
[506,null,null,"李庄镇前辛庄村","靳林永",1.89,"贫困户每亩补助200元",378,"衔接资金","2024年1月-12月","通过土地流转使享受政策的建档立卡户每亩增收200元，经营主体每亩补助300元。","项目实施将带动低收入人口增加收入，增加务工就业机会，群众满意。"]
[507,null,null,"李庄镇前辛庄村","靳清东",1.08,"贫困户每亩补助200元",216,"衔接资金","2024年1月-12月","通过土地流转使享受政策的建档立卡户每亩增收200元，经营主体每亩补助300元。","项目实施将带动低收入人口增加收入，增加务工就业机会，群众满意。"]
[508,null,null,"李庄镇前辛庄村","靳士广",1.08,"贫困户每亩补助200元",216,"衔接资金","2024年1月-12月","通过土地流转使享受政策的建档立卡户每亩增收200元，经营主体每亩补助300元。","项目实施将带动低收入人口增加收入，增加务工就业机会，群众满意。"]
[509,null,null,"李庄镇前辛庄村","靳士朋",0.83,"贫困户每亩补助200元",166,"衔接资金","2024年1月-12月","通过土地流转使享受政策的建档立卡户每亩增收200元，经营主体每亩补助300元。","项目实施将带动低收入人口增加收入，增加务工就业机会，群众满意。"]
[510,null,null,"李庄镇前辛庄村","靳士伟",3.255,"贫困户每亩补助200元",651,"衔接资金","2024年1月-12月","通过土地流转使享受政策的建档立卡户每亩增收200元，经营主体每亩补助300元。","项目实施将带动低收入人口增加收入，增加务工就业机会，群众满意。"]
[511,null,null,"李庄镇前辛庄村","曹素云",2.45,"贫困户每亩补助200元",490,"衔接资金","2024年1月-12月","通过土地流转使享受政策的建档立卡户每亩增收200元，经营主体每亩补助300元。","项目实施将带动低收入人口增加收入，增加务工就业机会，群众满意。"]
[512,null,null,"李庄镇前辛庄村","李富恩",1.25,"贫困户每亩补助200元",250,"衔接资金","2024年1月-12月","通过土地流转使享受政策的建档立卡户每亩增收200元，经营主体每亩补助300元。","项目实施将带动低收入人口增加收入，增加务工就业机会，群众满意。"]
[513,null,null,"李庄镇前辛庄村","李刚",1.5,"贫困户每亩补助200元",300,"衔接资金","2024年1月-12月","通过土地流转使享受政策的建档立卡户每亩增收200元，经营主体每亩补助300元。","项目实施将带动低收入人口增加收入，增加务工就业机会，群众满意。"]
[514,null,null,"李庄镇前辛庄村","李娜",1.32,"贫困户每亩补助200元",264,"衔接资金","2024年1月-12月","通过土地流转使享受政策的建档立卡户每亩增收200元，经营主体每亩补助300元。","项目实施将带动低收入人口增加收入，增加务工就业机会，群众满意。"]
[515,null,null,"李庄镇前辛庄村","梁胜利",4.2,"贫困户每亩补助200元",840,"衔接资金","2024年1月-12月","通过土地流转使享受政策的建档立卡户每亩增收200元，经营主体每亩补助300元。","项目实施将带动低收入人口增加收入，增加务工就业机会，群众满意。"]
[516,null,null,"李庄镇前辛庄村","梁现中",1.65,"贫困户每亩补助200元",330,"衔接资金","2024年1月-12月","通过土地流转使享受政策的建档立卡户每亩增收200元，经营主体每亩补助300元。","项目实施将带动低收入人口增加收入，增加务工就业机会，群众满意。"]
[517,null,null,"李庄镇前辛庄村","刘宝贵",1.75,"贫困户每亩补助200元",350,"衔接资金","2024年1月-12月","通过土地流转使享受政策的建档立卡户每亩增收200元，经营主体每亩补助300元。","项目实施将带动低收入人口增加收入，增加务工就业机会，群众满意。"]
[518,null,null,"李庄镇前辛庄村","刘志梅",2.81,"贫困户每亩补助200元",562,"衔接资金","2024年1月-12月","通过土地流转使享受政策的建档立卡户每亩增收200元，经营主体每亩补助300元。","项目实施将带动低收入人口增加收入，增加务工就业机会，群众满意。"]
[519,null,null,"李庄镇前辛庄村","孟广仁",2.86,"贫困户每亩补助200元",572,"衔接资金","2024年1月-12月","通过土地流转使享受政策的建档立卡户每亩增收200元，经营主体每亩补助300元。","项目实施将带动低收入人口增加收入，增加务工就业机会，群众满意。"]
[520,null,null,"李庄镇前辛庄村","孟广学",2.2,"贫困户每亩补助200元",440,"衔接资金","2024年1月-12月","通过土地流转使享受政策的建档立卡户每亩增收200元，经营主体每亩补助300元。","项目实施将带动低收入人口增加收入，增加务工就业机会，群众满意。"]
[521,null,null,"李庄镇前辛庄村","孟现明",4.2,"贫困户每亩补助200元",840,"衔接资金","2024年1月-12月","通过土地流转使享受政策的建档立卡户每亩增收200元，经营主体每亩补助300元。","项目实施将带动低收入人口增加收入，增加务工就业机会，群众满意。"]
[522,null,null,"李庄镇前辛庄村","孟照云",4.1,"贫困户每亩补助200元",820,"衔接资金","2024年1月-12月","通过土地流转使享受政策的建档立卡户每亩增收200元，经营主体每亩补助300元。","项目实施将带动低收入人口增加收入，增加务工就业机会，群众满意。"]
[523,null,null,"李庄镇前辛庄村","牛好杰",3.2,"贫困户每亩补助200元",640,"衔接资金","2024年1月-12月","通过土地流转使享受政策的建档立卡户每亩增收200元，经营主体每亩补助300元。","项目实施将带动低收入人口增加收入，增加务工就业机会，群众满意。"]
[524,null,null,"李庄镇前辛庄村","牛好亮",1.65,"贫困户每亩补助200元",330,"衔接资金","2024年1月-12月","通过土地流转使享受政策的建档立卡户每亩增收200元，经营主体每亩补助300元。","项目实施将带动低收入人口增加收入，增加务工就业机会，群众满意。"]
[525,null,null,"李庄镇前辛庄村","牛尚杰",3.6,"贫困户每亩补助200元",720,"衔接资金","2024年1月-12月","通过土地流转使享受政策的建档立卡户每亩增收200元，经营主体每亩补助300元。","项目实施将带动低收入人口增加收入，增加务工就业机会，群众满意。"]
[526,null,null,"李庄镇前辛庄村","牛新春",2.81,"贫困户每亩补助200元",562,"衔接资金","2024年1月-12月","通过土地流转使享受政策的建档立卡户每亩增收200元，经营主体每亩补助300元。","项目实施将带动低收入人口增加收入，增加务工就业机会，群众满意。"]
[527,null,null,"李庄镇前辛庄村","牛振江",1.92,"贫困户每亩补助200元",384,"衔接资金","2024年1月-12月","通过土地流转使享受政策的建档立卡户每亩增收200元，经营主体每亩补助300元。","项目实施将带动低收入人口增加收入，增加务工就业机会，群众满意。"]
[528,null,null,"李庄镇前辛庄村","邵秀英",1.25,"贫困户每亩补助200元",250,"衔接资金","2024年1月-12月","通过土地流转使享受政策的建档立卡户每亩增收200元，经营主体每亩补助300元。","项目实施将带动低收入人口增加收入，增加务工就业机会，群众满意。"]
[529,null,null,"李庄镇前辛庄村","苏保华",1.23,"贫困户每亩补助200元",246,"衔接资金","2024年1月-12月","通过土地流转使享受政策的建档立卡户每亩增收200元，经营主体每亩补助300元。","项目实施将带动低收入人口增加收入，增加务工就业机会，群众满意。"]
[530,null,null,"李庄镇前辛庄村","苏守乾",1.125,"贫困户每亩补助200元",225,"衔接资金","2024年1月-12月","通过土地流转使享受政策的建档立卡户每亩增收200元，经营主体每亩补助300元。","项目实施将带动低收入人口增加收入，增加务工就业机会，群众满意。"]
[531,null,null,"李庄镇前辛庄村","孙宝磊",6.96,"贫困户每亩补助200元",1392,"衔接资金","2024年1月-12月","通过土地流转使享受政策的建档立卡户每亩增收200元，经营主体每亩补助300元。","项目实施将带动低收入人口增加收入，增加务工就业机会，群众满意。"]
[532,null,null,"李庄镇前辛庄村","孙秀成",1.25,"贫困户每亩补助200元",250,"衔接资金","2024年1月-12月","通过土地流转使享受政策的建档立卡户每亩增收200元，经营主体每亩补助300元。","项目实施将带动低收入人口增加收入，增加务工就业机会，群众满意。"]
[533,null,null,"李庄镇前辛庄村","孙玉付",1.12,"贫困户每亩补助200元",224,"衔接资金","2024年1月-12月","通过土地流转使享受政策的建档立卡户每亩增收200元，经营主体每亩补助300元。","项目实施将带动低收入人口增加收入，增加务工就业机会，群众满意。"]
[534,null,null,"李庄镇前辛庄村","田文成",1.14,"贫困户每亩补助200元",{"$f":"F537*200","v":228},"衔接资金","2024年1月-12月","通过土地流转使享受政策的建档立卡户每亩增收200元，经营主体每亩补助300元。","项目实施将带动低收入人口增加收入，增加务工就业机会，群众满意。"]
[535,null,null,"李庄镇前辛庄村","田文化",2.2,"贫困户每亩补助200元",440,"衔接资金","2024年1月-12月","通过土地流转使享受政策的建档立卡户每亩增收200元，经营主体每亩补助300元。","项目实施将带动低收入人口增加收入，增加务工就业机会，群众满意。"]
[536,null,null,"李庄镇前辛庄村","田文周",1.94,"贫困户每亩补助200元",388,"衔接资金","2024年1月-12月","通过土地流转使享受政策的建档立卡户每亩增收200元，经营主体每亩补助300元。","项目实施将带动低收入人口增加收入，增加务工就业机会，群众满意。"]
[537,null,null,"李庄镇前辛庄村","王宝玉",2.66,"贫困户每亩补助200元",532,"衔接资金","2024年1月-12月","通过土地流转使享受政策的建档立卡户每亩增收200元，经营主体每亩补助300元。","项目实施将带动低收入人口增加收入，增加务工就业机会，群众满意。"]
[538,null,null,"李庄镇前辛庄村","王得刚",1.08,"贫困户每亩补助200元",216,"衔接资金","2024年1月-12月","通过土地流转使享受政策的建档立卡户每亩增收200元，经营主体每亩补助300元。","项目实施将带动低收入人口增加收入，增加务工就业机会，群众满意。"]
[539,null,null,"李庄镇前辛庄村","王恩中",1.35,"贫困户每亩补助200元",270,"衔接资金","2024年1月-12月","通过土地流转使享受政策的建档立卡户每亩增收200元，经营主体每亩补助300元。","项目实施将带动低收入人口增加收入，增加务工就业机会，群众满意。"]
[540,null,null,"李庄镇前辛庄村","王潘学",1.25,"贫困户每亩补助200元",250,"衔接资金","2024年1月-12月","通过土地流转使享受政策的建档立卡户每亩增收200元，经营主体每亩补助300元。","项目实施将带动低收入人口增加收入，增加务工就业机会，群众满意。"]
[541,null,null,"李庄镇前辛庄村","王青龙",1.38,"贫困户每亩补助200元",276,"衔接资金","2024年1月-12月","通过土地流转使享受政策的建档立卡户每亩增收200元，经营主体每亩补助300元。","项目实施将带动低收入人口增加收入，增加务工就业机会，群众满意。"]
[542,null,null,"李庄镇前辛庄村","王青山",2.68,"贫困户每亩补助200元",536,"衔接资金","2024年1月-12月","通过土地流转使享受政策的建档立卡户每亩增收200元，经营主体每亩补助300元。","项目实施将带动低收入人口增加收入，增加务工就业机会，群众满意。"]
[543,null,null,"李庄镇前辛庄村","王清合",4.46,"贫困户每亩补助200元",892,"衔接资金","2024年1月-12月","通过土地流转使享受政策的建档立卡户每亩增收200元，经营主体每亩补助300元。","项目实施将带动低收入人口增加收入，增加务工就业机会，群众满意。"]
[544,null,null,"李庄镇前辛庄村","徐凤春",1.5,"贫困户每亩补助200元",300,"衔接资金","2024年1月-12月","通过土地流转使享受政策的建档立卡户每亩增收200元，经营主体每亩补助300元。","项目实施将带动低收入人口增加收入，增加务工就业机会，群众满意。"]
[545,null,null,"李庄镇前辛庄村","徐凤楼",1.2,"贫困户每亩补助200元",240,"衔接资金","2024年1月-12月","通过土地流转使享受政策的建档立卡户每亩增收200元，经营主体每亩补助300元。","项目实施将带动低收入人口增加收入，增加务工就业机会，群众满意。"]
[546,null,null,"李庄镇前辛庄村","徐红伟",2.1,"贫困户每亩补助200元",420,"衔接资金","2024年1月-12月","通过土地流转使享受政策的建档立卡户每亩增收200元，经营主体每亩补助300元。","项目实施将带动低收入人口增加收入，增加务工就业机会，群众满意。"]
[547,null,null,"李庄镇前辛庄村","徐建成",1.2,"贫困户每亩补助200元",240,"衔接资金","2024年1月-12月","通过土地流转使享受政策的建档立卡户每亩增收200元，经营主体每亩补助300元。","项目实施将带动低收入人口增加收入，增加务工就业机会，群众满意。"]
[548,null,null,"李庄镇前辛庄村","许克排",0.81,"贫困户每亩补助200元",162,"衔接资金","2024年1月-12月","通过土地流转使享受政策的建档立卡户每亩增收200元，经营主体每亩补助300元。","项目实施将带动低收入人口增加收入，增加务工就业机会，群众满意。"]
[549,null,null,"李庄镇前辛庄村","许广贵",5.45,"贫困户每亩补助200元",1090,"衔接资金","2024年1月-12月","通过土地流转使享受政策的建档立卡户每亩增收200元，经营主体每亩补助300元。","项目实施将带动低收入人口增加收入，增加务工就业机会，群众满意。"]
[550,null,null,"李庄镇前辛庄村","许广海",1.12,"贫困户每亩补助200元",224,"衔接资金","2024年1月-12月","通过土地流转使享受政策的建档立卡户每亩增收200元，经营主体每亩补助300元。","项目实施将带动低收入人口增加收入，增加务工就业机会，群众满意。"]
[551,null,null,"李庄镇前辛庄村","许广亮",0.75,"贫困户每亩补助200元",150,"衔接资金","2024年1月-12月","通过土地流转使享受政策的建档立卡户每亩增收200元，经营主体每亩补助300元。","项目实施将带动低收入人口增加收入，增加务工就业机会，群众满意。"]
[552,null,null,"李庄镇前辛庄村","许广专",1.51,"贫困户每亩补助200元",302,"衔接资金","2024年1月-12月","通过土地流转使享受政策的建档立卡户每亩增收200元，经营主体每亩补助300元。","项目实施将带动低收入人口增加收入，增加务工就业机会，群众满意。"]
[553,null,null,"李庄镇前辛庄村","许全国",1.96,"贫困户每亩补助200元",392,"衔接资金","2024年1月-12月","通过土地流转使享受政策的建档立卡户每亩增收200元，经营主体每亩补助300元。","项目实施将带动低收入人口增加收入，增加务工就业机会，群众满意。"]
[554,null,null,"李庄镇前辛庄村","张建",3.65,"贫困户每亩补助200元",730,"衔接资金","2024年1月-12月","通过土地流转使享受政策的建档立卡户每亩增收200元，经营主体每亩补助300元。","项目实施将带动低收入人口增加收入，增加务工就业机会，群众满意。"]
[555,null,null,"李庄镇前辛庄村","张小臣",0.6,"贫困户每亩补助200元",120,"衔接资金","2024年1月-12月","通过土地流转使享受政策的建档立卡户每亩增收200元，经营主体每亩补助300元。","项目实施将带动低收入人口增加收入，增加务工就业机会，群众满意。"]
[556,null,null,"李庄镇前辛庄村","张振杰",2.99,"贫困户每亩补助200元",598,"衔接资金","2024年1月-12月","通过土地流转使享受政策的建档立卡户每亩增收200元，经营主体每亩补助300元。","项目实施将带动低收入人口增加收入，增加务工就业机会，群众满意。"]
[557,null,null,"李庄镇前辛庄村","赵凤英",0.75,"贫困户每亩补助200元",150,"衔接资金","2024年1月-12月","通过土地流转使享受政策的建档立卡户每亩增收200元，经营主体每亩补助300元。","项目实施将带动低收入人口增加收入，增加务工就业机会，群众满意。"]
[558,null,null,"李庄镇前辛庄村","周建党",1.8,"贫困户每亩补助200元",360,"衔接资金","2024年1月-12月","通过土地流转使享受政策的建档立卡户每亩增收200元，经营主体每亩补助300元。","项目实施将带动低收入人口增加收入，增加务工就业机会，群众满意。"]
[559,null,null,"李庄镇前辛庄村","郭静军",1.8,"贫困户每亩补助200元",360,"衔接资金","2024年1月-12月","通过土地流转使享受政策的建档立卡户每亩增收200元，经营主体每亩补助300元。","项目实施将带动低收入人口增加收入，增加务工就业机会，群众满意。"]
[560,"封丘县李庄镇(雷得生养殖家庭农场)土地流转奖补项目","对经营主体和1户流转土地的贫困户进行奖补，流转土地3.97亩。","李庄镇竹岗村","王纪昌",3.97,"贫困户每亩补助200元",794,"衔接资金","2024年1月-12月","通过土地流转使享受政策的建档立卡户每亩增收200元，经营主体每亩补助300元。","项目实施将带动低收入人口增加收入，增加务工就业机会，群众满意。"]
[561,"封丘县李庄镇(聚源种植专业合作社)土地流转奖补项目","对经营主体和7户流转土地的贫困户进行奖补，流转土地42.55亩。","李庄镇堤湾村","常保刚",4.6,"贫困户每亩补助200元",920,"衔接资金","2024年1月-12月","通过土地流转使享受政策的建档立卡户每亩增收200元，经营主体每亩补助300元。","项目实施将带动低收入人口增加收入，增加务工就业机会，群众满意。"]
[562,null,null,"李庄镇堤湾村","常景奇",3.45,"贫困户每亩补助200元",690,"衔接资金","2024年1月-12月","通过土地流转使享受政策的建档立卡户每亩增收200元，经营主体每亩补助300元。","项目实施将带动低收入人口增加收入，增加务工就业机会，群众满意。"]
[563,null,null,"李庄镇堤湾村","常作勇",5.75,"贫困户每亩补助200元",1150,"衔接资金","2024年1月-12月","通过土地流转使享受政策的建档立卡户每亩增收200元，经营主体每亩补助300元。","项目实施将带动低收入人口增加收入，增加务工就业机会，群众满意。"]
[564,null,null,"李庄镇堤湾村","常景修",5.75,"贫困户每亩补助200元",1150,"衔接资金","2024年1月-12月","通过土地流转使享受政策的建档立卡户每亩增收200元，经营主体每亩补助300元。","项目实施将带动低收入人口增加收入，增加务工就业机会，群众满意。"]
[565,null,null,"李庄镇堤湾村","常红凯",4.6,"贫困户每亩补助200元",920,"衔接资金","2024年1月-12月","通过土地流转使享受政策的建档立卡户每亩增收200元，经营主体每亩补助300元。","项目实施将带动低收入人口增加收入，增加务工就业机会，群众满意。"]
[566,null,null,"李庄镇堤湾村","常保文",13.8,"贫困户每亩补助200元",2760,"衔接资金","2024年1月-12月","通过土地流转使享受政策的建档立卡户每亩增收200元，经营主体每亩补助300元。","项目实施将带动低收入人口增加收入，增加务工就业机会，群众满意。"]
[567,null,null,"李庄镇堤湾村","常作杰",4.6,"贫困户每亩补助200元",920,"衔接资金","2024年1月-12月","通过土地流转使享受政策的建档立卡户每亩增收200元，经营主体每亩补助300元。","项目实施将带动低收入人口增加收入，增加务工就业机会，群众满意。"]
[568,"封丘李庄镇(梦飞养殖种植合作社)土地流转奖补项目","对经营主体和9户流转土地的贫困户进行奖补，流转土地49.3亩。","李庄镇苦庄村","魏广付",2.55,"贫困户每亩补助200元",510,"衔接资金","2024年1月-12月","通过土地流转使享受政策的建档立卡户每亩增收200元，经营主体每亩补助300元。","项目实施将带动低收入人口增加收入，增加务工就业机会，群众满意。"]
[569,null,null,"李庄镇苦庄村","张启显",6.21,"贫困户每亩补助200元",1242,"衔接资金","2024年1月-12月","通过土地流转使享受政策的建档立卡户每亩增收200元，经营主体每亩补助300元。","项目实施将带动低收入人口增加收入，增加务工就业机会，群众满意。"]
[570,null,null,"李庄镇苦庄村","白士春",3.2,"贫困户每亩补助200元",640,"衔接资金","2024年1月-12月","通过土地流转使享受政策的建档立卡户每亩增收200元，经营主体每亩补助300元。","项目实施将带动低收入人口增加收入，增加务工就业机会，群众满意。"]
[571,null,null,"李庄镇苦庄村","张松林",7.46,"贫困户每亩补助200元",1492,"衔接资金","2024年1月-12月","通过土地流转使享受政策的建档立卡户每亩增收200元，经营主体每亩补助300元。","项目实施将带动低收入人口增加收入，增加务工就业机会，群众满意。"]
[572,null,null,"李庄镇苦庄村","张广喜",3.78,"贫困户每亩补助200元",756,"衔接资金","2024年1月-12月","通过土地流转使享受政策的建档立卡户每亩增收200元，经营主体每亩补助300元。","项目实施将带动低收入人口增加收入，增加务工就业机会，群众满意。"]
[573,null,null,"李庄镇苦庄村","郭龙",9.92,"贫困户每亩补助200元",1984,"衔接资金","2024年1月-12月","通过土地流转使享受政策的建档立卡户每亩增收200元，经营主体每亩补助300元。","项目实施将带动低收入人口增加收入，增加务工就业机会，群众满意。"]
[574,null,null,"李庄镇苦庄村","李会真",3.95,"贫困户每亩补助200元",790,"衔接资金","2024年1月-12月","通过土地流转使享受政策的建档立卡户每亩增收200元，经营主体每亩补助300元。","项目实施将带动低收入人口增加收入，增加务工就业机会，群众满意。"]
[575,null,null,"李庄镇竹岗村","韩乐田",9.57,"贫困户每亩补助200元",1914,"衔接资金","2024年1月-12月","通过土地流转使享受政策的建档立卡户每亩增收200元，经营主体每亩补助300元。","项目实施将带动低收入人口增加收入，增加务工就业机会，群众满意。"]
[576,null,null,"李庄镇竹岗村","韩乐辉",2.66,"贫困户每亩补助200元",532,"衔接资金","2024年1月-12月","通过土地流转使享受政策的建档立卡户每亩增收200元，经营主体每亩补助300元。","项目实施将带动低收入人口增加收入，增加务工就业机会，群众满意。"]
[577,"封丘县李庄镇（海鹏种植家庭农场)土地流转奖补项目","对经营主体和7户流转土地的贫困户进行奖补，流转土地7.06亩。","李庄镇竹岗村","海文良",2.13,"贫困户每亩补助200元",426,"衔接资金","2024年1月-12月","通过土地流转使享受政策的建档立卡户每亩增收200元，经营主体每亩补助300元。","项目实施将带动低收入人口增加收入，增加务工就业机会，群众满意。"]
[578,null,null,"李庄镇竹岗村","张海云",0.41,"贫困户每亩补助200元",82,"衔接资金","2024年1月-12月","通过土地流转使享受政策的建档立卡户每亩增收200元，经营主体每亩补助300元。","项目实施将带动低收入人口增加收入，增加务工就业机会，群众满意。"]
[579,null,null,"李庄镇竹岗村","白文中",0.62,"贫困户每亩补助200元",124,"衔接资金","2024年1月-12月","通过土地流转使享受政策的建档立卡户每亩增收200元，经营主体每亩补助300元。","项目实施将带动低收入人口增加收入，增加务工就业机会，群众满意。"]
[580,null,null,"李庄镇竹岗村","王纪昌",0.6,"贫困户每亩补助200元",120,"衔接资金","2024年1月-12月","通过土地流转使享受政策的建档立卡户每亩增收200元，经营主体每亩补助300元。","项目实施将带动低收入人口增加收入，增加务工就业机会，群众满意。"]
[581,null,null,"李庄镇竹岗村","朱广阁",0.5,"贫困户每亩补助200元",100,"衔接资金","2024年1月-12月","通过土地流转使享受政策的建档立卡户每亩增收200元，经营主体每亩补助300元。","项目实施将带动低收入人口增加收入，增加务工就业机会，群众满意。"]
[582,null,null,"李庄镇竹岗村","王桂巧",1.6,"贫困户每亩补助200元",320,"衔接资金","2024年1月-12月","通过土地流转使享受政策的建档立卡户每亩增收200元，经营主体每亩补助300元。","项目实施将带动低收入人口增加收入，增加务工就业机会，群众满意。"]
[583,null,null,"李庄镇竹岗村","韩天举",1.2,"贫困户每亩补助200元",240,"衔接资金","2024年1月-12月","通过土地流转使享受政策的建档立卡户每亩增收200元，经营主体每亩补助300元。","项目实施将带动低收入人口增加收入，增加务工就业机会，群众满意。"]
[584,"封丘县李庄镇(获嘉县福茂林专业合作社)土地流转奖补项目","对经营主体和59户流转土地的贫困户进行奖补，流转土地197.232亩。","李庄镇后辛庄村","张海磊",3.31,"贫困户每亩补助200元",662,"衔接资金","2024年1月-12月","通过土地流转使享受政策的建档立卡户每亩增收200元，经营主体每亩补助300元。","项目实施将带动低收入人口增加收入，增加务工就业机会，群众满意。"]
[585,null,null,"李庄镇后辛庄村","张治国",0.77,"贫困户每亩补助200元",154,"衔接资金","2024年1月-12月","通过土地流转使享受政策的建档立卡户每亩增收200元，经营主体每亩补助300元。","项目实施将带动低收入人口增加收入，增加务工就业机会，群众满意。"]
[586,null,null,"李庄镇后辛庄村","张治安",8.31,"贫困户每亩补助200元",1662,"衔接资金","2024年1月-12月","通过土地流转使享受政策的建档立卡户每亩增收200元，经营主体每亩补助300元。","项目实施将带动低收入人口增加收入，增加务工就业机会，群众满意。"]
[587,null,null,"李庄镇后辛庄村","郭普安",0.54,"贫困户每亩补助200元",108,"衔接资金","2024年1月-12月","通过土地流转使享受政策的建档立卡户每亩增收200元，经营主体每亩补助300元。","项目实施将带动低收入人口增加收入，增加务工就业机会，群众满意。"]
[588,null,null,"李庄镇后辛庄村","杜景贤",2.2,"贫困户每亩补助200元",440,"衔接资金","2024年1月-12月","通过土地流转使享受政策的建档立卡户每亩增收200元，经营主体每亩补助300元。","项目实施将带动低收入人口增加收入，增加务工就业机会，群众满意。"]
[589,null,null,"李庄镇后辛庄村","李东臣",4.4,"贫困户每亩补助200元",880,"衔接资金","2024年1月-12月","通过土地流转使享受政策的建档立卡户每亩增收200元，经营主体每亩补助300元。","项目实施将带动低收入人口增加收入，增加务工就业机会，群众满意。"]
[590,null,null,"李庄镇后辛庄村","张振北",3.94,"贫困户每亩补助200元",788,"衔接资金","2024年1月-12月","通过土地流转使享受政策的建档立卡户每亩增收200元，经营主体每亩补助300元。","项目实施将带动低收入人口增加收入，增加务工就业机会，群众满意。"]
[591,null,null,"李庄镇后辛庄村","李城",4.02,"贫困户每亩补助200元",804,"衔接资金","2024年1月-12月","通过土地流转使享受政策的建档立卡户每亩增收200元，经营主体每亩补助300元。","项目实施将带动低收入人口增加收入，增加务工就业机会，群众满意。"]
[592,null,null,"李庄镇后辛庄村","曹克民",3.22,"贫困户每亩补助200元",644,"衔接资金","2024年1月-12月","通过土地流转使享受政策的建档立卡户每亩增收200元，经营主体每亩补助300元。","项目实施将带动低收入人口增加收入，增加务工就业机会，群众满意。"]
[593,null,null,"李庄镇后辛庄村","曹克兴",4.45,"贫困户每亩补助200元",890,"衔接资金","2024年1月-12月","通过土地流转使享受政策的建档立卡户每亩增收200元，经营主体每亩补助300元。","项目实施将带动低收入人口增加收入，增加务工就业机会，群众满意。"]
[594,null,null,"李庄镇后辛庄村","王保才",5.79,"贫困户每亩补助200元",1158,"衔接资金","2024年1月-12月","通过土地流转使享受政策的建档立卡户每亩增收200元，经营主体每亩补助300元。","项目实施将带动低收入人口增加收入，增加务工就业机会，群众满意。"]
[595,null,null,"李庄镇后辛庄村","李东领",5.97,"贫困户每亩补助200元",1194,"衔接资金","2024年1月-12月","通过土地流转使享受政策的建档立卡户每亩增收200元，经营主体每亩补助300元。","项目实施将带动低收入人口增加收入，增加务工就业机会，群众满意。"]
[596,null,null,"李庄镇后辛庄村","杜河堂",3.35,"贫困户每亩补助200元",670,"衔接资金","2024年1月-12月","通过土地流转使享受政策的建档立卡户每亩增收200元，经营主体每亩补助300元。","项目实施将带动低收入人口增加收入，增加务工就业机会，群众满意。"]
[597,null,null,"李庄镇后辛庄村","杜书江",5.85,"贫困户每亩补助200元",1170,"衔接资金","2024年1月-12月","通过土地流转使享受政策的建档立卡户每亩增收200元，经营主体每亩补助300元。","项目实施将带动低收入人口增加收入，增加务工就业机会，群众满意。"]
[598,null,null,"李庄镇后辛庄村","刘彦禄",2.55,"贫困户每亩补助200元",{"$f":"F601*200","v":510},"衔接资金","2024年1月-12月","通过土地流转使享受政策的建档立卡户每亩增收200元，经营主体每亩补助300元。","项目实施将带动低收入人口增加收入，增加务工就业机会，群众满意。"]
[599,null,null,"李庄镇后辛庄村","刘强民",2.57,"贫困户每亩补助200元",514,"衔接资金","2024年1月-12月","通过土地流转使享受政策的建档立卡户每亩增收200元，经营主体每亩补助300元。","项目实施将带动低收入人口增加收入，增加务工就业机会，群众满意。"]
[600,null,null,"李庄镇后辛庄村","王书亮",9.93,"贫困户每亩补助200元",1986,"衔接资金","2024年1月-12月","通过土地流转使享受政策的建档立卡户每亩增收200元，经营主体每亩补助300元。","项目实施将带动低收入人口增加收入，增加务工就业机会，群众满意。"]
[601,null,null,"李庄镇后辛庄村","张保全",2.05,"贫困户每亩补助200元",410,"衔接资金","2024年1月-12月","通过土地流转使享受政策的建档立卡户每亩增收200元，经营主体每亩补助300元。","项目实施将带动低收入人口增加收入，增加务工就业机会，群众满意。"]
[602,null,null,"李庄镇后辛庄村","杨清河",10.82,"贫困户每亩补助200元",2164,"衔接资金","2024年1月-12月","通过土地流转使享受政策的建档立卡户每亩增收200元，经营主体每亩补助300元。","项目实施将带动低收入人口增加收入，增加务工就业机会，群众满意。"]
[603,null,null,"李庄镇后辛庄村","王书河",3.62,"贫困户每亩补助200元",724,"衔接资金","2024年1月-12月","通过土地流转使享受政策的建档立卡户每亩增收200元，经营主体每亩补助300元。","项目实施将带动低收入人口增加收入，增加务工就业机会，群众满意。"]
[604,null,null,"李庄镇后辛庄村","许立凤",0.77,"贫困户每亩补助200元",154,"衔接资金","2024年1月-12月","通过土地流转使享受政策的建档立卡户每亩增收200元，经营主体每亩补助300元。","项目实施将带动低收入人口增加收入，增加务工就业机会，群众满意。"]
[605,null,null,"李庄镇后辛庄村","梁现桃",2.37,"贫困户每亩补助200元",474,"衔接资金","2024年1月-12月","通过土地流转使享受政策的建档立卡户每亩增收200元，经营主体每亩补助300元。","项目实施将带动低收入人口增加收入，增加务工就业机会，群众满意。"]
[606,null,null,"李庄镇后辛庄村","赵红枝",5.61,"贫困户每亩补助200元",1122,"衔接资金","2024年1月-12月","通过土地流转使享受政策的建档立卡户每亩增收200元，经营主体每亩补助300元。","项目实施将带动低收入人口增加收入，增加务工就业机会，群众满意。"]
[607,null,null,"李庄镇后辛庄村","韩玉香",4.18,"贫困户每亩补助200元",836,"衔接资金","2024年1月-12月","通过土地流转使享受政策的建档立卡户每亩增收200元，经营主体每亩补助300元。","项目实施将带动低收入人口增加收入，增加务工就业机会，群众满意。"]
[608,null,null,"李庄镇后辛庄村","杜书辉",4.17,"贫困户每亩补助200元",834,"衔接资金","2024年1月-12月","通过土地流转使享受政策的建档立卡户每亩增收200元，经营主体每亩补助300元。","项目实施将带动低收入人口增加收入，增加务工就业机会，群众满意。"]
[609,null,null,"李庄镇后辛庄村","杜绍臣",1.62,"贫困户每亩补助200元",324,"衔接资金","2024年1月-12月","通过土地流转使享受政策的建档立卡户每亩增收200元，经营主体每亩补助300元。","项目实施将带动低收入人口增加收入，增加务工就业机会，群众满意。"]
[610,null,null,"李庄镇后辛庄村","孟现金",4.24,"贫困户每亩补助200元",848,"衔接资金","2024年1月-12月","通过土地流转使享受政策的建档立卡户每亩增收200元，经营主体每亩补助300元。","项目实施将带动低收入人口增加收入，增加务工就业机会，群众满意。"]
[611,null,null,"李庄镇后辛庄村","葛清和",4.18,"贫困户每亩补助200元",836,"衔接资金","2024年1月-12月","通过土地流转使享受政策的建档立卡户每亩增收200元，经营主体每亩补助300元。","项目实施将带动低收入人口增加收入，增加务工就业机会，群众满意。"]
[612,null,null,"李庄镇后辛庄村","孟现林",1.76,"贫困户每亩补助200元",352,"衔接资金","2024年1月-12月","通过土地流转使享受政策的建档立卡户每亩增收200元，经营主体每亩补助300元。","项目实施将带动低收入人口增加收入，增加务工就业机会，群众满意。"]
[613,null,null,"李庄镇后辛庄村","葛清山",2.13,"贫困户每亩补助200元",426,"衔接资金","2024年1月-12月","通过土地流转使享受政策的建档立卡户每亩增收200元，经营主体每亩补助300元。","项目实施将带动低收入人口增加收入，增加务工就业机会，群众满意。"]
[614,null,null,"李庄镇后辛庄村","孟现忠",13.43,"贫困户每亩补助200元",2686,"衔接资金","2024年1月-12月","通过土地流转使享受政策的建档立卡户每亩增收200元，经营主体每亩补助300元。","项目实施将带动低收入人口增加收入，增加务工就业机会，群众满意。"]
[615,null,null,"李庄镇后辛庄村","陶四教",13.8,"贫困户每亩补助200元",2760,"衔接资金","2024年1月-12月","通过土地流转使享受政策的建档立卡户每亩增收200元，经营主体每亩补助300元。","项目实施将带动低收入人口增加收入，增加务工就业机会，群众满意。"]
[616,null,null,"李庄镇后辛庄村","刘建国",1.56,"贫困户每亩补助200元",312,"衔接资金","2024年1月-12月","通过土地流转使享受政策的建档立卡户每亩增收200元，经营主体每亩补助300元。","项目实施将带动低收入人口增加收入，增加务工就业机会，群众满意。"]
[617,null,null,"李庄镇后辛庄村","张家旗",3.81,"贫困户每亩补助200元",762,"衔接资金","2024年1月-12月","通过土地流转使享受政策的建档立卡户每亩增收200元，经营主体每亩补助300元。","项目实施将带动低收入人口增加收入，增加务工就业机会，群众满意。"]
[618,null,null,"李庄镇后辛庄村","诸葛忠",10.89,"贫困户每亩补助200元",2178,"衔接资金","2024年1月-12月","通过土地流转使享受政策的建档立卡户每亩增收200元，经营主体每亩补助300元。","项目实施将带动低收入人口增加收入，增加务工就业机会，群众满意。"]
[619,null,null,"李庄镇张曹村 ","王忠美",1.5,"贫困户每亩补助200元",300,"衔接资金","2024年1月-12月","通过土地流转使享受政策的建档立卡户每亩增收200元，经营主体每亩补助300元。","项目实施将带动低收入人口增加收入，增加务工就业机会，群众满意。"]
[620,null,null,"李庄镇张曹村 ","张社珍",0.75,"贫困户每亩补助200元",150,"衔接资金","2024年1月-12月","通过土地流转使享受政策的建档立卡户每亩增收200元，经营主体每亩补助300元。","项目实施将带动低收入人口增加收入，增加务工就业机会，群众满意。"]
[621,null,null,"李庄镇张曹村 ","张国胜",1.25,"贫困户每亩补助200元",250,"衔接资金","2024年1月-12月","通过土地流转使享受政策的建档立卡户每亩增收200元，经营主体每亩补助300元。","项目实施将带动低收入人口增加收入，增加务工就业机会，群众满意。"]
[622,null,null,"李庄镇张曹村 ","张学广",0.8,"贫困户每亩补助200元",160,"衔接资金","2024年1月-12月","通过土地流转使享受政策的建档立卡户每亩增收200元，经营主体每亩补助300元。","项目实施将带动低收入人口增加收入，增加务工就业机会，群众满意。"]
[623,null,null,"李庄镇张曹村 ","刘新民",1.3,"贫困户每亩补助200元",260,"衔接资金","2024年1月-12月","通过土地流转使享受政策的建档立卡户每亩增收200元，经营主体每亩补助300元。","项目实施将带动低收入人口增加收入，增加务工就业机会，群众满意。"]
[624,null,null,"李庄镇张曹村 ","杜绍堂",0.85,"贫困户每亩补助200元",170,"衔接资金","2024年1月-12月","通过土地流转使享受政策的建档立卡户每亩增收200元，经营主体每亩补助300元。","项目实施将带动低收入人口增加收入，增加务工就业机会，群众满意。"]
[625,null,null,"李庄镇张曹村 ","杜绍强",0.8,"贫困户每亩补助200元",160,"衔接资金","2024年1月-12月","通过土地流转使享受政策的建档立卡户每亩增收200元，经营主体每亩补助300元。","项目实施将带动低收入人口增加收入，增加务工就业机会，群众满意。"]
[626,null,null,"李庄镇张曹村 ","曹宗行",1.08,"贫困户每亩补助200元",216,"衔接资金","2024年1月-12月","通过土地流转使享受政策的建档立卡户每亩增收200元，经营主体每亩补助300元。","项目实施将带动低收入人口增加收入，增加务工就业机会，群众满意。"]
[627,null,null,"李庄镇张曹村 ","王秀荣",0.95,"贫困户每亩补助200元",190,"衔接资金","2024年1月-12月","通过土地流转使享受政策的建档立卡户每亩增收200元，经营主体每亩补助300元。","项目实施将带动低收入人口增加收入，增加务工就业机会，群众满意。"]
[628,null,null,"李庄镇张曹村 ","李保亮",1.722,"贫困户每亩补助200元",344.4,"衔接资金","2024年1月-12月","通过土地流转使享受政策的建档立卡户每亩增收200元，经营主体每亩补助300元。","项目实施将带动低收入人口增加收入，增加务工就业机会，群众满意。"]
[629,null,null,"李庄镇前辛庄村","曹广成",7.39,"贫困户每亩补助200元",1478,"衔接资金","2024年1月-12月","通过土地流转使享受政策的建档立卡户每亩增收200元，经营主体每亩补助300元。","项目实施将带动低收入人口增加收入，增加务工就业机会，群众满意。"]
[630,null,null,"李庄镇前辛庄村","牛振江",0.84,"贫困户每亩补助200元",168,"衔接资金","2024年1月-12月","通过土地流转使享受政策的建档立卡户每亩增收200元，经营主体每亩补助300元。","项目实施将带动低收入人口增加收入，增加务工就业机会，群众满意。"]
[631,null,null,"李庄镇前辛庄村","靳士朋",0.84,"贫困户每亩补助200元",168,"衔接资金","2024年1月-12月","通过土地流转使享受政策的建档立卡户每亩增收200元，经营主体每亩补助300元。","项目实施将带动低收入人口增加收入，增加务工就业机会，群众满意。"]
[632,null,null,"李庄镇前辛庄村","王恩中",0.72,"贫困户每亩补助200元",144,"衔接资金","2024年1月-12月","通过土地流转使享受政策的建档立卡户每亩增收200元，经营主体每亩补助300元。","项目实施将带动低收入人口增加收入，增加务工就业机会，群众满意。"]
[633,null,null,"李庄镇前辛庄村","王风洲",0.8,"贫困户每亩补助200元",160,"衔接资金","2024年1月-12月","通过土地流转使享受政策的建档立卡户每亩增收200元，经营主体每亩补助300元。","项目实施将带动低收入人口增加收入，增加务工就业机会，群众满意。"]
[634,null,null,"李庄镇贯台村 ","王德胜",0.9,"贫困户每亩补助200元",180,"衔接资金","2024年1月-12月","通过土地流转使享受政策的建档立卡户每亩增收200元，经营主体每亩补助300元。","项目实施将带动低收入人口增加收入，增加务工就业机会，群众满意。"]
[635,null,null,"李庄镇贯台村 ","姚玉申",1.04,"贫困户每亩补助200元",208,"衔接资金","2024年1月-12月","通过土地流转使享受政策的建档立卡户每亩增收200元，经营主体每亩补助300元。","项目实施将带动低收入人口增加收入，增加务工就业机会，群众满意。"]
[636,null,null,"李庄镇贯台村 ","蔡桂花",2.1,"贫困户每亩补助200元",420,"衔接资金","2024年1月-12月","通过土地流转使享受政策的建档立卡户每亩增收200元，经营主体每亩补助300元。","项目实施将带动低收入人口增加收入，增加务工就业机会，群众满意。"]
[637,null,null,"李庄镇贯台村 ","王顺海",2.1,"贫困户每亩补助200元",420,"衔接资金","2024年1月-12月","通过土地流转使享受政策的建档立卡户每亩增收200元，经营主体每亩补助300元。","项目实施将带动低收入人口增加收入，增加务工就业机会，群众满意。"]
[638,null,null,"李庄镇贯台村 ","赵之胜",3,"贫困户每亩补助200元",600,"衔接资金","2024年1月-12月","通过土地流转使享受政策的建档立卡户每亩增收200元，经营主体每亩补助300元。","项目实施将带动低收入人口增加收入，增加务工就业机会，群众满意。"]
[639,null,null,"李庄镇贯台村 ","郭文忠",0.9,"贫困户每亩补助200元",180,"衔接资金","2024年1月-12月","通过土地流转使享受政策的建档立卡户每亩增收200元，经营主体每亩补助300元。","项目实施将带动低收入人口增加收入，增加务工就业机会，群众满意。"]
[640,null,null,"李庄镇贯台村 ","卜凡超",{"v":0.8,"d":"0.80"},"贫困户每亩补助200元",160,"衔接资金","2024年1月-12月","通过土地流转使享受政策的建档立卡户每亩增收200元，经营主体每亩补助300元。","项目实施将带动低收入人口增加收入，增加务工就业机会，群众满意。"]
[641,null,null,"李庄镇贯台村 ","邵长见",0.94,"贫困户每亩补助200元",188,"衔接资金","2024年1月-12月","通过土地流转使享受政策的建档立卡户每亩增收200元，经营主体每亩补助300元。","项目实施将带动低收入人口增加收入，增加务工就业机会，群众满意。"]
[642,null,null,"李庄镇贯台村 ","卜凡义",1.68,"贫困户每亩补助200元",336,"衔接资金","2024年1月-12月","通过土地流转使享受政策的建档立卡户每亩增收200元，经营主体每亩补助300元。","项目实施将带动低收入人口增加收入，增加务工就业机会，群众满意。"]
[643,"封丘县李庄镇（河南绿碧源农林开发有限公司）土地流转奖补项目","对经营主体和19户流转土地的贫困户进行奖补，流转土地136.06亩。","李庄镇常东村","邓学刚",8.5,"贫困户每亩补助200元",1700,"衔接资金","2024年1月-12月","通过土地流转使享受政策的建档立卡户每亩增收200元，经营主体每亩补助300元。","项目实施将带动低收入人口增加收入，增加务工就业机会，群众满意。"]
[644,null,null,"李庄镇常东村","朱登乾",7.74,"贫困户每亩补助200元",1548,"衔接资金","2024年1月-12月","通过土地流转使享受政策的建档立卡户每亩增收200元，经营主体每亩补助300元。","项目实施将带动低收入人口增加收入，增加务工就业机会，群众满意。"]
[645,null,null,"李庄镇常东村","朱广廷",6.92,"贫困户每亩补助200元",1384,"衔接资金","2024年1月-12月","通过土地流转使享受政策的建档立卡户每亩增收200元，经营主体每亩补助300元。","项目实施将带动低收入人口增加收入，增加务工就业机会，群众满意。"]
[646,null,null,"李庄镇常东村","邵丙荣",3.11,"贫困户每亩补助200元",622,"衔接资金","2024年1月-12月","通过土地流转使享受政策的建档立卡户每亩增收200元，经营主体每亩补助300元。","项目实施将带动低收入人口增加收入，增加务工就业机会，群众满意。"]
[647,null,null,"李庄镇常东村","王小莉",7.74,"贫困户每亩补助200元",1548,"衔接资金","2024年1月-12月","通过土地流转使享受政策的建档立卡户每亩增收200元，经营主体每亩补助300元。","项目实施将带动低收入人口增加收入，增加务工就业机会，群众满意。"]
[648,null,null,"李庄镇常东村","朱恪卫",8.28,"贫困户每亩补助200元",1656,"衔接资金","2024年1月-12月","通过土地流转使享受政策的建档立卡户每亩增收200元，经营主体每亩补助300元。","项目实施将带动低收入人口增加收入，增加务工就业机会，群众满意。"]
[649,null,null,"李庄镇常东村","邓树英",1.85,"贫困户每亩补助200元",370,"衔接资金","2024年1月-12月","通过土地流转使享受政策的建档立卡户每亩增收200元，经营主体每亩补助300元。","项目实施将带动低收入人口增加收入，增加务工就业机会，群众满意。"]
[650,null,null,"李庄镇常东村","张宪东",14.02,"贫困户每亩补助200元",2804,"衔接资金","2024年1月-12月","通过土地流转使享受政策的建档立卡户每亩增收200元，经营主体每亩补助300元。","项目实施将带动低收入人口增加收入，增加务工就业机会，群众满意。"]
[651,null,null,"李庄镇常东村","朱可圣",6.04,"贫困户每亩补助200元",1208,"衔接资金","2024年1月-12月","通过土地流转使享受政策的建档立卡户每亩增收200元，经营主体每亩补助300元。","项目实施将带动低收入人口增加收入，增加务工就业机会，群众满意。"]
[652,null,null,"李庄镇常东村","邓建昌",6.65,"贫困户每亩补助200元",1330,"衔接资金","2024年1月-12月","通过土地流转使享受政策的建档立卡户每亩增收200元，经营主体每亩补助300元。","项目实施将带动低收入人口增加收入，增加务工就业机会，群众满意。"]
[653,null,null,"李庄镇常东村","薛瑞强",6.97,"贫困户每亩补助200元",1394,"衔接资金","2024年1月-12月","通过土地流转使享受政策的建档立卡户每亩增收200元，经营主体每亩补助300元。","项目实施将带动低收入人口增加收入，增加务工就业机会，群众满意。"]
[654,null,null,"李庄镇常东村","袁振科",13.39,"贫困户每亩补助200元",2678,"衔接资金","2024年1月-12月","通过土地流转使享受政策的建档立卡户每亩增收200元，经营主体每亩补助300元。","项目实施将带动低收入人口增加收入，增加务工就业机会，群众满意。"]
[655,null,null,"李庄镇常东村","邓建良",6.78,"贫困户每亩补助200元",1356,"衔接资金","2024年1月-12月","通过土地流转使享受政策的建档立卡户每亩增收200元，经营主体每亩补助300元。","项目实施将带动低收入人口增加收入，增加务工就业机会，群众满意。"]
[656,null,null,"李庄镇常东村","李华亮",2.1,"贫困户每亩补助200元",420,"衔接资金","2024年1月-12月","通过土地流转使享受政策的建档立卡户每亩增收200元，经营主体每亩补助300元。","项目实施将带动低收入人口增加收入，增加务工就业机会，群众满意。"]
[657,null,null,"李庄镇常东村","梁玉玲",9.15,"贫困户每亩补助200元",1830,"衔接资金","2024年1月-12月","通过土地流转使享受政策的建档立卡户每亩增收200元，经营主体每亩补助300元。","项目实施将带动低收入人口增加收入，增加务工就业机会，群众满意。"]
[658,null,null,"李庄镇常东村","朱广仕",4.66,"贫困户每亩补助200元",932,"衔接资金","2024年1月-12月","通过土地流转使享受政策的建档立卡户每亩增收200元，经营主体每亩补助300元。","项目实施将带动低收入人口增加收入，增加务工就业机会，群众满意。"]
[659,null,null,"李庄镇常东村","朱恪领",5.12,"贫困户每亩补助200元",1024,"衔接资金","2024年1月-12月","通过土地流转使享受政策的建档立卡户每亩增收200元，经营主体每亩补助300元。","项目实施将带动低收入人口增加收入，增加务工就业机会，群众满意。"]
[660,null,null,"李庄镇常东村","潘秀粉",12.5,"贫困户每亩补助200元",2500,"衔接资金","2024年1月-12月","通过土地流转使享受政策的建档立卡户每亩增收200元，经营主体每亩补助300元。","项目实施将带动低收入人口增加收入，增加务工就业机会，群众满意。"]
[661,null,null,"李庄镇常东村","王玉兰",4.54,"贫困户每亩补助200元",908,"衔接资金","2024年1月-12月","通过土地流转使享受政策的建档立卡户每亩增收200元，经营主体每亩补助300元。","项目实施将带动低收入人口增加收入，增加务工就业机会，群众满意。"]
[662,"封丘县李庄镇(宝亮家庭农场)土地流转奖补项目","对经营主体和28户流转土地的贫困户进行奖补，流转土地43.03亩。","李庄镇俄湾村","吴海雨",1.96,"贫困户每亩补助200元",{"$f":"F665*200","v":392},"衔接资金","2024年1月-12月","通过土地流转使享受政策的建档立卡户每亩增收200元，经营主体每亩补助300元。","项目实施将带动低收入人口增加收入，增加务工就业机会，群众满意。"]
[663,null,null,"李庄镇俄湾村","吴运坡",1.13,"贫困户每亩补助200元",226,"衔接资金","2024年1月-12月","通过土地流转使享受政策的建档立卡户每亩增收200元，经营主体每亩补助300元。","项目实施将带动低收入人口增加收入，增加务工就业机会，群众满意。"]
[664,null,null,"李庄镇俄湾村","吴良坡",1.11,"贫困户每亩补助200元",222,"衔接资金","2024年1月-12月","通过土地流转使享受政策的建档立卡户每亩增收200元，经营主体每亩补助300元。","项目实施将带动低收入人口增加收入，增加务工就业机会，群众满意。"]
[665,null,null,"李庄镇俄湾村","张秀枝",1.12,"贫困户每亩补助200元",224,"衔接资金","2024年1月-12月","通过土地流转使享受政策的建档立卡户每亩增收200元，经营主体每亩补助300元。","项目实施将带动低收入人口增加收入，增加务工就业机会，群众满意。"]
[666,null,null,"李庄镇俄湾村","吴进章",2.1,"贫困户每亩补助200元",420,"衔接资金","2024年1月-12月","通过土地流转使享受政策的建档立卡户每亩增收200元，经营主体每亩补助300元。","项目实施将带动低收入人口增加收入，增加务工就业机会，群众满意。"]
[667,null,null,"李庄镇俄湾村","吴庆海",0.92,"贫困户每亩补助200元",184,"衔接资金","2024年1月-12月","通过土地流转使享受政策的建档立卡户每亩增收200元，经营主体每亩补助300元。","项目实施将带动低收入人口增加收入，增加务工就业机会，群众满意。"]
[668,null,null,"李庄镇俄湾村","王颜朵",1.07,"贫困户每亩补助200元",214,"衔接资金","2024年1月-12月","通过土地流转使享受政策的建档立卡户每亩增收200元，经营主体每亩补助300元。","项目实施将带动低收入人口增加收入，增加务工就业机会，群众满意。"]
[669,null,null,"李庄镇俄湾村","钱保学",1.49,"贫困户每亩补助200元",298,"衔接资金","2024年1月-12月","通过土地流转使享受政策的建档立卡户每亩增收200元，经营主体每亩补助300元。","项目实施将带动低收入人口增加收入，增加务工就业机会，群众满意。"]
[670,null,null,"李庄镇俄湾村","吴运山",0.9,"贫困户每亩补助200元",180,"衔接资金","2024年1月-12月","通过土地流转使享受政策的建档立卡户每亩增收200元，经营主体每亩补助300元。","项目实施将带动低收入人口增加收入，增加务工就业机会，群众满意。"]
[671,null,null,"李庄镇俄湾村","吴长庆",0.91,"贫困户每亩补助200元",182,"衔接资金","2024年1月-12月","通过土地流转使享受政策的建档立卡户每亩增收200元，经营主体每亩补助300元。","项目实施将带动低收入人口增加收入，增加务工就业机会，群众满意。"]
[672,null,null,"李庄镇俄湾村","李秀荣",0.61,"贫困户每亩补助200元",122,"衔接资金","2024年1月-12月","通过土地流转使享受政策的建档立卡户每亩增收200元，经营主体每亩补助300元。","项目实施将带动低收入人口增加收入，增加务工就业机会，群众满意。"]
[673,null,null,"李庄镇俄湾村","张孟贵",2.83,"贫困户每亩补助200元",566,"衔接资金","2024年1月-12月","通过土地流转使享受政策的建档立卡户每亩增收200元，经营主体每亩补助300元。","项目实施将带动低收入人口增加收入，增加务工就业机会，群众满意。"]
[674,null,null,"李庄镇俄湾村","吴进平",1.76,"贫困户每亩补助200元",352,"衔接资金","2024年1月-12月","通过土地流转使享受政策的建档立卡户每亩增收200元，经营主体每亩补助300元。","项目实施将带动低收入人口增加收入，增加务工就业机会，群众满意。"]
[675,null,null,"李庄镇俄湾村","吴庆建",1.14,"贫困户每亩补助200元",228,"衔接资金","2024年1月-12月","通过土地流转使享受政策的建档立卡户每亩增收200元，经营主体每亩补助300元。","项目实施将带动低收入人口增加收入，增加务工就业机会，群众满意。"]
[676,null,null,"李庄镇俄湾村","吴清学",2.02,"贫困户每亩补助200元",404,"衔接资金","2024年1月-12月","通过土地流转使享受政策的建档立卡户每亩增收200元，经营主体每亩补助300元。","项目实施将带动低收入人口增加收入，增加务工就业机会，群众满意。"]
[677,null,null,"李庄镇俄湾村","杜玉梅",2.3,"贫困户每亩补助200元",460,"衔接资金","2024年1月-12月","通过土地流转使享受政策的建档立卡户每亩增收200元，经营主体每亩补助300元。","项目实施将带动低收入人口增加收入，增加务工就业机会，群众满意。"]
[678,null,null,"李庄镇俄湾村","吴海方",0.85,"贫困户每亩补助200元",170,"衔接资金","2024年1月-12月","通过土地流转使享受政策的建档立卡户每亩增收200元，经营主体每亩补助300元。","项目实施将带动低收入人口增加收入，增加务工就业机会，群众满意。"]
[679,null,null,"李庄镇俄湾村","刘秀娥",1.68,"贫困户每亩补助200元",336,"衔接资金","2024年1月-12月","通过土地流转使享受政策的建档立卡户每亩增收200元，经营主体每亩补助300元。","项目实施将带动低收入人口增加收入，增加务工就业机会，群众满意。"]
[680,null,null,"李庄镇俄湾村","曹兴汉",1.08,"贫困户每亩补助200元",216,"衔接资金","2024年1月-12月","通过土地流转使享受政策的建档立卡户每亩增收200元，经营主体每亩补助300元。","项目实施将带动低收入人口增加收入，增加务工就业机会，群众满意。"]
[681,null,null,"李庄镇俄湾村","吴良乐",1.78,"贫困户每亩补助200元",356,"衔接资金","2024年1月-12月","通过土地流转使享受政策的建档立卡户每亩增收200元，经营主体每亩补助300元。","项目实施将带动低收入人口增加收入，增加务工就业机会，群众满意。"]
[682,null,null,"李庄镇俄湾村","吴其良",1.71,"贫困户每亩补助200元",342,"衔接资金","2024年1月-12月","通过土地流转使享受政策的建档立卡户每亩增收200元，经营主体每亩补助300元。","项目实施将带动低收入人口增加收入，增加务工就业机会，群众满意。"]
[683,null,null,"李庄镇俄湾村","吴广水",2.16,"贫困户每亩补助200元",432,"衔接资金","2024年1月-12月","通过土地流转使享受政策的建档立卡户每亩增收200元，经营主体每亩补助300元。","项目实施将带动低收入人口增加收入，增加务工就业机会，群众满意。"]
[684,null,null,"李庄镇俄湾村","曹志勇",0.83,"贫困户每亩补助200元",166,"衔接资金","2024年1月-12月","通过土地流转使享受政策的建档立卡户每亩增收200元，经营主体每亩补助300元。","项目实施将带动低收入人口增加收入，增加务工就业机会，群众满意。"]
[685,null,null,"李庄镇俄湾村","吴桂立",1.71,"贫困户每亩补助200元",342,"衔接资金","2024年1月-12月","通过土地流转使享受政策的建档立卡户每亩增收200元，经营主体每亩补助300元。","项目实施将带动低收入人口增加收入，增加务工就业机会，群众满意。"]
[686,null,null,"李庄镇俄湾村","吴清增",1.4,"贫困户每亩补助200元",280,"衔接资金","2024年1月-12月","通过土地流转使享受政策的建档立卡户每亩增收200元，经营主体每亩补助300元。","项目实施将带动低收入人口增加收入，增加务工就业机会，群众满意。"]
[687,null,null,"李庄镇俄湾村","吴长站",1.28,"贫困户每亩补助200元",256,"衔接资金","2024年1月-12月","通过土地流转使享受政策的建档立卡户每亩增收200元，经营主体每亩补助300元。","项目实施将带动低收入人口增加收入，增加务工就业机会，群众满意。"]
[688,null,null,"李庄镇俄湾村","吴良学",2.52,"贫困户每亩补助200元",504,"衔接资金","2024年1月-12月","通过土地流转使享受政策的建档立卡户每亩增收200元，经营主体每亩补助300元。","项目实施将带动低收入人口增加收入，增加务工就业机会，群众满意。"]
[689,null,null,"李庄镇俄湾村","吴清友",2.66,"贫困户每亩补助200元",532,"衔接资金","2024年1月-12月","通过土地流转使享受政策的建档立卡户每亩增收200元，经营主体每亩补助300元。","项目实施将带动低收入人口增加收入，增加务工就业机会，群众满意。"]
[690,"封丘县李庄镇(峰桐农业发展有限公司)土地流转奖补项目","对经营主体和28户流转土地的贫困户进行奖补，流转土地64.39亩。","李庄镇俄湾村","吴运坡",1.69,"贫困户每亩补助200元",338,"衔接资金","2024年1月-12月","通过土地流转使享受政策的建档立卡户每亩增收200元，经营主体每亩补助300元。","项目实施将带动低收入人口增加收入，增加务工就业机会，群众满意。"]
[691,null,null,"李庄镇俄湾村","张秀枝",0.83,"贫困户每亩补助200元",166,"衔接资金","2024年1月-12月","通过土地流转使享受政策的建档立卡户每亩增收200元，经营主体每亩补助300元。","项目实施将带动低收入人口增加收入，增加务工就业机会，群众满意。"]
[692,null,null,"李庄镇俄湾村","朱广枝",2.1,"贫困户每亩补助200元",420,"衔接资金","2024年1月-12月","通过土地流转使享受政策的建档立卡户每亩增收200元，经营主体每亩补助300元。","项目实施将带动低收入人口增加收入，增加务工就业机会，群众满意。"]
[693,null,null,"李庄镇俄湾村","吴自便",1.75,"贫困户每亩补助200元",350,"衔接资金","2024年1月-12月","通过土地流转使享受政策的建档立卡户每亩增收200元，经营主体每亩补助300元。","项目实施将带动低收入人口增加收入，增加务工就业机会，群众满意。"]
[694,null,null,"李庄镇俄湾村","吴进章",1.67,"贫困户每亩补助200元",334,"衔接资金","2024年1月-12月","通过土地流转使享受政策的建档立卡户每亩增收200元，经营主体每亩补助300元。","项目实施将带动低收入人口增加收入，增加务工就业机会，群众满意。"]
[695,null,null,"李庄镇俄湾村","吴庆海",1.35,"贫困户每亩补助200元",270,"衔接资金","2024年1月-12月","通过土地流转使享受政策的建档立卡户每亩增收200元，经营主体每亩补助300元。","项目实施将带动低收入人口增加收入，增加务工就业机会，群众满意。"]
[696,null,null,"李庄镇俄湾村","王颜朵",0.75,"贫困户每亩补助200元",150,"衔接资金","2024年1月-12月","通过土地流转使享受政策的建档立卡户每亩增收200元，经营主体每亩补助300元。","项目实施将带动低收入人口增加收入，增加务工就业机会，群众满意。"]
[697,null,null,"李庄镇俄湾村","钱保学",0.98,"贫困户每亩补助200元",196,"衔接资金","2024年1月-12月","通过土地流转使享受政策的建档立卡户每亩增收200元，经营主体每亩补助300元。","项目实施将带动低收入人口增加收入，增加务工就业机会，群众满意。"]
[698,null,null,"李庄镇俄湾村","吴保伟",1.79,"贫困户每亩补助200元",358,"衔接资金","2024年1月-12月","通过土地流转使享受政策的建档立卡户每亩增收200元，经营主体每亩补助300元。","项目实施将带动低收入人口增加收入，增加务工就业机会，群众满意。"]
[699,null,null,"李庄镇俄湾村","吴长庆",1.17,"贫困户每亩补助200元",234,"衔接资金","2024年1月-12月","通过土地流转使享受政策的建档立卡户每亩增收200元，经营主体每亩补助300元。","项目实施将带动低收入人口增加收入，增加务工就业机会，群众满意。"]
[700,null,null,"李庄镇俄湾村","李秀荣",0.9,"贫困户每亩补助200元",180,"衔接资金","2024年1月-12月","通过土地流转使享受政策的建档立卡户每亩增收200元，经营主体每亩补助300元。","项目实施将带动低收入人口增加收入，增加务工就业机会，群众满意。"]
[701,null,null,"李庄镇俄湾村","吴进平",1.58,"贫困户每亩补助200元",316,"衔接资金","2024年1月-12月","通过土地流转使享受政策的建档立卡户每亩增收200元，经营主体每亩补助300元。","项目实施将带动低收入人口增加收入，增加务工就业机会，群众满意。"]
[702,null,null,"李庄镇俄湾村","吴清学",1.59,"贫困户每亩补助200元",318,"衔接资金","2024年1月-12月","通过土地流转使享受政策的建档立卡户每亩增收200元，经营主体每亩补助300元。","项目实施将带动低收入人口增加收入，增加务工就业机会，群众满意。"]
[703,null,null,"李庄镇俄湾村","刘秀娥",1.54,"贫困户每亩补助200元",308,"衔接资金","2024年1月-12月","通过土地流转使享受政策的建档立卡户每亩增收200元，经营主体每亩补助300元。","项目实施将带动低收入人口增加收入，增加务工就业机会，群众满意。"]
[704,null,null,"李庄镇俄湾村","曹志敏",1.74,"贫困户每亩补助200元",348,"衔接资金","2024年1月-12月","通过土地流转使享受政策的建档立卡户每亩增收200元，经营主体每亩补助300元。","项目实施将带动低收入人口增加收入，增加务工就业机会，群众满意。"]
[705,null,null,"李庄镇俄湾村","吴其良",1.26,"贫困户每亩补助200元",252,"衔接资金","2024年1月-12月","通过土地流转使享受政策的建档立卡户每亩增收200元，经营主体每亩补助300元。","项目实施将带动低收入人口增加收入，增加务工就业机会，群众满意。"]
[706,null,null,"李庄镇俄湾村","曹志勇",1.11,"贫困户每亩补助200元",222,"衔接资金","2024年1月-12月","通过土地流转使享受政策的建档立卡户每亩增收200元，经营主体每亩补助300元。","项目实施将带动低收入人口增加收入，增加务工就业机会，群众满意。"]
[707,null,null,"李庄镇俄湾村","吴桂立",1.47,"贫困户每亩补助200元",294,"衔接资金","2024年1月-12月","通过土地流转使享受政策的建档立卡户每亩增收200元，经营主体每亩补助300元。","项目实施将带动低收入人口增加收入，增加务工就业机会，群众满意。"]
[708,null,null,"李庄镇俄湾村","吴清增",1.12,"贫困户每亩补助200元",224,"衔接资金","2024年1月-12月","通过土地流转使享受政策的建档立卡户每亩增收200元，经营主体每亩补助300元。","项目实施将带动低收入人口增加收入，增加务工就业机会，群众满意。"]
[709,null,null,"李庄镇俄湾村","吴长站",1.19,"贫困户每亩补助200元",238,"衔接资金","2024年1月-12月","通过土地流转使享受政策的建档立卡户每亩增收200元，经营主体每亩补助300元。","项目实施将带动低收入人口增加收入，增加务工就业机会，群众满意。"]
[710,null,null,"李庄镇俄湾村","吴良学",1.59,"贫困户每亩补助200元",318,"衔接资金","2024年1月-12月","通过土地流转使享受政策的建档立卡户每亩增收200元，经营主体每亩补助300元。","项目实施将带动低收入人口增加收入，增加务工就业机会，群众满意。"]
[711,null,null,"李庄镇南曹村","杜秀荣",4,"贫困户每亩补助200元",800,"衔接资金","2024年1月-12月","通过土地流转使享受政策的建档立卡户每亩增收200元，经营主体每亩补助300元。","项目实施将带动低收入人口增加收入，增加务工就业机会，群众满意。"]
[712,null,null,"李庄镇南曹村","张鹏飞",2,"贫困户每亩补助200元",400,"衔接资金","2024年1月-12月","通过土地流转使享受政策的建档立卡户每亩增收200元，经营主体每亩补助300元。","项目实施将带动低收入人口增加收入，增加务工就业机会，群众满意。"]
[713,null,null,"李庄镇南曹村","魏克相",11.22,"贫困户每亩补助200元",2244,"衔接资金","2024年1月-12月","通过土地流转使享受政策的建档立卡户每亩增收200元，经营主体每亩补助300元。","项目实施将带动低收入人口增加收入，增加务工就业机会，群众满意。"]
[714,null,null,"李庄镇南曹村","李清江",2,"贫困户每亩补助200元",400,"衔接资金","2024年1月-12月","通过土地流转使享受政策的建档立卡户每亩增收200元，经营主体每亩补助300元。","项目实施将带动低收入人口增加收入，增加务工就业机会，群众满意。"]
[715,null,null,"李庄镇南曹村","胡永胜",8,"贫困户每亩补助200元",1600,"衔接资金","2024年1月-12月","通过土地流转使享受政策的建档立卡户每亩增收200元，经营主体每亩补助300元。","项目实施将带动低收入人口增加收入，增加务工就业机会，群众满意。"]
[716,null,null,"李庄镇南曹村","张宝珠",5,"贫困户每亩补助200元",1000,"衔接资金","2024年1月-12月","通过土地流转使享受政策的建档立卡户每亩增收200元，经营主体每亩补助300元。","项目实施将带动低收入人口增加收入，增加务工就业机会，群众满意。"]
[717,null,null,"李庄镇南曹村","张小阳",3,"贫困户每亩补助200元",600,"衔接资金","2024年1月-12月","通过土地流转使享受政策的建档立卡户每亩增收200元，经营主体每亩补助300元。","项目实施将带动低收入人口增加收入，增加务工就业机会，群众满意。"]
[718,"封丘县李庄镇(金鑫土地流转专业合作社)土地流转奖补项目","对经营主体和70户流转土地的贫困户进行奖补，流转土地97.599亩。","李庄镇朱寨村","张德均",0.48,"贫困户每亩补助200元",96,"衔接资金","2024年1月-12月","通过土地流转使享受政策的建档立卡户每亩增收200元，经营主体每亩补助300元。","项目实施将带动低收入人口增加收入，增加务工就业机会，群众满意。"]
[719,null,null,"李庄镇朱寨村","张洪书",0.6,"贫困户每亩补助200元",120,"衔接资金","2024年1月-12月","通过土地流转使享受政策的建档立卡户每亩增收200元，经营主体每亩补助300元。","项目实施将带动低收入人口增加收入，增加务工就业机会，群众满意。"]
[720,null,null,"李庄镇朱寨村","张怀领",0.36,"贫困户每亩补助200元",72,"衔接资金","2024年1月-12月","通过土地流转使享受政策的建档立卡户每亩增收200元，经营主体每亩补助300元。","项目实施将带动低收入人口增加收入，增加务工就业机会，群众满意。"]
[721,null,null,"李庄镇朱寨村","张永祥",2.22,"贫困户每亩补助200元",444,"衔接资金","2024年1月-12月","通过土地流转使享受政策的建档立卡户每亩增收200元，经营主体每亩补助300元。","项目实施将带动低收入人口增加收入，增加务工就业机会，群众满意。"]
[722,null,null,"李庄镇朱寨村","张之茂",0.75,"贫困户每亩补助200元",150,"衔接资金","2024年1月-12月","通过土地流转使享受政策的建档立卡户每亩增收200元，经营主体每亩补助300元。","项目实施将带动低收入人口增加收入，增加务工就业机会，群众满意。"]
[723,null,null,"李庄镇朱寨村","张之有",1.25,"贫困户每亩补助200元",250,"衔接资金","2024年1月-12月","通过土地流转使享受政策的建档立卡户每亩增收200元，经营主体每亩补助300元。","项目实施将带动低收入人口增加收入，增加务工就业机会，群众满意。"]
[724,null,null,"李庄镇朱寨村","张洪连",0.6,"贫困户每亩补助200元",120,"衔接资金","2024年1月-12月","通过土地流转使享受政策的建档立卡户每亩增收200元，经营主体每亩补助300元。","项目实施将带动低收入人口增加收入，增加务工就业机会，群众满意。"]
[725,null,null,"李庄镇朱寨村","张之南",0.92,"贫困户每亩补助200元",184,"衔接资金","2024年1月-12月","通过土地流转使享受政策的建档立卡户每亩增收200元，经营主体每亩补助300元。","项目实施将带动低收入人口增加收入，增加务工就业机会，群众满意。"]
[726,null,null,"李庄镇朱寨村","张之有",1.38,"贫困户每亩补助200元",{"$f":"F729*200","v":276},"衔接资金","2024年1月-12月","通过土地流转使享受政策的建档立卡户每亩增收200元，经营主体每亩补助300元。","项目实施将带动低收入人口增加收入，增加务工就业机会，群众满意。"]
[727,null,null,"李庄镇朱寨村","张之宝",0.92,"贫困户每亩补助200元",184,"衔接资金","2024年1月-12月","通过土地流转使享受政策的建档立卡户每亩增收200元，经营主体每亩补助300元。","项目实施将带动低收入人口增加收入，增加务工就业机会，群众满意。"]
[728,null,null,"李庄镇朱寨村","张洪前",2.3,"贫困户每亩补助200元",460,"衔接资金","2024年1月-12月","通过土地流转使享受政策的建档立卡户每亩增收200元，经营主体每亩补助300元。","项目实施将带动低收入人口增加收入，增加务工就业机会，群众满意。"]
[729,null,null,"李庄镇朱寨村","张洪立",1.84,"贫困户每亩补助200元",368,"衔接资金","2024年1月-12月","通过土地流转使享受政策的建档立卡户每亩增收200元，经营主体每亩补助300元。","项目实施将带动低收入人口增加收入，增加务工就业机会，群众满意。"]
[730,null,null,"李庄镇朱寨村","张洪新",1.84,"贫困户每亩补助200元",368,"衔接资金","2024年1月-12月","通过土地流转使享受政策的建档立卡户每亩增收200元，经营主体每亩补助300元。","项目实施将带动低收入人口增加收入，增加务工就业机会，群众满意。"]
[731,null,null,"李庄镇朱寨村","张之军",1.38,"贫困户每亩补助200元",276,"衔接资金","2024年1月-12月","通过土地流转使享受政策的建档立卡户每亩增收200元，经营主体每亩补助300元。","项目实施将带动低收入人口增加收入，增加务工就业机会，群众满意。"]
[732,null,null,"李庄镇朱寨村","张德宝",2.3,"贫困户每亩补助200元",460,"衔接资金","2024年1月-12月","通过土地流转使享受政策的建档立卡户每亩增收200元，经营主体每亩补助300元。","项目实施将带动低收入人口增加收入，增加务工就业机会，群众满意。"]
[733,null,null,"李庄镇朱寨村","张洪社",1.9,"贫困户每亩补助200元",380,"衔接资金","2024年1月-12月","通过土地流转使享受政策的建档立卡户每亩增收200元，经营主体每亩补助300元。","项目实施将带动低收入人口增加收入，增加务工就业机会，群众满意。"]
[734,null,null,"李庄镇朱寨村","张之磊",1.71,"贫困户每亩补助200元",342,"衔接资金","2024年1月-12月","通过土地流转使享受政策的建档立卡户每亩增收200元，经营主体每亩补助300元。","项目实施将带动低收入人口增加收入，增加务工就业机会，群众满意。"]
[735,null,null,"李庄镇朱寨村","薛硅英",2.28,"贫困户每亩补助200元",456,"衔接资金","2024年1月-12月","通过土地流转使享受政策的建档立卡户每亩增收200元，经营主体每亩补助300元。","项目实施将带动低收入人口增加收入，增加务工就业机会，群众满意。"]
[736,null,null,"李庄镇朱寨村","张洪福",2.43,"贫困户每亩补助200元",486,"衔接资金","2024年1月-12月","通过土地流转使享受政策的建档立卡户每亩增收200元，经营主体每亩补助300元。","项目实施将带动低收入人口增加收入，增加务工就业机会，群众满意。"]
[737,null,null,"李庄镇朱寨村","张洪杰",0.38,"贫困户每亩补助200元",76,"衔接资金","2024年1月-12月","通过土地流转使享受政策的建档立卡户每亩增收200元，经营主体每亩补助300元。","项目实施将带动低收入人口增加收入，增加务工就业机会，群众满意。"]
[738,null,null,"李庄镇朱寨村","张德玺",0.5,"贫困户每亩补助200元",100,"衔接资金","2024年1月-12月","通过土地流转使享受政策的建档立卡户每亩增收200元，经营主体每亩补助300元。","项目实施将带动低收入人口增加收入，增加务工就业机会，群众满意。"]
[739,null,null,"李庄镇朱寨村","张洪勇",1.6,"贫困户每亩补助200元",320,"衔接资金","2024年1月-12月","通过土地流转使享受政策的建档立卡户每亩增收200元，经营主体每亩补助300元。","项目实施将带动低收入人口增加收入，增加务工就业机会，群众满意。"]
[740,null,null,"李庄镇朱寨村","李清梅",0.234,"贫困户每亩补助200元",46.8,"衔接资金","2024年1月-12月","通过土地流转使享受政策的建档立卡户每亩增收200元，经营主体每亩补助300元。","项目实施将带动低收入人口增加收入，增加务工就业机会，群众满意。"]
[741,null,null,"李庄镇朱寨村","张洪民",0.078,"贫困户每亩补助200元",15.6,"衔接资金","2024年1月-12月","通过土地流转使享受政策的建档立卡户每亩增收200元，经营主体每亩补助300元。","项目实施将带动低收入人口增加收入，增加务工就业机会，群众满意。"]
[742,null,null,"李庄镇朱寨村","张之彬",0.195,"贫困户每亩补助200元",39,"衔接资金","2024年1月-12月","通过土地流转使享受政策的建档立卡户每亩增收200元，经营主体每亩补助300元。","项目实施将带动低收入人口增加收入，增加务工就业机会，群众满意。"]
[743,null,null,"李庄镇朱寨村","潘景卫",0.078,"贫困户每亩补助200元",15.6,"衔接资金","2024年1月-12月","通过土地流转使享受政策的建档立卡户每亩增收200元，经营主体每亩补助300元。","项目实施将带动低收入人口增加收入，增加务工就业机会，群众满意。"]
[744,null,null,"李庄镇朱寨村","朱献成",0.25,"贫困户每亩补助200元",50,"衔接资金","2024年1月-12月","通过土地流转使享受政策的建档立卡户每亩增收200元，经营主体每亩补助300元。","项目实施将带动低收入人口增加收入，增加务工就业机会，群众满意。"]
[745,null,null,"李庄镇朱寨村","邵素美",2.5,"贫困户每亩补助200元",500,"衔接资金","2024年1月-12月","通过土地流转使享受政策的建档立卡户每亩增收200元，经营主体每亩补助300元。","项目实施将带动低收入人口增加收入，增加务工就业机会，群众满意。"]
[746,null,null,"李庄镇朱寨村","朱星元",1.21,"贫困户每亩补助200元",242,"衔接资金","2024年1月-12月","通过土地流转使享受政策的建档立卡户每亩增收200元，经营主体每亩补助300元。","项目实施将带动低收入人口增加收入，增加务工就业机会，群众满意。"]
[747,null,null,"李庄镇朱寨村","邵长娥",0.63,"贫困户每亩补助200元",126,"衔接资金","2024年1月-12月","通过土地流转使享受政策的建档立卡户每亩增收200元，经营主体每亩补助300元。","项目实施将带动低收入人口增加收入，增加务工就业机会，群众满意。"]
[748,null,null,"李庄镇朱寨村","朱廷岗",1.1,"贫困户每亩补助200元",220,"衔接资金","2024年1月-12月","通过土地流转使享受政策的建档立卡户每亩增收200元，经营主体每亩补助300元。","项目实施将带动低收入人口增加收入，增加务工就业机会，群众满意。"]
[749,null,null,"李庄镇朱寨村","李红梅",1.52,"贫困户每亩补助200元",304,"衔接资金","2024年1月-12月","通过土地流转使享受政策的建档立卡户每亩增收200元，经营主体每亩补助300元。","项目实施将带动低收入人口增加收入，增加务工就业机会，群众满意。"]
[750,null,null,"李庄镇朱寨村","朱廷俊",0.4,"贫困户每亩补助200元",80,"衔接资金","2024年1月-12月","通过土地流转使享受政策的建档立卡户每亩增收200元，经营主体每亩补助300元。","项目实施将带动低收入人口增加收入，增加务工就业机会，群众满意。"]
[751,null,null,"李庄镇朱寨村","艾茂合",0.51,"贫困户每亩补助200元",102,"衔接资金","2024年1月-12月","通过土地流转使享受政策的建档立卡户每亩增收200元，经营主体每亩补助300元。","项目实施将带动低收入人口增加收入，增加务工就业机会，群众满意。"]
[752,null,null,"李庄镇朱寨村","艾茂增",1.2,"贫困户每亩补助200元",240,"衔接资金","2024年1月-12月","通过土地流转使享受政策的建档立卡户每亩增收200元，经营主体每亩补助300元。","项目实施将带动低收入人口增加收入，增加务工就业机会，群众满意。"]
[753,null,null,"李庄镇朱寨村","刘红玲",3.24,"贫困户每亩补助200元",648,"衔接资金","2024年1月-12月","通过土地流转使享受政策的建档立卡户每亩增收200元，经营主体每亩补助300元。","项目实施将带动低收入人口增加收入，增加务工就业机会，群众满意。"]
[754,null,null,"李庄镇朱寨村","张之岩",1.512,"贫困户每亩补助200元",302.4,"衔接资金","2024年1月-12月","通过土地流转使享受政策的建档立卡户每亩增收200元，经营主体每亩补助300元。","项目实施将带动低收入人口增加收入，增加务工就业机会，群众满意。"]
[755,null,null,"李庄镇朱寨村","张怀洗",0.7,"贫困户每亩补助200元",140,"衔接资金","2024年1月-12月","通过土地流转使享受政策的建档立卡户每亩增收200元，经营主体每亩补助300元。","项目实施将带动低收入人口增加收入，增加务工就业机会，群众满意。"]
[756,null,null,"李庄镇朱寨村","张德凯",1.08,"贫困户每亩补助200元",216,"衔接资金","2024年1月-12月","通过土地流转使享受政策的建档立卡户每亩增收200元，经营主体每亩补助300元。","项目实施将带动低收入人口增加收入，增加务工就业机会，群众满意。"]
[757,null,null,"李庄镇朱寨村","韩秀英",1.08,"贫困户每亩补助200元",216,"衔接资金","2024年1月-12月","通过土地流转使享受政策的建档立卡户每亩增收200元，经营主体每亩补助300元。","项目实施将带动低收入人口增加收入，增加务工就业机会，群众满意。"]
[758,null,null,"李庄镇朱寨村","艾茂洋",1.08,"贫困户每亩补助200元",216,"衔接资金","2024年1月-12月","通过土地流转使享受政策的建档立卡户每亩增收200元，经营主体每亩补助300元。","项目实施将带动低收入人口增加收入，增加务工就业机会，群众满意。"]
[759,null,null,"李庄镇朱寨村","张洪康",0.648,"贫困户每亩补助200元",129.6,"衔接资金","2024年1月-12月","通过土地流转使享受政策的建档立卡户每亩增收200元，经营主体每亩补助300元。","项目实施将带动低收入人口增加收入，增加务工就业机会，群众满意。"]
[760,null,null,"李庄镇朱寨村","张之重",1.3,"贫困户每亩补助200元",260,"衔接资金","2024年1月-12月","通过土地流转使享受政策的建档立卡户每亩增收200元，经营主体每亩补助300元。","项目实施将带动低收入人口增加收入，增加务工就业机会，群众满意。"]
[761,null,null,"李庄镇朱寨村","张之伦",0.216,"贫困户每亩补助200元",43.2,"衔接资金","2024年1月-12月","通过土地流转使享受政策的建档立卡户每亩增收200元，经营主体每亩补助300元。","项目实施将带动低收入人口增加收入，增加务工就业机会，群众满意。"]
[762,null,null,"李庄镇朱寨村","张之祥",0.648,"贫困户每亩补助200元",129.6,"衔接资金","2024年1月-12月","通过土地流转使享受政策的建档立卡户每亩增收200元，经营主体每亩补助300元。","项目实施将带动低收入人口增加收入，增加务工就业机会，群众满意。"]
[763,null,null,"李庄镇朱寨村","张德跃",1.02,"贫困户每亩补助200元",204,"衔接资金","2024年1月-12月","通过土地流转使享受政策的建档立卡户每亩增收200元，经营主体每亩补助300元。","项目实施将带动低收入人口增加收入，增加务工就业机会，群众满意。"]
[764,null,null,"李庄镇朱寨村","朱汉嘉",1.3,"贫困户每亩补助200元",260,"衔接资金","2024年1月-12月","通过土地流转使享受政策的建档立卡户每亩增收200元，经营主体每亩补助300元。","项目实施将带动低收入人口增加收入，增加务工就业机会，群众满意。"]
[765,null,null,"李庄镇朱寨村","朱献勋",1.74,"贫困户每亩补助200元",348,"衔接资金","2024年1月-12月","通过土地流转使享受政策的建档立卡户每亩增收200元，经营主体每亩补助300元。","项目实施将带动低收入人口增加收入，增加务工就业机会，群众满意。"]
[766,null,null,"李庄镇朱寨村","李东叶",2.52,"贫困户每亩补助200元",504,"衔接资金","2024年1月-12月","通过土地流转使享受政策的建档立卡户每亩增收200元，经营主体每亩补助300元。","项目实施将带动低收入人口增加收入，增加务工就业机会，群众满意。"]
[767,null,null,"李庄镇朱寨村","朱现有",1.47,"贫困户每亩补助200元",294,"衔接资金","2024年1月-12月","通过土地流转使享受政策的建档立卡户每亩增收200元，经营主体每亩补助300元。","项目实施将带动低收入人口增加收入，增加务工就业机会，群众满意。"]
[768,null,null,"李庄镇朱寨村","郭玉兰",3.94,"贫困户每亩补助200元",788,"衔接资金","2024年1月-12月","通过土地流转使享受政策的建档立卡户每亩增收200元，经营主体每亩补助300元。","项目实施将带动低收入人口增加收入，增加务工就业机会，群众满意。"]
[769,null,null,"李庄镇朱寨村","朱兆娥",0.9,"贫困户每亩补助200元",180,"衔接资金","2024年1月-12月","通过土地流转使享受政策的建档立卡户每亩增收200元，经营主体每亩补助300元。","项目实施将带动低收入人口增加收入，增加务工就业机会，群众满意。"]
[770,null,null,"李庄镇朱寨村","朱现有",0.7,"贫困户每亩补助200元",140,"衔接资金","2024年1月-12月","通过土地流转使享受政策的建档立卡户每亩增收200元，经营主体每亩补助300元。","项目实施将带动低收入人口增加收入，增加务工就业机会，群众满意。"]
[771,null,null,"李庄镇朱寨村","朱星林",2.1,"贫困户每亩补助200元",420,"衔接资金","2024年1月-12月","通过土地流转使享受政策的建档立卡户每亩增收200元，经营主体每亩补助300元。","项目实施将带动低收入人口增加收入，增加务工就业机会，群众满意。"]
[772,null,null,"李庄镇朱寨村","白文叶",1.75,"贫困户每亩补助200元",350,"衔接资金","2024年1月-12月","通过土地流转使享受政策的建档立卡户每亩增收200元，经营主体每亩补助300元。","项目实施将带动低收入人口增加收入，增加务工就业机会，群众满意。"]
[773,null,null,"李庄镇朱寨村","朱廷桥",0.81,"贫困户每亩补助200元",162,"衔接资金","2024年1月-12月","通过土地流转使享受政策的建档立卡户每亩增收200元，经营主体每亩补助300元。","项目实施将带动低收入人口增加收入，增加务工就业机会，群众满意。"]
[774,null,null,"李庄镇朱寨村","朱济社",1.75,"贫困户每亩补助200元",350,"衔接资金","2024年1月-12月","通过土地流转使享受政策的建档立卡户每亩增收200元，经营主体每亩补助300元。","项目实施将带动低收入人口增加收入，增加务工就业机会，群众满意。"]
[775,null,null,"李庄镇朱寨村","张东立",1.78,"贫困户每亩补助200元",356,"衔接资金","2024年1月-12月","通过土地流转使享受政策的建档立卡户每亩增收200元，经营主体每亩补助300元。","项目实施将带动低收入人口增加收入，增加务工就业机会，群众满意。"]
[776,null,null,"李庄镇朱寨村","朱益龙",1.71,"贫困户每亩补助200元",342,"衔接资金","2024年1月-12月","通过土地流转使享受政策的建档立卡户每亩增收200元，经营主体每亩补助300元。","项目实施将带动低收入人口增加收入，增加务工就业机会，群众满意。"]
[777,null,null,"李庄镇朱寨村","申见凤",1.32,"贫困户每亩补助200元",264,"衔接资金","2024年1月-12月","通过土地流转使享受政策的建档立卡户每亩增收200元，经营主体每亩补助300元。","项目实施将带动低收入人口增加收入，增加务工就业机会，群众满意。"]
[778,null,null,"李庄镇朱寨村","宋金荣",1.04,"贫困户每亩补助200元",208,"衔接资金","2024年1月-12月","通过土地流转使享受政策的建档立卡户每亩增收200元，经营主体每亩补助300元。","项目实施将带动低收入人口增加收入，增加务工就业机会，群众满意。"]
[779,null,null,"李庄镇朱寨村","卜见美",1.82,"贫困户每亩补助200元",364,"衔接资金","2024年1月-12月","通过土地流转使享受政策的建档立卡户每亩增收200元，经营主体每亩补助300元。","项目实施将带动低收入人口增加收入，增加务工就业机会，群众满意。"]
[780,null,null,"李庄镇朱寨村","钟芹",2.1,"贫困户每亩补助200元",420,"衔接资金","2024年1月-12月","通过土地流转使享受政策的建档立卡户每亩增收200元，经营主体每亩补助300元。","项目实施将带动低收入人口增加收入，增加务工就业机会，群众满意。"]
[781,null,null,"李庄镇朱寨村","常玉林",2.76,"贫困户每亩补助200元",552,"衔接资金","2024年1月-12月","通过土地流转使享受政策的建档立卡户每亩增收200元，经营主体每亩补助300元。","项目实施将带动低收入人口增加收入，增加务工就业机会，群众满意。"]
[782,null,null,"李庄镇朱寨村","常玉胜",1.76,"贫困户每亩补助200元",352,"衔接资金","2024年1月-12月","通过土地流转使享受政策的建档立卡户每亩增收200元，经营主体每亩补助300元。","项目实施将带动低收入人口增加收入，增加务工就业机会，群众满意。"]
[783,null,null,"李庄镇朱寨村","张洪洲",4.81,"贫困户每亩补助200元",962,"衔接资金","2024年1月-12月","通过土地流转使享受政策的建档立卡户每亩增收200元，经营主体每亩补助300元。","项目实施将带动低收入人口增加收入，增加务工就业机会，群众满意。"]
[784,null,null,"李庄镇朱寨村","蔡景江",2.2,"贫困户每亩补助200元",440,"衔接资金","2024年1月-12月","通过土地流转使享受政策的建档立卡户每亩增收200元，经营主体每亩补助300元。","项目实施将带动低收入人口增加收入，增加务工就业机会，群众满意。"]
[785,null,null,"李庄镇朱寨村","常玉虎",1.5,"贫困户每亩补助200元",300,"衔接资金","2024年1月-12月","通过土地流转使享受政策的建档立卡户每亩增收200元，经营主体每亩补助300元。","项目实施将带动低收入人口增加收入，增加务工就业机会，群众满意。"]
[786,null,null,"李庄镇朱寨村","孙志华",0.89,"贫困户每亩补助200元",178,"衔接资金","2024年1月-12月","通过土地流转使享受政策的建档立卡户每亩增收200元，经营主体每亩补助300元。","项目实施将带动低收入人口增加收入，增加务工就业机会，群众满意。"]
[787,null,null,"李庄镇朱寨村","李新民",2.56,"贫困户每亩补助200元",512,"衔接资金","2024年1月-12月","通过土地流转使享受政策的建档立卡户每亩增收200元，经营主体每亩补助300元。","项目实施将带动低收入人口增加收入，增加务工就业机会，群众满意。"]
[788,"封丘县李庄镇（桃缘农业种养专业合作社）土地流转奖补项目","对经营主体和10户流转土地的贫困户进行奖补，流转土地10.76亩。","李庄镇竹岗村","李会才",1.21,"贫困户每亩补助200元",242,"衔接资金","2024年1月-12月","通过土地流转使享受政策的建档立卡户每亩增收200元，经营主体每亩补助300元。","项目实施将带动低收入人口增加收入，增加务工就业机会，群众满意。"]
[789,null,null,"李庄镇竹岗村","魏清霞",1.36,"贫困户每亩补助200元",272,"衔接资金","2024年1月-12月","通过土地流转使享受政策的建档立卡户每亩增收200元，经营主体每亩补助300元。","项目实施将带动低收入人口增加收入，增加务工就业机会，群众满意。"]
[790,null,null,"李庄镇竹岗村","李登水",0.9,"贫困户每亩补助200元",{"$f":"F793*200","v":180},"衔接资金","2024年1月-12月","通过土地流转使享受政策的建档立卡户每亩增收200元，经营主体每亩补助300元。","项目实施将带动低收入人口增加收入，增加务工就业机会，群众满意。"]
[791,null,null,"李庄镇竹岗村","李登玉",2.58,"贫困户每亩补助200元",516,"衔接资金","2024年1月-12月","通过土地流转使享受政策的建档立卡户每亩增收200元，经营主体每亩补助300元。","项目实施将带动低收入人口增加收入，增加务工就业机会，群众满意。"]
[792,null,null,"李庄镇竹岗村","白文中",1.37,"贫困户每亩补助200元",274,"衔接资金","2024年1月-12月","通过土地流转使享受政策的建档立卡户每亩增收200元，经营主体每亩补助300元。","项目实施将带动低收入人口增加收入，增加务工就业机会，群众满意。"]
[793,null,null,"李庄镇竹岗村","张海云",0.76,"贫困户每亩补助200元",152,"衔接资金","2024年1月-12月","通过土地流转使享受政策的建档立卡户每亩增收200元，经营主体每亩补助300元。","项目实施将带动低收入人口增加收入，增加务工就业机会，群众满意。"]
[794,null,null,"李庄镇竹岗村","韩天川",0.3,"贫困户每亩补助200元",60,"衔接资金","2024年1月-12月","通过土地流转使享受政策的建档立卡户每亩增收200元，经营主体每亩补助300元。","项目实施将带动低收入人口增加收入，增加务工就业机会，群众满意。"]
[795,null,null,"李庄镇竹岗村","王纪昌",0.58,"贫困户每亩补助200元",116,"衔接资金","2024年1月-12月","通过土地流转使享受政策的建档立卡户每亩增收200元，经营主体每亩补助300元。","项目实施将带动低收入人口增加收入，增加务工就业机会，群众满意。"]
[796,null,null,"李庄镇竹岗村","韩天举",1.2,"贫困户每亩补助200元",240,"衔接资金","2024年1月-12月","通过土地流转使享受政策的建档立卡户每亩增收200元，经营主体每亩补助300元。","项目实施将带动低收入人口增加收入，增加务工就业机会，群众满意。"]
[797,null,null,"李庄镇竹岗村","韩永堂",0.5,"贫困户每亩补助200元",100,"衔接资金","2024年1月-12月","通过土地流转使享受政策的建档立卡户每亩增收200元，经营主体每亩补助300元。","项目实施将带动低收入人口增加收入，增加务工就业机会，群众满意。"]
[798,"封丘县李庄镇(黄河农产种植家庭农场)土地流转奖补项目","对经营主体和9户流转土地的贫困户进行奖补，流转土地12.674亩。","李庄镇贯台村","靳清波",1.55,"贫困户每亩补助200元",310,"衔接资金","2024年1月-12月","通过土地流转使享受政策的建档立卡户每亩增收200元，经营主体每亩补助300元。","项目实施将带动低收入人口增加收入，增加务工就业机会，群众满意。"]
[799,null,null,"李庄镇贯台村","兰琴",0.81,"贫困户每亩补助200元",162,"衔接资金","2024年1月-12月","通过土地流转使享受政策的建档立卡户每亩增收200元，经营主体每亩补助300元。","项目实施将带动低收入人口增加收入，增加务工就业机会，群众满意。"]
[800,null,null,"李庄镇贯台村","王廷有",0.33,"贫困户每亩补助200元",66,"衔接资金","2024年1月-12月","通过土地流转使享受政策的建档立卡户每亩增收200元，经营主体每亩补助300元。","项目实施将带动低收入人口增加收入，增加务工就业机会，群众满意。"]
[801,null,null,"李庄镇贯台村","王新海",0.54,"贫困户每亩补助200元",108,"衔接资金","2024年1月-12月","通过土地流转使享受政策的建档立卡户每亩增收200元，经营主体每亩补助300元。","项目实施将带动低收入人口增加收入，增加务工就业机会，群众满意。"]
[802,null,null,"李庄镇贯台村","梁现林",1.485,"贫困户每亩补助200元",297,"衔接资金","2024年1月-12月","通过土地流转使享受政策的建档立卡户每亩增收200元，经营主体每亩补助300元。","项目实施将带动低收入人口增加收入，增加务工就业机会，群众满意。"]
[803,null,null,"李庄镇贯台村","闫培九",1.35,"贫困户每亩补助200元",270,"衔接资金","2024年1月-12月","通过土地流转使享受政策的建档立卡户每亩增收200元，经营主体每亩补助300元。","项目实施将带动低收入人口增加收入，增加务工就业机会，群众满意。"]
[804,null,null,"李庄镇贯台村","王保芹",0.999,"贫困户每亩补助200元",199.8,"衔接资金","2024年1月-12月","通过土地流转使享受政策的建档立卡户每亩增收200元，经营主体每亩补助300元。","项目实施将带动低收入人口增加收入，增加务工就业机会，群众满意。"]
[805,null,null,"李庄镇贯台村","王文明",3.72,"贫困户每亩补助200元",744,"衔接资金","2024年1月-12月","通过土地流转使享受政策的建档立卡户每亩增收200元，经营主体每亩补助300元。","项目实施将带动低收入人口增加收入，增加务工就业机会，群众满意。"]
[806,null,null,"李庄镇贯台村","王保浮",1.89,"贫困户每亩补助200元",378,"衔接资金","2024年1月-12月","通过土地流转使享受政策的建档立卡户每亩增收200元，经营主体每亩补助300元。","项目实施将带动低收入人口增加收入，增加务工就业机会，群众满意。"]
[807,"封丘县李庄镇(大河湾发展有限公司)土地流转奖补项目","对经营主体和5户流转土地的贫困户进行奖补，流转土地7.22亩。","李庄镇后辛庄村","王保真",1.1,"贫困户每亩补助200元",220,"衔接资金","2024年1月-12月","通过土地流转使享受政策的建档立卡户每亩增收200元，经营主体每亩补助300元。","项目实施将带动低收入人口增加收入，增加务工就业机会，群众满意。"]
[808,null,null,"李庄镇后辛庄村","李长峰",0.56,"贫困户每亩补助200元",112,"衔接资金","2024年1月-12月","通过土地流转使享受政策的建档立卡户每亩增收200元，经营主体每亩补助300元。","项目实施将带动低收入人口增加收入，增加务工就业机会，群众满意。"]
[809,null,null,"李庄镇后辛庄村","葛清和",0.77,"贫困户每亩补助200元",154,"衔接资金","2024年1月-12月","通过土地流转使享受政策的建档立卡户每亩增收200元，经营主体每亩补助300元。","项目实施将带动低收入人口增加收入，增加务工就业机会，群众满意。"]
[810,null,null,"李庄镇后辛庄村","孟现忠",0.98,"贫困户每亩补助200元",196,"衔接资金","2024年1月-12月","通过土地流转使享受政策的建档立卡户每亩增收200元，经营主体每亩补助300元。","项目实施将带动低收入人口增加收入，增加务工就业机会，群众满意。"]
[811,null,null,"李庄镇后辛庄村","杜书江",3.81,"贫困户每亩补助200元",762,"衔接资金","2024年1月-12月","通过土地流转使享受政策的建档立卡户每亩增收200元，经营主体每亩补助300元。","项目实施将带动低收入人口增加收入，增加务工就业机会，群众满意。"]
[812,"封丘县李庄镇（河南京香豫生物科技有限公司）土地流转奖补项目","对经营主体和9户流转土地的贫困户进行奖补，流转土地34亩。","李庄镇竹岗村","李登水",1.6,"贫困户每亩补助200元",320,"衔接资金","2024年1月-12月","通过土地流转使享受政策的建档立卡户每亩增收200元，经营主体每亩补助300元。","项目实施将带动低收入人口增加收入，增加务工就业机会，群众满意。"]
[813,null,null,"李庄镇竹岗村","李登广",5,"贫困户每亩补助200元",1000,"衔接资金","2024年1月-12月","通过土地流转使享受政策的建档立卡户每亩增收200元，经营主体每亩补助300元。","项目实施将带动低收入人口增加收入，增加务工就业机会，群众满意。"]
[814,null,null,"李庄镇竹岗村","海文良",4.84,"贫困户每亩补助200元",968,"衔接资金","2024年1月-12月","通过土地流转使享受政策的建档立卡户每亩增收200元，经营主体每亩补助300元。","项目实施将带动低收入人口增加收入，增加务工就业机会，群众满意。"]
[815,null,null,"李庄镇竹岗村","李登玉",2.2,"贫困户每亩补助200元",440,"衔接资金","2024年1月-12月","通过土地流转使享受政策的建档立卡户每亩增收200元，经营主体每亩补助300元。","项目实施将带动低收入人口增加收入，增加务工就业机会，群众满意。"]
[816,null,null,"李庄镇竹岗村","李存良",7.76,"贫困户每亩补助200元",1552,"衔接资金","2024年1月-12月","通过土地流转使享受政策的建档立卡户每亩增收200元，经营主体每亩补助300元。","项目实施将带动低收入人口增加收入，增加务工就业机会，群众满意。"]
[817,null,null,"李庄镇竹岗村","赵威",3,"贫困户每亩补助200元",600,"衔接资金","2024年1月-12月","通过土地流转使享受政策的建档立卡户每亩增收200元，经营主体每亩补助300元。","项目实施将带动低收入人口增加收入，增加务工就业机会，群众满意。"]
[818,null,null,"李庄镇竹岗村","赵志强",3.2,"贫困户每亩补助200元",640,"衔接资金","2024年1月-12月","通过土地流转使享受政策的建档立卡户每亩增收200元，经营主体每亩补助300元。","项目实施将带动低收入人口增加收入，增加务工就业机会，群众满意。"]
[819,null,null,"李庄镇竹岗村","魏红雨",2.4,"贫困户每亩补助200元",480,"衔接资金","2024年1月-12月","通过土地流转使享受政策的建档立卡户每亩增收200元，经营主体每亩补助300元。","项目实施将带动低收入人口增加收入，增加务工就业机会，群众满意。"]
[820,null,null,"李庄镇竹岗村","李登选",4,"贫困户每亩补助200元",800,"衔接资金","2024年1月-12月","通过土地流转使享受政策的建档立卡户每亩增收200元，经营主体每亩补助300元。","项目实施将带动低收入人口增加收入，增加务工就业机会，群众满意。"]
[821,"封丘县李庄镇(闰土家庭农场)土地流转奖补项目","对经营主体和23户流转土地的贫困户进行奖补，流转土地51.824亩。","李庄镇贯台村","刘春兰",0.84,"贫困户每亩补助200元",168,"衔接资金","2024年1月-12月","通过土地流转使享受政策的建档立卡户每亩增收200元，经营主体每亩补助300元。","项目实施将带动低收入人口增加收入，增加务工就业机会，群众满意。"]
[822,null,null,"李庄镇贯台村","王中祥",2.625,"贫困户每亩补助200元",525,"衔接资金","2024年1月-12月","通过土地流转使享受政策的建档立卡户每亩增收200元，经营主体每亩补助300元。","项目实施将带动低收入人口增加收入，增加务工就业机会，群众满意。"]
[823,null,null,"李庄镇贯台村","李丽萍",1.125,"贫困户每亩补助200元",225,"衔接资金","2024年1月-12月","通过土地流转使享受政策的建档立卡户每亩增收200元，经营主体每亩补助300元。","项目实施将带动低收入人口增加收入，增加务工就业机会，群众满意。"]
[824,null,null,"李庄镇贯台村","邵长周",1.7,"贫困户每亩补助200元",340,"衔接资金","2024年1月-12月","通过土地流转使享受政策的建档立卡户每亩增收200元，经营主体每亩补助300元。","项目实施将带动低收入人口增加收入，增加务工就业机会，群众满意。"]
[825,null,null,"李庄镇贯台村","王伟民",1.35,"贫困户每亩补助200元",270,"衔接资金","2024年1月-12月","通过土地流转使享受政策的建档立卡户每亩增收200元，经营主体每亩补助300元。","项目实施将带动低收入人口增加收入，增加务工就业机会，群众满意。"]
[826,null,null,"李庄镇贯台村","王小玉",1.08,"贫困户每亩补助200元",216,"衔接资金","2024年1月-12月","通过土地流转使享受政策的建档立卡户每亩增收200元，经营主体每亩补助300元。","项目实施将带动低收入人口增加收入，增加务工就业机会，群众满意。"]
[827,null,null,"李庄镇贯台村","王保刚",1.74,"贫困户每亩补助200元",348,"衔接资金","2024年1月-12月","通过土地流转使享受政策的建档立卡户每亩增收200元，经营主体每亩补助300元。","项目实施将带动低收入人口增加收入，增加务工就业机会，群众满意。"]
[828,null,null,"李庄镇贯台村","潘学明",2.7,"贫困户每亩补助200元",540,"衔接资金","2024年1月-12月","通过土地流转使享受政策的建档立卡户每亩增收200元，经营主体每亩补助300元。","项目实施将带动低收入人口增加收入，增加务工就业机会，群众满意。"]
[829,null,null,"李庄镇贯台村","靳清芳",1.76,"贫困户每亩补助200元",352,"衔接资金","2024年1月-12月","通过土地流转使享受政策的建档立卡户每亩增收200元，经营主体每亩补助300元。","项目实施将带动低收入人口增加收入，增加务工就业机会，群众满意。"]
[830,null,null,"李庄镇贯台村","邵紫珠",1.6,"贫困户每亩补助200元",320,"衔接资金","2024年1月-12月","通过土地流转使享受政策的建档立卡户每亩增收200元，经营主体每亩补助300元。","项目实施将带动低收入人口增加收入，增加务工就业机会，群众满意。"]
[831,null,null,"李庄镇贯台村","王伏军",2.44,"贫困户每亩补助200元",488,"衔接资金","2024年1月-12月","通过土地流转使享受政策的建档立卡户每亩增收200元，经营主体每亩补助300元。","项目实施将带动低收入人口增加收入，增加务工就业机会，群众满意。"]
[832,null,null,"李庄镇贯台村","王保兴",1.83,"贫困户每亩补助200元",366,"衔接资金","2024年1月-12月","通过土地流转使享受政策的建档立卡户每亩增收200元，经营主体每亩补助300元。","项目实施将带动低收入人口增加收入，增加务工就业机会，群众满意。"]
[833,null,null,"李庄镇贯台村","卢立合",3.05,"贫困户每亩补助200元",610,"衔接资金","2024年1月-12月","通过土地流转使享受政策的建档立卡户每亩增收200元，经营主体每亩补助300元。","项目实施将带动低收入人口增加收入，增加务工就业机会，群众满意。"]
[834,null,null,"李庄镇贯台村","邵珠强",3.05,"贫困户每亩补助200元",610,"衔接资金","2024年1月-12月","通过土地流转使享受政策的建档立卡户每亩增收200元，经营主体每亩补助300元。","项目实施将带动低收入人口增加收入，增加务工就业机会，群众满意。"]
[835,null,null,"李庄镇贯台村","王尚修",5.307,"贫困户每亩补助200元",1061.4,"衔接资金","2024年1月-12月","通过土地流转使享受政策的建档立卡户每亩增收200元，经营主体每亩补助300元。","项目实施将带动低收入人口增加收入，增加务工就业机会，群众满意。"]
[836,null,null,"李庄镇贯台村","王尚军",3.477,"贫困户每亩补助200元",695.4,"衔接资金","2024年1月-12月","通过土地流转使享受政策的建档立卡户每亩增收200元，经营主体每亩补助300元。","项目实施将带动低收入人口增加收入，增加务工就业机会，群众满意。"]
[837,null,null,"李庄镇贯台村","王功贤",5.8,"贫困户每亩补助200元",1160,"衔接资金","2024年1月-12月","通过土地流转使享受政策的建档立卡户每亩增收200元，经营主体每亩补助300元。","项目实施将带动低收入人口增加收入，增加务工就业机会，群众满意。"]
[838,null,null,"李庄镇贯台村","王军贤",1.52,"贫困户每亩补助200元",304,"衔接资金","2024年1月-12月","通过土地流转使享受政策的建档立卡户每亩增收200元，经营主体每亩补助300元。","项目实施将带动低收入人口增加收入，增加务工就业机会，群众满意。"]
[839,null,null,"李庄镇贯台村","郭文兰",2.745,"贫困户每亩补助200元",549,"衔接资金","2024年1月-12月","通过土地流转使享受政策的建档立卡户每亩增收200元，经营主体每亩补助300元。","项目实施将带动低收入人口增加收入，增加务工就业机会，群众满意。"]
[840,null,null,"李庄镇贯台村","王新海",2.44,"贫困户每亩补助200元",488,"衔接资金","2024年1月-12月","通过土地流转使享受政策的建档立卡户每亩增收200元，经营主体每亩补助300元。","项目实施将带动低收入人口增加收入，增加务工就业机会，群众满意。"]
[841,null,null,"李庄镇贯台村","刘兴军",1.08,"贫困户每亩补助200元",216,"衔接资金","2024年1月-12月","通过土地流转使享受政策的建档立卡户每亩增收200元，经营主体每亩补助300元。","项目实施将带动低收入人口增加收入，增加务工就业机会，群众满意。"]
[842,null,null,"李庄镇贯台村","刘兴海",1.35,"贫困户每亩补助200元",270,"衔接资金","2024年1月-12月","通过土地流转使享受政策的建档立卡户每亩增收200元，经营主体每亩补助300元。","项目实施将带动低收入人口增加收入，增加务工就业机会，群众满意。"]
[843,null,null,"李庄镇贯台村","梁现朋",1.215,"贫困户每亩补助200元",243,"衔接资金","2024年1月-12月","通过土地流转使享受政策的建档立卡户每亩增收200元，经营主体每亩补助300元。","项目实施将带动低收入人口增加收入，增加务工就业机会，群众满意。"]
[844,"封丘县李庄镇（顺科种植家庭农场）土地流转奖补项目","对经营主体和9户流转土地的贫困户进行奖补，流转土地16.11亩。","李庄镇李庄村","郭庆义",3,"贫困户每亩补助200元",600,"衔接资金","2024年1月-12月","通过土地流转使享受政策的建档立卡户每亩增收200元，经营主体每亩补助300元。","项目实施将带动低收入人口增加收入，增加务工就业机会，群众满意。"]
[845,null,null,"李庄镇李庄村","郭庆付",3,"贫困户每亩补助200元",600,"衔接资金","2024年1月-12月","通过土地流转使享受政策的建档立卡户每亩增收200元，经营主体每亩补助300元。","项目实施将带动低收入人口增加收入，增加务工就业机会，群众满意。"]
[846,null,null,"李庄镇李庄村","李绍卫",2,"贫困户每亩补助200元",400,"衔接资金","2024年1月-12月","通过土地流转使享受政策的建档立卡户每亩增收200元，经营主体每亩补助300元。","项目实施将带动低收入人口增加收入，增加务工就业机会，群众满意。"]
[847,null,null,"李庄镇李庄村","李振枝",2,"贫困户每亩补助200元",400,"衔接资金","2024年1月-12月","通过土地流转使享受政策的建档立卡户每亩增收200元，经营主体每亩补助300元。","项目实施将带动低收入人口增加收入，增加务工就业机会，群众满意。"]
[848,null,null,"李庄镇李庄村","李克旺",0.88,"贫困户每亩补助200元",176,"衔接资金","2024年1月-12月","通过土地流转使享受政策的建档立卡户每亩增收200元，经营主体每亩补助300元。","项目实施将带动低收入人口增加收入，增加务工就业机会，群众满意。"]
[849,null,null,"李庄镇李庄村","李克发",1.77,"贫困户每亩补助200元",354,"衔接资金","2024年1月-12月","通过土地流转使享受政策的建档立卡户每亩增收200元，经营主体每亩补助300元。","项目实施将带动低收入人口增加收入，增加务工就业机会，群众满意。"]
[850,null,null,"李庄镇李庄村","张合成",1.06,"贫困户每亩补助200元",212,"衔接资金","2024年1月-12月","通过土地流转使享受政策的建档立卡户每亩增收200元，经营主体每亩补助300元。","项目实施将带动低收入人口增加收入，增加务工就业机会，群众满意。"]
[851,null,null,"李庄镇李庄村","郭庆周",1,"贫困户每亩补助200元",200,"衔接资金","2024年1月-12月","通过土地流转使享受政策的建档立卡户每亩增收200元，经营主体每亩补助300元。","项目实施将带动低收入人口增加收入，增加务工就业机会，群众满意。"]
[852,null,null,"李庄镇李庄村","李克仓",1.4,"贫困户每亩补助200元",280,"衔接资金","2024年1月-12月","通过土地流转使享受政策的建档立卡户每亩增收200元，经营主体每亩补助300元。","项目实施将带动低收入人口增加收入，增加务工就业机会，群众满意。"]
[853,"封丘县李庄镇(新乡市鸿程林业有限公司)土地流转奖补项目","对经营主体和11户流转土地的贫困户进行奖补，流转土地53.3511亩。","李庄镇薛郭庄村","吴照合",3.424,"贫困户每亩补助200元",684.8,"衔接资金","2024年1月-12月","通过土地流转使享受政策的建档立卡户每亩增收200元，经营主体每亩补助300元。","项目实施将带动低收入人口增加收入，增加务工就业机会，群众满意。"]
[854,null,null,"李庄镇薛郭庄村","吴照法",4.076,"贫困户每亩补助200元",{"$f":"F857*200","v":815.2},"衔接资金","2024年1月-12月","通过土地流转使享受政策的建档立卡户每亩增收200元，经营主体每亩补助300元。","项目实施将带动低收入人口增加收入，增加务工就业机会，群众满意。"]
[855,null,null,"李庄镇薛郭庄村","朱秀叶",5.694,"贫困户每亩补助200元",1138.8,"衔接资金","2024年1月-12月","通过土地流转使享受政策的建档立卡户每亩增收200元，经营主体每亩补助300元。","项目实施将带动低收入人口增加收入，增加务工就业机会，群众满意。"]
[856,null,null,"李庄镇薛郭庄村","王浩阳",1.997,"贫困户每亩补助200元",399.4,"衔接资金","2024年1月-12月","通过土地流转使享受政策的建档立卡户每亩增收200元，经营主体每亩补助300元。","项目实施将带动低收入人口增加收入，增加务工就业机会，群众满意。"]
[857,null,null,"李庄镇薛郭庄村","薛红林",4.3816,"贫困户每亩补助200元",876.32,"衔接资金","2024年1月-12月","通过土地流转使享受政策的建档立卡户每亩增收200元，经营主体每亩补助300元。","项目实施将带动低收入人口增加收入，增加务工就业机会，群众满意。"]
[858,null,null,"李庄镇薛郭庄村","吴照军",5.53,"贫困户每亩补助200元",1106,"衔接资金","2024年1月-12月","通过土地流转使享受政策的建档立卡户每亩增收200元，经营主体每亩补助300元。","项目实施将带动低收入人口增加收入，增加务工就业机会，群众满意。"]
[859,null,null,"李庄镇薛郭庄村","薛永建",8.977,"贫困户每亩补助200元",1795.4,"衔接资金","2024年1月-12月","通过土地流转使享受政策的建档立卡户每亩增收200元，经营主体每亩补助300元。","项目实施将带动低收入人口增加收入，增加务工就业机会，群众满意。"]
[860,null,null,"李庄镇薛郭庄村","王洪义",5.11,"贫困户每亩补助200元",1022,"衔接资金","2024年1月-12月","通过土地流转使享受政策的建档立卡户每亩增收200元，经营主体每亩补助300元。","项目实施将带动低收入人口增加收入，增加务工就业机会，群众满意。"]
[861,null,null,"李庄镇薛郭庄村","吴照迎",5.556,"贫困户每亩补助200元",1111.2,"衔接资金","2024年1月-12月","通过土地流转使享受政策的建档立卡户每亩增收200元，经营主体每亩补助300元。","项目实施将带动低收入人口增加收入，增加务工就业机会，群众满意。"]
[862,null,null,"李庄镇薛郭庄村","薛瑞栓",5.61,"贫困户每亩补助200元",1122,"衔接资金","2024年1月-12月","通过土地流转使享受政策的建档立卡户每亩增收200元，经营主体每亩补助300元。","项目实施将带动低收入人口增加收入，增加务工就业机会，群众满意。"]
[863,null,null,"李庄镇薛郭庄村","郭保军",2.9955,"贫困户每亩补助200元",599.1,"衔接资金","2024年1月-12月","通过土地流转使享受政策的建档立卡户每亩增收200元，经营主体每亩补助300元。","项目实施将带动低收入人口增加收入，增加务工就业机会，群众满意。"]
[864,"封丘县李庄镇(丰硕家庭农场)土地流转奖补项目","对经营主体和9户流转土地的贫困户进行奖补，流转土地19.4亩。","李庄镇堤湾村","常保刚",1,"贫困户每亩补助200元",200,"衔接资金","2024年1月-12月","通过土地流转使享受政策的建档立卡户每亩增收200元，经营主体每亩补助300元。","项目实施将带动低收入人口增加收入，增加务工就业机会，群众满意。"]
[865,null,null,"李庄镇堤湾村","常景奇",0.8,"贫困户每亩补助200元",160,"衔接资金","2024年1月-12月","通过土地流转使享受政策的建档立卡户每亩增收200元，经营主体每亩补助300元。","项目实施将带动低收入人口增加收入，增加务工就业机会，群众满意。"]
[866,null,null,"李庄镇堤湾村","常保钦",3,"贫困户每亩补助200元",600,"衔接资金","2024年1月-12月","通过土地流转使享受政策的建档立卡户每亩增收200元，经营主体每亩补助300元。","项目实施将带动低收入人口增加收入，增加务工就业机会，群众满意。"]
[867,null,null,"李庄镇堤湾村","刘书玲",7,"贫困户每亩补助200元",1400,"衔接资金","2024年1月-12月","通过土地流转使享受政策的建档立卡户每亩增收200元，经营主体每亩补助300元。","项目实施将带动低收入人口增加收入，增加务工就业机会，群众满意。"]
[868,null,null,"李庄镇堤湾村","常景修",1.3,"贫困户每亩补助200元",260,"衔接资金","2024年1月-12月","通过土地流转使享受政策的建档立卡户每亩增收200元，经营主体每亩补助300元。","项目实施将带动低收入人口增加收入，增加务工就业机会，群众满意。"]
[869,null,null,"李庄镇堤湾村","常红凯",1,"贫困户每亩补助200元",200,"衔接资金","2024年1月-12月","通过土地流转使享受政策的建档立卡户每亩增收200元，经营主体每亩补助300元。","项目实施将带动低收入人口增加收入，增加务工就业机会，群众满意。"]
[870,null,null,"李庄镇堤湾村","常保文",3,"贫困户每亩补助200元",600,"衔接资金","2024年1月-12月","通过土地流转使享受政策的建档立卡户每亩增收200元，经营主体每亩补助300元。","项目实施将带动低收入人口增加收入，增加务工就业机会，群众满意。"]
[871,null,null,"李庄镇堤湾村","常作杰",1,"贫困户每亩补助200元",200,"衔接资金","2024年1月-12月","通过土地流转使享受政策的建档立卡户每亩增收200元，经营主体每亩补助300元。","项目实施将带动低收入人口增加收入，增加务工就业机会，群众满意。"]
[872,null,null,"李庄镇堤湾村","常作勇",1.3,"贫困户每亩补助200元",260,"衔接资金","2024年1月-12月","通过土地流转使享受政策的建档立卡户每亩增收200元，经营主体每亩补助300元。","项目实施将带动低收入人口增加收入，增加务工就业机会，群众满意。"]
[873,"封丘县李庄镇（清河家庭农场）土地流转奖补项目","对经营主体和3户流转土地的贫困户进行奖补，流转土地104.32亩。","李庄镇李庄村","杨金岭",20,"贫困户每亩补助200元",4000,"衔接资金","2024年1月-12月","通过土地流转使享受政策的建档立卡户每亩增收200元，经营主体每亩补助300元。","项目实施将带动低收入人口增加收入，增加务工就业机会，群众满意。"]
[874,null,null,"李庄镇贯台村","王纪生",47.06,"贫困户每亩补助200元",9412,"衔接资金","2024年1月-12月","通过土地流转使享受政策的建档立卡户每亩增收200元，经营主体每亩补助300元。","项目实施将带动低收入人口增加收入，增加务工就业机会，群众满意。"]
[875,null,null,"李庄镇贯台村","赵明领",37.26,"贫困户每亩补助200元",7452,"衔接资金","2024年1月-12月","通过土地流转使享受政策的建档立卡户每亩增收200元，经营主体每亩补助300元。","项目实施将带动低收入人口增加收入，增加务工就业机会，群众满意。"]
["合  计",{"$nulls":4},{"$f":"SUM(F4:F878)","v":3226.2721},null,{"$f":"SUM(H4:H878)","v":645254.42}]